Workbook

Sheet Shop Briefing
A1: RMV | D1: =TODAY() -> 2026-04-03 | I1: LY APR MTD | K1: 2287343 | M1: Target | N1: 2100000
A2: 本月 | B2: 生意 | D2: ATV | F2: UPT | H2: 單數 | J2: 件数 | L2: 人流 | N2: 轉化率
C3: VS+/-%
A4: 昨天生意 | B4: 66197 | C4: =SUM(B4/B5)-1 -> 5% | D4: =SUM(B4/H4) -> 2648 | F4: =SUM(J4/H4) -> 4.1 | H4: 25 | J4: 103 | L4: 544 | N4: =SUM(H4/L4)*100% -> 5%
A5: 去年同期 | B5: 63006
A6: 本月累计 | B6: 120539 | C6: =B6/N1 -> 6% | D6: =SUM(B6/H6) -> 2115 | F6: =SUM(J6/H6) -> 3.5 | H6: 57 | J6: 202 | L6: 981 | N6: =SUM(H6/L6)*100% -> 6%
B7: 1483583
A8: 當天 | B8: Promotion
B9: 項目 | F9: 單價 | H9: 單數 | J9: 銷售占比
B10: 2件9折，3件88折 | F10: 36159 | H10: 12 | J10: =F10/B4 -> 55%
B11: 26Q1鞋2對88折 | F11: 1665 | H11: 1 | J11: =F11/B4 -> 3%
B12: 6500-850 | F12: 7620 | H12: 1 | J12: =F12/B4 -> 12%
J13: =F13/B4 -> 0%
J14: =F14/B4 -> 0%
J15: =F15/B4 -> 0%
J16: =F16/B4 -> 0%
A18: 當天 | B18: 系列/品類 | F18: 銷售金額 | H18: 件數 | J18: 銷售占比
B19: FILA ORIGINALE | F19: =SUMIFS('Sales receipt((當天)'!K:K,'Sales receipt((當天)'!B:B,'Sales receipt((當天)'!B4,'Sales receipt((當天)'!G:G,'Sales receipt((當天)'!G6) -> 5628 | H19: =SUMIFS('Sales receipt((當天)'!J:J,'Sales receipt((當天)'!B:B,'Sales receipt((當天)'!B4,'Sales receipt((當天)'!G:G,'Sales receipt((當天)'!G6) -> 9 | J19: =F19/F30 -> 11%
B20: HERITAGE | F20: =SUMIFS('Sales receipt((當天)'!K:K,'Sales receipt((當天)'!B:B,'Sales receipt((當天)'!B4,'Sales receipt((當天)'!G:G,'Sales receipt((當天)'!G9) -> 7065 | H20: =SUMIFS('Sales receipt((當天)'!J:J,'Sales receipt((當天)'!B:B,'Sales receipt((當天)'!B4,'Sales receipt((當天)'!G:G,'Sales receipt((當天)'!G9) -> 9 | J20: =F20/F30 -> 14%
B21: WHITE | F21: =SUMIFS('Sales receipt((當天)'!K:K,'Sales receipt((當天)'!B:B,'Sales receipt((當天)'!B4,'Sales receipt((當天)'!G:G,'Sales receipt((當天)'!G17) -> 8287 | H21: =SUMIFS('Sales receipt((當天)'!J:J,'Sales receipt((當天)'!B:B,'Sales receipt((當天)'!B4,'Sales receipt((當天)'!G:G,'Sales receipt((當天)'!G17) -> 9 | J21: =F21/F30 -> 16%
B22: BLUE | F22: =SUMIFS('Sales receipt((當天)'!K:K,'Sales receipt((當天)'!B:B,'Sales receipt((當天)'!B4,'Sales receipt((當天)'!G:G,'Sales receipt((當天)'!G3) -> 3063 | H22: =SUMIFS('Sales receipt((當天)'!J:J,'Sales receipt((當天)'!B:B,'Sales receipt((當天)'!B4,'Sales receipt((當天)'!G:G,'Sales receipt((當天)'!G3) -> 1 | J22: =F22/F30 -> 6%
B23: FITNESS | F23: =SUMIFS('Sales receipt((當天)'!K:K,'Sales receipt((當天)'!B:B,'Sales receipt((當天)'!B4,'Sales receipt((當天)'!G:G,'Sales receipt((當天)'!G7) -> 3943 | H23: =SUMIFS('Sales receipt((當天)'!J:J,'Sales receipt((當天)'!B:B,'Sales receipt((當天)'!B4,'Sales receipt((當天)'!G:G,'Sales receipt((當天)'!G7) -> 6 | J23: =F23/F30 -> 8%
B24: A.P. | F24: =SUMIFS('Sales receipt((當天)'!K:K,'Sales receipt((當天)'!B:B,'Sales receipt((當天)'!B4,'Sales receipt((當天)'!G:G,'Sales receipt((當天)'!G2) -> 3626 | H24: =SUMIFS('Sales receipt((當天)'!J:J,'Sales receipt((當天)'!B:B,'Sales receipt((當天)'!B4,'Sales receipt((當天)'!G:G,'Sales receipt((當天)'!G2) -> 4 | J24: =F24/F30 -> 7%
B25: GOLF | F25: =SUMIFS('Sales receipt((當天)'!K:K,'Sales receipt((當天)'!B:B,'Sales receipt((當天)'!B4,'Sales receipt((當天)'!G:G,'Sales receipt((當天)'!G8) -> 10366 | H25: =SUMIFS('Sales receipt((當天)'!J:J,'Sales receipt((當天)'!B:B,'Sales receipt((當天)'!B4,'Sales receipt((當天)'!G:G,'Sales receipt((當天)'!G8) -> 6 | J25: =F25/F30 -> 20%
B26: EXPLORE | F26: =SUMIFS('Sales receipt((當天)'!K:K,'Sales receipt((當天)'!B:B,'Sales receipt((當天)'!B4,'Sales receipt((當天)'!G:G,'Sales receipt((當天)'!G4) -> 3790 | H26: =SUMIFS('Sales receipt((當天)'!J:J,'Sales receipt((當天)'!B:B,'Sales receipt((當天)'!B4,'Sales receipt((當天)'!G:G,'Sales receipt((當天)'!G4) -> 2 | J26: =F26/F30 -> 7%
B27: TENNIS | F27: =SUMIFS('Sales receipt((當天)'!K:K,'Sales receipt((當天)'!B:B,'Sales receipt((當天)'!B4,'Sales receipt((當天)'!G:G,'Sales receipt((當天)'!G16) -> 2043 | H27: =SUMIFS('Sales receipt((當天)'!J:J,'Sales receipt((當天)'!B:B,'Sales receipt((當天)'!B4,'Sales receipt((當天)'!G:G,'Sales receipt((當天)'!G16) -> 2 | J27: =F27/F30 -> 4%
A28: 服裝 | B28: 男 | F28: =SUM(SUMIFS('Sales receipt((當天)'!K:K,'Sales receipt((當天)'!B:B,'Sales receipt((當天)'!B4,'Sales receipt((當天)'!H:H,{"MALE","男"})) -> 22758 | H28: =SUM(SUMIFS('Sales receipt((當天)'!J:J,'Sales receipt((當天)'!B:B,'Sales receipt((當天)'!B4,'Sales receipt((當天)'!H:H,{"MALE","男"})) -> 25 | J28: =F28/F30 -> 44%
B29: 女 | F29: =SUM(SUMIFS('Sales receipt((當天)'!K:K,'Sales receipt((當天)'!B:B,'Sales receipt((當天)'!B4,'Sales receipt((當天)'!H:H,{"FEMALE","女"})) -> 29227 | H29: =SUM(SUMIFS('Sales receipt((當天)'!J:J,'Sales receipt((當天)'!B:B,'Sales receipt((當天)'!B4,'Sales receipt((當天)'!H:H,{"FEMALE","女"})) -> 28 | J29: =F29/F30 -> 56%
B30: Total | F30: =SUM(F28:G29) -> 51985 | H30: =SUM(H28:I29) -> 53 | J30: =F30/B4 -> 79%
A31: 鞋 | F31: =SUMIFS('Sales receipt((當天)'!K:K,'Sales receipt((當天)'!B:B,'Sales receipt((當天)'!B6) -> 8417 | H31: =SUMIFS('Sales receipt((當天)'!J:J,'Sales receipt((當天)'!B:B,'Sales receipt((當天)'!B6) -> 9 | J31: =F31/B4 -> 13%
A32: 配件 | F32: =SUMIFS('Sales receipt((當天)'!K:K,'Sales receipt((當天)'!B:B,'Sales receipt((當天)'!B5) -> 5386 | H32: =SUMIFS('Sales receipt((當天)'!J:J,'Sales receipt((當天)'!B:B,'Sales receipt((當天)'!B5) -> 11 | J32: =F32/B4 -> 8%
A34: 姓名 | C34: 生意
C35: 當天目標 | E35: 實際 | G35: 月累計 | I35: 单数 | K35: 件数 | M35: ATV | O35: UPT
A36: M0989 Susanna | C36: 14700 | E36: 25640 | G36: 38212 | I36: 7 | K36: 39 | M36: =SUM(E36/I36) -> 3663 | O36: =SUM(K36/I36) -> 5.6
A37: M1436 Khaki | C37: 14700 | E37: 9605 | G37: 9605 | I37: 5 | K37: 16 | M37: =SUM(E37/I37) -> 1921 | O37: =SUM(K37/I37) -> 3.2
A38: M2172 Janet | C38: RO | G38: 5822 | O38: =SUM(K38/I38) -> 
A39: M2801 Fanny | C39: al
A40: M2798 Ryan | C40: 14700 | E40: 18336 | G40: 32953 | I40: 7 | K40: 25 | M40: =SUM(E40/I40) -> 2619 | O40: 3.6
A41: M2902 Carmen | C41: 14700 | E41: 12616 | G41: 23196 | I41: 6 | K41: 23 | M41: 2103 | O41: 3.8
A42: M3060 Anson | C42: RO | G42: 10751 | M42: =SUM(E42/I42) -> 
B45: M0989 Susanna | D45: M2172 Janet | F45: M2801 Fanny | H45: M2798 Ryan | J45: M2902 Carmen | L45: M3060 Anson | N45: M1436 Khaki
B46: Sales | C46: Qty | D46: Sales | E46: Qty | F46: Sales | G46: Qty | H46: Sales | I46: Qty | J46: Sales | K46: Qty | L46: Sales | M46: Qty | N46: Sales | O46: Qty
A47: ORIGINALE | B47: =SUMIFS('Sales receipt((當天)'!K:K,'Sales receipt((當天)'!A:A,'Sales receipt((當天)'!A2,'Sales receipt((當天)'!B:B,'Sales receipt((當天)'!B4,'Sales receipt((當天)'!G:G,'Sales receipt((當天)'!G6) -> 1572 | C47: =SUMIFS('Sales receipt((當天)'!J:J,'Sales receipt((當天)'!A:A,'Sales receipt((當天)'!A2,'Sales receipt((當天)'!B:B,'Sales receipt((當天)'!B4,'Sales receipt((當天)'!G:G,'Sales receipt((當天)'!G6) -> 2 | D47: =SUMIFS('Sales receipt((當天)'!K:K,'Sales receipt((當天)'!A:A,'Sales receipt((當天)'!A3,'Sales receipt((當天)'!B:B,'Sales receipt((當天)'!B4,'Sales receipt((當天)'!G:G,'Sales receipt((當天)'!G6) -> 0 | E47: =SUMIFS('Sales receipt((當天)'!J:J,'Sales receipt((當天)'!A:A,'Sales receipt((當天)'!A3,'Sales receipt((當天)'!B:B,'Sales receipt((當天)'!B4,'Sales receipt((當天)'!G:G,'Sales receipt((當天)'!G6) -> 0 | F47: =SUMIFS('Sales receipt((當天)'!K:K,'Sales receipt((當天)'!A:A,'Sales receipt((當天)'!A7,'Sales receipt((當天)'!B:B,'Sales receipt((當天)'!B4,'Sales receipt((當天)'!G:G,'Sales receipt((當天)'!G6) -> 0 | G47: =SUMIFS('Sales receipt((當天)'!J:J,'Sales receipt((當天)'!A:A,'Sales receipt((當天)'!A7,'Sales receipt((當天)'!B:B,'Sales receipt((當天)'!B4,'Sales receipt((當天)'!G:G,'Sales receipt((當天)'!G6) -> 0 | H47: =SUMIFS('Sales receipt((當天)'!K:K,'Sales receipt((當天)'!A:A,'Sales receipt((當天)'!A6,'Sales receipt((當天)'!B:B,'Sales receipt((當天)'!B4,'Sales receipt((當天)'!G:G,'Sales receipt((當天)'!G6) -> 3669 | I47: =SUMIFS('Sales receipt((當天)'!J:J,'Sales receipt((當天)'!A:A,'Sales receipt((當天)'!A6,'Sales receipt((當天)'!B:B,'Sales receipt((當天)'!B4,'Sales receipt((當天)'!G:G,'Sales receipt((當天)'!G6) -> 6 | J47: =SUMIFS('Sales receipt((當天)'!K:K,'Sales receipt((當天)'!A:A,'Sales receipt((當天)'!A8,'Sales receipt((當天)'!B:B,'Sales receipt((當天)'!B4,'Sales receipt((當天)'!G:G,'Sales receipt((當天)'!G6) -> 387 | K47: =SUMIFS('Sales receipt((當天)'!J:J,'Sales receipt((當天)'!A:A,'Sales receipt((當天)'!A8,'Sales receipt((當天)'!B:B,'Sales receipt((當天)'!B4,'Sales receipt((當天)'!G:G,'Sales receipt((當天)'!G6) -> 1 | L47: =SUMIFS('Sales receipt((當天)'!K:K,'Sales receipt((當天)'!A:A,'Sales receipt((當天)'!A4,'Sales receipt((當天)'!B:B,'Sales receipt((當天)'!B4,'Sales receipt((當天)'!G:G,'Sales receipt((當天)'!G6) -> 0 | M47: =SUMIFS('Sales receipt((當天)'!J:J,'Sales receipt((當天)'!A:A,'Sales receipt((當天)'!A4,'Sales receipt((當天)'!B:B,'Sales receipt((當天)'!B4,'Sales receipt((當天)'!G:G,'Sales receipt((當天)'!G6) -> 0 | N47: =SUMIFS('Sales receipt((當天)'!K:K,'Sales receipt((當天)'!A:A,'Sales receipt((當天)'!A5,'Sales receipt((當天)'!B:B,'Sales receipt((當天)'!B4,'Sales receipt((當天)'!G:G,'Sales receipt((當天)'!G6) -> 0 | O47: =SUMIFS('Sales receipt((當天)'!J:J,'Sales receipt((當天)'!A:A,'Sales receipt((當天)'!A5,'Sales receipt((當天)'!B:B,'Sales receipt((當天)'!B4,'Sales receipt((當天)'!G:G,'Sales receipt((當天)'!G6) -> 0
A48: HERITAGE | B48: =SUMIFS('Sales receipt((當天)'!K:K,'Sales receipt((當天)'!A:A,'Sales receipt((當天)'!A2,'Sales receipt((當天)'!B:B,'Sales receipt((當天)'!B4,'Sales receipt((當天)'!G:G,'Sales receipt((當天)'!G9) -> 0 | C48: =SUMIFS('Sales receipt((當天)'!J:J,'Sales receipt((當天)'!A:A,'Sales receipt((當天)'!A2,'Sales receipt((當天)'!B:B,'Sales receipt((當天)'!B4,'Sales receipt((當天)'!G:G,'Sales receipt((當天)'!G9) -> 0 | D48: =SUMIFS('Sales receipt((當天)'!K:K,'Sales receipt((當天)'!A:A,'Sales receipt((當天)'!A3,'Sales receipt((當天)'!B:B,'Sales receipt((當天)'!B4,'Sales receipt((當天)'!G:G,'Sales receipt((當天)'!G9) -> 0 | E48: =SUMIFS('Sales receipt((當天)'!J:J,'Sales receipt((當天)'!A:A,'Sales receipt((當天)'!A3,'Sales receipt((當天)'!B:B,'Sales receipt((當天)'!B4,'Sales receipt((當天)'!G:G,'Sales receipt((當天)'!G9) -> 0 | F48: =SUMIFS('Sales receipt((當天)'!K:K,'Sales receipt((當天)'!A:A,'Sales receipt((當天)'!A7,'Sales receipt((當天)'!B:B,'Sales receipt((當天)'!B4,'Sales receipt((當天)'!G:G,'Sales receipt((當天)'!G9) -> 0 | G48: =SUMIFS('Sales receipt((當天)'!J:J,'Sales receipt((當天)'!A:A,'Sales receipt((當天)'!A7,'Sales receipt((當天)'!B:B,'Sales receipt((當天)'!B4,'Sales receipt((當天)'!G:G,'Sales receipt((當天)'!G9) -> 0 | H48: =SUMIFS('Sales receipt((當天)'!K:K,'Sales receipt((當天)'!A:A,'Sales receipt((當天)'!A6,'Sales receipt((當天)'!B:B,'Sales receipt((當天)'!B4,'Sales receipt((當天)'!G:G,'Sales receipt((當天)'!G9) -> 1987 | I48: =SUMIFS('Sales receipt((當天)'!J:J,'Sales receipt((當天)'!A:A,'Sales receipt((當天)'!A6,'Sales receipt((當天)'!B:B,'Sales receipt((當天)'!B4,'Sales receipt((當天)'!G:G,'Sales receipt((當天)'!G9) -> 3 | J48: =SUMIFS('Sales receipt((當天)'!K:K,'Sales receipt((當天)'!A:A,'Sales receipt((當天)'!A8,'Sales receipt((當天)'!B:B,'Sales receipt((當天)'!B4,'Sales receipt((當天)'!G:G,'Sales receipt((當天)'!G9) -> 3538 | K48: =SUMIFS('Sales receipt((當天)'!J:J,'Sales receipt((當天)'!A:A,'Sales receipt((當天)'!A8,'Sales receipt((當天)'!B:B,'Sales receipt((當天)'!B4,'Sales receipt((當天)'!G:G,'Sales receipt((當天)'!G9) -> 4 | L48: =SUMIFS('Sales receipt((當天)'!K:K,'Sales receipt((當天)'!A:A,'Sales receipt((當天)'!A4,'Sales receipt((當天)'!B:B,'Sales receipt((當天)'!B4,'Sales receipt((當天)'!G:G,'Sales receipt((當天)'!G9) -> 0 | M48: =SUMIFS('Sales receipt((當天)'!J:J,'Sales receipt((當天)'!A:A,'Sales receipt((當天)'!A4,'Sales receipt((當天)'!B:B,'Sales receipt((當天)'!B4,'Sales receipt((當天)'!G:G,'Sales receipt((當天)'!G9) -> 0 | N48: =SUMIFS('Sales receipt((當天)'!K:K,'Sales receipt((當天)'!A:A,'Sales receipt((當天)'!A5,'Sales receipt((當天)'!B:B,'Sales receipt((當天)'!B4,'Sales receipt((當天)'!G:G,'Sales receipt((當天)'!G9) -> 1540 | O48: =SUMIFS('Sales receipt((當天)'!J:J,'Sales receipt((當天)'!A:A,'Sales receipt((當天)'!A5,'Sales receipt((當天)'!B:B,'Sales receipt((當天)'!B4,'Sales receipt((當天)'!G:G,'Sales receipt((當天)'!G9) -> 2
A49: WHITE | B49: =SUMIFS('Sales receipt((當天)'!K:K,'Sales receipt((當天)'!A:A,'Sales receipt((當天)'!A2,'Sales receipt((當天)'!B:B,'Sales receipt((當天)'!B4,'Sales receipt((當天)'!G:G,'Sales receipt((當天)'!G17) -> 1377 | C49: =SUMIFS('Sales receipt((當天)'!J:J,'Sales receipt((當天)'!A:A,'Sales receipt((當天)'!A2,'Sales receipt((當天)'!B:B,'Sales receipt((當天)'!B4,'Sales receipt((當天)'!G:G,'Sales receipt((當天)'!G17) -> 2 | D49: =SUMIFS('Sales receipt((當天)'!K:K,'Sales receipt((當天)'!A:A,'Sales receipt((當天)'!A3,'Sales receipt((當天)'!B:B,'Sales receipt((當天)'!B4,'Sales receipt((當天)'!G:G,'Sales receipt((當天)'!G17) -> 0 | E49: =SUMIFS('Sales receipt((當天)'!J:J,'Sales receipt((當天)'!A:A,'Sales receipt((當天)'!A3,'Sales receipt((當天)'!B:B,'Sales receipt((當天)'!B4,'Sales receipt((當天)'!G:G,'Sales receipt((當天)'!G17) -> 0 | F49: =SUMIFS('Sales receipt((當天)'!K:K,'Sales receipt((當天)'!A:A,'Sales receipt((當天)'!A7,'Sales receipt((當天)'!B:B,'Sales receipt((當天)'!B4,'Sales receipt((當天)'!G:G,'Sales receipt((當天)'!G17) -> 0 | G49: =SUMIFS('Sales receipt((當天)'!J:J,'Sales receipt((當天)'!A:A,'Sales receipt((當天)'!A7,'Sales receipt((當天)'!B:B,'Sales receipt((當天)'!B4,'Sales receipt((當天)'!G:G,'Sales receipt((當天)'!G17) -> 0 | H49: =SUMIFS('Sales receipt((當天)'!K:K,'Sales receipt((當天)'!A:A,'Sales receipt((當天)'!A6,'Sales receipt((當天)'!B:B,'Sales receipt((當天)'!B4,'Sales receipt((當天)'!G:G,'Sales receipt((當天)'!G17) -> 2929 | I49: =SUMIFS('Sales receipt((當天)'!J:J,'Sales receipt((當天)'!A:A,'Sales receipt((當天)'!A6,'Sales receipt((當天)'!B:B,'Sales receipt((當天)'!B4,'Sales receipt((當天)'!G:G,'Sales receipt((當天)'!G17) -> 3 | J49: =SUMIFS('Sales receipt((當天)'!K:K,'Sales receipt((當天)'!A:A,'Sales receipt((當天)'!A8,'Sales receipt((當天)'!B:B,'Sales receipt((當天)'!B4,'Sales receipt((當天)'!G:G,'Sales receipt((當天)'!G17) -> 1931 | K49: =SUMIFS('Sales receipt((當天)'!J:J,'Sales receipt((當天)'!A:A,'Sales receipt((當天)'!A8,'Sales receipt((當天)'!B:B,'Sales receipt((當天)'!B4,'Sales receipt((當天)'!G:G,'Sales receipt((當天)'!G17) -> 2 | L49: =SUMIFS('Sales receipt((當天)'!K:K,'Sales receipt((當天)'!A:A,'Sales receipt((當天)'!A4,'Sales receipt((當天)'!B:B,'Sales receipt((當天)'!B4,'Sales receipt((當天)'!G:G,'Sales receipt((當天)'!G17) -> 0 | M49: =SUMIFS('Sales receipt((當天)'!J:J,'Sales receipt((當天)'!A:A,'Sales receipt((當天)'!A4,'Sales receipt((當天)'!B:B,'Sales receipt((當天)'!B4,'Sales receipt((當天)'!G:G,'Sales receipt((當天)'!G17) -> 0 | N49: =SUMIFS('Sales receipt((當天)'!K:K,'Sales receipt((當天)'!A:A,'Sales receipt((當天)'!A5,'Sales receipt((當天)'!B:B,'Sales receipt((當天)'!B4,'Sales receipt((當天)'!G:G,'Sales receipt((當天)'!G17) -> 2050 | O49: =SUMIFS('Sales receipt((當天)'!J:J,'Sales receipt((當天)'!A:A,'Sales receipt((當天)'!A5,'Sales receipt((當天)'!B:B,'Sales receipt((當天)'!B4,'Sales receipt((當天)'!G:G,'Sales receipt((當天)'!G17) -> 2
A50: BLUE | B50: =SUMIFS('Sales receipt((當天)'!K:K,'Sales receipt((當天)'!A:A,'Sales receipt((當天)'!A2,'Sales receipt((當天)'!B:B,'Sales receipt((當天)'!B4,'Sales receipt((當天)'!G:G,'Sales receipt((當天)'!G3) -> 0 | C50: =SUMIFS('Sales receipt((當天)'!J:J,'Sales receipt((當天)'!A:A,'Sales receipt((當天)'!A2,'Sales receipt((當天)'!B:B,'Sales receipt((當天)'!B4,'Sales receipt((當天)'!G:G,'Sales receipt((當天)'!G3) -> 0 | D50: =SUMIFS('Sales receipt((當天)'!K:K,'Sales receipt((當天)'!A:A,'Sales receipt((當天)'!A3,'Sales receipt((當天)'!B:B,'Sales receipt((當天)'!B4,'Sales receipt((當天)'!G:G,'Sales receipt((當天)'!G3) -> 0 | E50: =SUMIFS('Sales receipt((當天)'!J:J,'Sales receipt((當天)'!A:A,'Sales receipt((當天)'!A3,'Sales receipt((當天)'!B:B,'Sales receipt((當天)'!B4,'Sales receipt((當天)'!G:G,'Sales receipt((當天)'!G3) -> 0 | F50: =SUMIFS('Sales receipt((當天)'!K:K,'Sales receipt((當天)'!A:A,'Sales receipt((當天)'!A7,'Sales receipt((當天)'!B:B,'Sales receipt((當天)'!B4,'Sales receipt((當天)'!G:G,'Sales receipt((當天)'!G3) -> 0 | G50: =SUMIFS('Sales receipt((當天)'!J:J,'Sales receipt((當天)'!A:A,'Sales receipt((當天)'!A7,'Sales receipt((當天)'!B:B,'Sales receipt((當天)'!B4,'Sales receipt((當天)'!G:G,'Sales receipt((當天)'!G3) -> 0 | H50: =SUMIFS('Sales receipt((當天)'!K:K,'Sales receipt((當天)'!A:A,'Sales receipt((當天)'!A6,'Sales receipt((當天)'!B:B,'Sales receipt((當天)'!B4,'Sales receipt((當天)'!G:G,'Sales receipt((當天)'!G3) -> 3063 | I50: =SUMIFS('Sales receipt((當天)'!J:J,'Sales receipt((當天)'!A:A,'Sales receipt((當天)'!A6,'Sales receipt((當天)'!B:B,'Sales receipt((當天)'!B4,'Sales receipt((當天)'!G:G,'Sales receipt((當天)'!G3) -> 1 | J50: =SUMIFS('Sales receipt((當天)'!K:K,'Sales receipt((當天)'!A:A,'Sales receipt((當天)'!A8,'Sales receipt((當天)'!B:B,'Sales receipt((當天)'!B4,'Sales receipt((當天)'!G:G,'Sales receipt((當天)'!G3) -> 0 | K50: =SUMIFS('Sales receipt((當天)'!J:J,'Sales receipt((當天)'!A:A,'Sales receipt((當天)'!A8,'Sales receipt((當天)'!B:B,'Sales receipt((當天)'!B4,'Sales receipt((當天)'!G:G,'Sales receipt((當天)'!G3) -> 0 | L50: =SUMIFS('Sales receipt((當天)'!K:K,'Sales receipt((當天)'!A:A,'Sales receipt((當天)'!A4,'Sales receipt((當天)'!B:B,'Sales receipt((當天)'!B4,'Sales receipt((當天)'!G:G,'Sales receipt((當天)'!G3) -> 0 | M50: =SUMIFS('Sales receipt((當天)'!J:J,'Sales receipt((當天)'!A:A,'Sales receipt((當天)'!A4,'Sales receipt((當天)'!B:B,'Sales receipt((當天)'!B4,'Sales receipt((當天)'!G:G,'Sales receipt((當天)'!G3) -> 0 | N50: =SUMIFS('Sales receipt((當天)'!K:K,'Sales receipt((當天)'!A:A,'Sales receipt((當天)'!A5,'Sales receipt((當天)'!B:B,'Sales receipt((當天)'!B4,'Sales receipt((當天)'!G:G,'Sales receipt((當天)'!G3) -> 0 | O50: =SUMIFS('Sales receipt((當天)'!J:J,'Sales receipt((當天)'!A:A,'Sales receipt((當天)'!A5,'Sales receipt((當天)'!B:B,'Sales receipt((當天)'!B4,'Sales receipt((當天)'!G:G,'Sales receipt((當天)'!G3) -> 0
A51: FITNESS | B51: =SUMIFS('Sales receipt((當天)'!K:K,'Sales receipt((當天)'!A:A,'Sales receipt((當天)'!A2,'Sales receipt((當天)'!B:B,'Sales receipt((當天)'!B4,'Sales receipt((當天)'!G:G,'Sales receipt((當天)'!G7) -> 1496 | C51: =SUMIFS('Sales receipt((當天)'!J:J,'Sales receipt((當天)'!A:A,'Sales receipt((當天)'!A2,'Sales receipt((當天)'!B:B,'Sales receipt((當天)'!B4,'Sales receipt((當天)'!G:G,'Sales receipt((當天)'!G7) -> 2 | D51: =SUMIFS('Sales receipt((當天)'!K:K,'Sales receipt((當天)'!A:A,'Sales receipt((當天)'!A3,'Sales receipt((當天)'!B:B,'Sales receipt((當天)'!B4,'Sales receipt((當天)'!G:G,'Sales receipt((當天)'!G7) -> 0 | E51: =SUMIFS('Sales receipt((當天)'!J:J,'Sales receipt((當天)'!A:A,'Sales receipt((當天)'!A3,'Sales receipt((當天)'!B:B,'Sales receipt((當天)'!B4,'Sales receipt((當天)'!G:G,'Sales receipt((當天)'!G7) -> 0 | F51: =SUMIFS('Sales receipt((當天)'!K:K,'Sales receipt((當天)'!A:A,'Sales receipt((當天)'!A7,'Sales receipt((當天)'!B:B,'Sales receipt((當天)'!B4,'Sales receipt((當天)'!G:G,'Sales receipt((當天)'!G7) -> 0 | G51: =SUMIFS('Sales receipt((當天)'!J:J,'Sales receipt((當天)'!A:A,'Sales receipt((當天)'!A7,'Sales receipt((當天)'!B:B,'Sales receipt((當天)'!B4,'Sales receipt((當天)'!G:G,'Sales receipt((當天)'!G7) -> 0 | H51: =SUMIFS('Sales receipt((當天)'!K:K,'Sales receipt((當天)'!A:A,'Sales receipt((當天)'!A6,'Sales receipt((當天)'!B:B,'Sales receipt((當天)'!B4,'Sales receipt((當天)'!G:G,'Sales receipt((當天)'!G7) -> 774 | I51: =SUMIFS('Sales receipt((當天)'!J:J,'Sales receipt((當天)'!A:A,'Sales receipt((當天)'!A6,'Sales receipt((當天)'!B:B,'Sales receipt((當天)'!B4,'Sales receipt((當天)'!G:G,'Sales receipt((當天)'!G7) -> 1 | J51: =SUMIFS('Sales receipt((當天)'!K:K,'Sales receipt((當天)'!A:A,'Sales receipt((當天)'!A8,'Sales receipt((當天)'!B:B,'Sales receipt((當天)'!B4,'Sales receipt((當天)'!G:G,'Sales receipt((當天)'!G7) -> 1673 | K51: =SUMIFS('Sales receipt((當天)'!J:J,'Sales receipt((當天)'!A:A,'Sales receipt((當天)'!A8,'Sales receipt((當天)'!B:B,'Sales receipt((當天)'!B4,'Sales receipt((當天)'!G:G,'Sales receipt((當天)'!G7) -> 3 | L51: =SUMIFS('Sales receipt((當天)'!K:K,'Sales receipt((當天)'!A:A,'Sales receipt((當天)'!A4,'Sales receipt((當天)'!B:B,'Sales receipt((當天)'!B4,'Sales receipt((當天)'!G:G,'Sales receipt((當天)'!G7) -> 0 | M51: =SUMIFS('Sales receipt((當天)'!J:J,'Sales receipt((當天)'!A:A,'Sales receipt((當天)'!A4,'Sales receipt((當天)'!B:B,'Sales receipt((當天)'!B4,'Sales receipt((當天)'!G:G,'Sales receipt((當天)'!G7) -> 0 | N51: =SUMIFS('Sales receipt((當天)'!K:K,'Sales receipt((當天)'!A:A,'Sales receipt((當天)'!A5,'Sales receipt((當天)'!B:B,'Sales receipt((當天)'!B4,'Sales receipt((當天)'!G:G,'Sales receipt((當天)'!G7) -> 0 | O51: =SUMIFS('Sales receipt((當天)'!J:J,'Sales receipt((當天)'!A:A,'Sales receipt((當天)'!A5,'Sales receipt((當天)'!B:B,'Sales receipt((當天)'!B4,'Sales receipt((當天)'!G:G,'Sales receipt((當天)'!G7) -> 0
A52: A.P. | B52: =SUMIFS('Sales receipt((當天)'!K:K,'Sales receipt((當天)'!A:A,'Sales receipt((當天)'!A2,'Sales receipt((當天)'!B:B,'Sales receipt((當天)'!B4,'Sales receipt((當天)'!G:G,'Sales receipt((當天)'!G2) -> 1548 | C52: =SUMIFS('Sales receipt((當天)'!J:J,'Sales receipt((當天)'!A:A,'Sales receipt((當天)'!A2,'Sales receipt((當天)'!B:B,'Sales receipt((當天)'!B4,'Sales receipt((當天)'!G:G,'Sales receipt((當天)'!G2) -> 2 | D52: =SUMIFS('Sales receipt((當天)'!K:K,'Sales receipt((當天)'!A:A,'Sales receipt((當天)'!A3,'Sales receipt((當天)'!B:B,'Sales receipt((當天)'!B4,'Sales receipt((當天)'!G:G,'Sales receipt((當天)'!G2) -> 0 | E52: =SUMIFS('Sales receipt((當天)'!J:J,'Sales receipt((當天)'!A:A,'Sales receipt((當天)'!A3,'Sales receipt((當天)'!B:B,'Sales receipt((當天)'!B4,'Sales receipt((當天)'!G:G,'Sales receipt((當天)'!G2) -> 0 | F52: =SUMIFS('Sales receipt((當天)'!K:K,'Sales receipt((當天)'!A:A,'Sales receipt((當天)'!A7,'Sales receipt((當天)'!B:B,'Sales receipt((當天)'!B4,'Sales receipt((當天)'!G:G,'Sales receipt((當天)'!G2) -> 0 | G52: =SUMIFS('Sales receipt((當天)'!J:J,'Sales receipt((當天)'!A:A,'Sales receipt((當天)'!A7,'Sales receipt((當天)'!B:B,'Sales receipt((當天)'!B4,'Sales receipt((當天)'!G:G,'Sales receipt((當天)'!G2) -> 0 | H52: =SUMIFS('Sales receipt((當天)'!K:K,'Sales receipt((當天)'!A:A,'Sales receipt((當天)'!A6,'Sales receipt((當天)'!B:B,'Sales receipt((當天)'!B4,'Sales receipt((當天)'!G:G,'Sales receipt((當天)'!G2) -> 0 | I52: =SUMIFS('Sales receipt((當天)'!J:J,'Sales receipt((當天)'!A:A,'Sales receipt((當天)'!A6,'Sales receipt((當天)'!B:B,'Sales receipt((當天)'!B4,'Sales receipt((當天)'!G:G,'Sales receipt((當天)'!G2) -> 0 | J52: =SUMIFS('Sales receipt((當天)'!K:K,'Sales receipt((當天)'!A:A,'Sales receipt((當天)'!A8,'Sales receipt((當天)'!B:B,'Sales receipt((當天)'!B4,'Sales receipt((當天)'!G:G,'Sales receipt((當天)'!G2) -> 775 | K52: =SUMIFS('Sales receipt((當天)'!J:J,'Sales receipt((當天)'!A:A,'Sales receipt((當天)'!A8,'Sales receipt((當天)'!B:B,'Sales receipt((當天)'!B4,'Sales receipt((當天)'!G:G,'Sales receipt((當天)'!G2) -> 1 | L52: =SUMIFS('Sales receipt((當天)'!K:K,'Sales receipt((當天)'!A:A,'Sales receipt((當天)'!A4,'Sales receipt((當天)'!B:B,'Sales receipt((當天)'!B4,'Sales receipt((當天)'!G:G,'Sales receipt((當天)'!G2) -> 0 | M52: =SUMIFS('Sales receipt((當天)'!J:J,'Sales receipt((當天)'!A:A,'Sales receipt((當天)'!A4,'Sales receipt((當天)'!B:B,'Sales receipt((當天)'!B4,'Sales receipt((當天)'!G:G,'Sales receipt((當天)'!G2) -> 0 | N52: =SUMIFS('Sales receipt((當天)'!K:K,'Sales receipt((當天)'!A:A,'Sales receipt((當天)'!A5,'Sales receipt((當天)'!B:B,'Sales receipt((當天)'!B4,'Sales receipt((當天)'!G:G,'Sales receipt((當天)'!G2) -> 1303 | O52: =SUMIFS('Sales receipt((當天)'!J:J,'Sales receipt((當天)'!A:A,'Sales receipt((當天)'!A5,'Sales receipt((當天)'!B:B,'Sales receipt((當天)'!B4,'Sales receipt((當天)'!G:G,'Sales receipt((當天)'!G2) -> 1
A53: GOLF | B53: =SUMIFS('Sales receipt((當天)'!K:K,'Sales receipt((當天)'!A:A,'Sales receipt((當天)'!A2,'Sales receipt((當天)'!B:B,'Sales receipt((當天)'!B4,'Sales receipt((當天)'!G:G,'Sales receipt((當天)'!G8) -> 6472 | C53: =SUMIFS('Sales receipt((當天)'!J:J,'Sales receipt((當天)'!A:A,'Sales receipt((當天)'!A2,'Sales receipt((當天)'!B:B,'Sales receipt((當天)'!B4,'Sales receipt((當天)'!G:G,'Sales receipt((當天)'!G8) -> 4 | D53: =SUMIFS('Sales receipt((當天)'!K:K,'Sales receipt((當天)'!A:A,'Sales receipt((當天)'!A3,'Sales receipt((當天)'!B:B,'Sales receipt((當天)'!B4,'Sales receipt((當天)'!G:G,'Sales receipt((當天)'!G8) -> 0 | E53: =SUMIFS('Sales receipt((當天)'!J:J,'Sales receipt((當天)'!A:A,'Sales receipt((當天)'!A3,'Sales receipt((當天)'!B:B,'Sales receipt((當天)'!B4,'Sales receipt((當天)'!G:G,'Sales receipt((當天)'!G8) -> 0 | F53: =SUMIFS('Sales receipt((當天)'!K:K,'Sales receipt((當天)'!A:A,'Sales receipt((當天)'!A7,'Sales receipt((當天)'!B:B,'Sales receipt((當天)'!B4,'Sales receipt((當天)'!G:G,'Sales receipt((當天)'!G8) -> 0 | G53: =SUMIFS('Sales receipt((當天)'!J:J,'Sales receipt((當天)'!A:A,'Sales receipt((當天)'!A7,'Sales receipt((當天)'!B:B,'Sales receipt((當天)'!B4,'Sales receipt((當天)'!G:G,'Sales receipt((當天)'!G8) -> 0 | H53: =SUMIFS('Sales receipt((當天)'!K:K,'Sales receipt((當天)'!A:A,'Sales receipt((當天)'!A6,'Sales receipt((當天)'!B:B,'Sales receipt((當天)'!B4,'Sales receipt((當天)'!G:G,'Sales receipt((當天)'!G8) -> 1974 | I53: =SUMIFS('Sales receipt((當天)'!J:J,'Sales receipt((當天)'!A:A,'Sales receipt((當天)'!A6,'Sales receipt((當天)'!B:B,'Sales receipt((當天)'!B4,'Sales receipt((當天)'!G:G,'Sales receipt((當天)'!G8) -> 1 | J53: =SUMIFS('Sales receipt((當天)'!K:K,'Sales receipt((當天)'!A:A,'Sales receipt((當天)'!A8,'Sales receipt((當天)'!B:B,'Sales receipt((當天)'!B4,'Sales receipt((當天)'!G:G,'Sales receipt((當天)'!G8) -> 1920 | K53: =SUMIFS('Sales receipt((當天)'!J:J,'Sales receipt((當天)'!A:A,'Sales receipt((當天)'!A8,'Sales receipt((當天)'!B:B,'Sales receipt((當天)'!B4,'Sales receipt((當天)'!G:G,'Sales receipt((當天)'!G8) -> 1 | L53: =SUMIFS('Sales receipt((當天)'!K:K,'Sales receipt((當天)'!A:A,'Sales receipt((當天)'!A4,'Sales receipt((當天)'!B:B,'Sales receipt((當天)'!B4,'Sales receipt((當天)'!G:G,'Sales receipt((當天)'!G8) -> 0 | M53: =SUMIFS('Sales receipt((當天)'!J:J,'Sales receipt((當天)'!A:A,'Sales receipt((當天)'!A4,'Sales receipt((當天)'!B:B,'Sales receipt((當天)'!B4,'Sales receipt((當天)'!G:G,'Sales receipt((當天)'!G8) -> 0 | N53: =SUMIFS('Sales receipt((當天)'!K:K,'Sales receipt((當天)'!A:A,'Sales receipt((當天)'!A5,'Sales receipt((當天)'!B:B,'Sales receipt((當天)'!B4,'Sales receipt((當天)'!G:G,'Sales receipt((當天)'!G8) -> 0 | O53: =SUMIFS('Sales receipt((當天)'!J:J,'Sales receipt((當天)'!A:A,'Sales receipt((當天)'!A5,'Sales receipt((當天)'!B:B,'Sales receipt((當天)'!B4,'Sales receipt((當天)'!G:G,'Sales receipt((當天)'!G8) -> 0
A54: EXPLORE | B54: =SUMIFS('Sales receipt((當天)'!K:K,'Sales receipt((當天)'!A:A,'Sales receipt((當天)'!A2,'Sales receipt((當天)'!B:B,'Sales receipt((當天)'!B4,'Sales receipt((當天)'!G:G,'Sales receipt((當天)'!G4) -> 3790 | C54: =SUMIFS('Sales receipt((當天)'!J:J,'Sales receipt((當天)'!A:A,'Sales receipt((當天)'!A2,'Sales receipt((當天)'!B:B,'Sales receipt((當天)'!B4,'Sales receipt((當天)'!G:G,'Sales receipt((當天)'!G4) -> 2 | D54: =SUMIFS('Sales receipt((當天)'!K:K,'Sales receipt((當天)'!A:A,'Sales receipt((當天)'!A3,'Sales receipt((當天)'!B:B,'Sales receipt((當天)'!B4,'Sales receipt((當天)'!G:G,'Sales receipt((當天)'!G4) -> 0 | E54: =SUMIFS('Sales receipt((當天)'!J:J,'Sales receipt((當天)'!A:A,'Sales receipt((當天)'!A3,'Sales receipt((當天)'!B:B,'Sales receipt((當天)'!B4,'Sales receipt((當天)'!G:G,'Sales receipt((當天)'!G4) -> 0 | F54: =SUMIFS('Sales receipt((當天)'!K:K,'Sales receipt((當天)'!A:A,'Sales receipt((當天)'!A7,'Sales receipt((當天)'!B:B,'Sales receipt((當天)'!B4,'Sales receipt((當天)'!G:G,'Sales receipt((當天)'!G4) -> 0 | G54: =SUMIFS('Sales receipt((當天)'!J:J,'Sales receipt((當天)'!A:A,'Sales receipt((當天)'!A7,'Sales receipt((當天)'!B:B,'Sales receipt((當天)'!B4,'Sales receipt((當天)'!G:G,'Sales receipt((當天)'!G4) -> 0 | H54: =SUMIFS('Sales receipt((當天)'!K:K,'Sales receipt((當天)'!A:A,'Sales receipt((當天)'!A6,'Sales receipt((當天)'!B:B,'Sales receipt((當天)'!B4,'Sales receipt((當天)'!G:G,'Sales receipt((當天)'!G4) -> 0 | I54: =SUMIFS('Sales receipt((當天)'!J:J,'Sales receipt((當天)'!A:A,'Sales receipt((當天)'!A6,'Sales receipt((當天)'!B:B,'Sales receipt((當天)'!B4,'Sales receipt((當天)'!G:G,'Sales receipt((當天)'!G4) -> 0 | J54: =SUMIFS('Sales receipt((當天)'!K:K,'Sales receipt((當天)'!A:A,'Sales receipt((當天)'!A8,'Sales receipt((當天)'!B:B,'Sales receipt((當天)'!B4,'Sales receipt((當天)'!G:G,'Sales receipt((當天)'!G4) -> 0 | K54: =SUMIFS('Sales receipt((當天)'!J:J,'Sales receipt((當天)'!A:A,'Sales receipt((當天)'!A8,'Sales receipt((當天)'!B:B,'Sales receipt((當天)'!B4,'Sales receipt((當天)'!G:G,'Sales receipt((當天)'!G4) -> 0 | L54: =SUMIFS('Sales receipt((當天)'!K:K,'Sales receipt((當天)'!A:A,'Sales receipt((當天)'!A4,'Sales receipt((當天)'!B:B,'Sales receipt((當天)'!B4,'Sales receipt((當天)'!G:G,'Sales receipt((當天)'!G4) -> 0 | M54: =SUMIFS('Sales receipt((當天)'!J:J,'Sales receipt((當天)'!A:A,'Sales receipt((當天)'!A4,'Sales receipt((當天)'!B:B,'Sales receipt((當天)'!B4,'Sales receipt((當天)'!G:G,'Sales receipt((當天)'!G4) -> 0 | N54: =SUMIFS('Sales receipt((當天)'!K:K,'Sales receipt((當天)'!A:A,'Sales receipt((當天)'!A5,'Sales receipt((當天)'!B:B,'Sales receipt((當天)'!B4,'Sales receipt((當天)'!G:G,'Sales receipt((當天)'!G4) -> 0 | O54: =SUMIFS('Sales receipt((當天)'!J:J,'Sales receipt((當天)'!A:A,'Sales receipt((當天)'!A5,'Sales receipt((當天)'!B:B,'Sales receipt((當天)'!B4,'Sales receipt((當天)'!G:G,'Sales receipt((當天)'!G4) -> 0
A55: TENNIS | B55: =SUMIFS('Sales receipt((當天)'!K:K,'Sales receipt((當天)'!A:A,'Sales receipt((當天)'!A2,'Sales receipt((當天)'!B:B,'Sales receipt((當天)'!B4,'Sales receipt((當天)'!G:G,'Sales receipt((當天)'!G16) -> 0 | C55: =SUMIFS('Sales receipt((當天)'!J:J,'Sales receipt((當天)'!A:A,'Sales receipt((當天)'!A2,'Sales receipt((當天)'!B:B,'Sales receipt((當天)'!B4,'Sales receipt((當天)'!G:G,'Sales receipt((當天)'!G16) -> 0 | D55: =SUMIFS('Sales receipt((當天)'!K:K,'Sales receipt((當天)'!A:A,'Sales receipt((當天)'!A3,'Sales receipt((當天)'!B:B,'Sales receipt((當天)'!B4,'Sales receipt((當天)'!G:G,'Sales receipt((當天)'!G16) -> 0 | E55: =SUMIFS('Sales receipt((當天)'!J:J,'Sales receipt((當天)'!A:A,'Sales receipt((當天)'!A3,'Sales receipt((當天)'!B:B,'Sales receipt((當天)'!B4,'Sales receipt((當天)'!G:G,'Sales receipt((當天)'!G16) -> 0 | F55: =SUMIFS('Sales receipt((當天)'!K:K,'Sales receipt((當天)'!A:A,'Sales receipt((當天)'!A7,'Sales receipt((當天)'!B:B,'Sales receipt((當天)'!B4,'Sales receipt((當天)'!G:G,'Sales receipt((當天)'!G16) -> 0 | G55: =SUMIFS('Sales receipt((當天)'!J:J,'Sales receipt((當天)'!A:A,'Sales receipt((當天)'!A7,'Sales receipt((當天)'!B:B,'Sales receipt((當天)'!B4,'Sales receipt((當天)'!G:G,'Sales receipt((當天)'!G16) -> 0 | H55: =SUMIFS('Sales receipt((當天)'!K:K,'Sales receipt((當天)'!A:A,'Sales receipt((當天)'!A6,'Sales receipt((當天)'!B:B,'Sales receipt((當天)'!B4,'Sales receipt((當天)'!G:G,'Sales receipt((當天)'!G16) -> 1480 | I55: =SUMIFS('Sales receipt((當天)'!J:J,'Sales receipt((當天)'!A:A,'Sales receipt((當天)'!A6,'Sales receipt((當天)'!B:B,'Sales receipt((當天)'!B4,'Sales receipt((當天)'!G:G,'Sales receipt((當天)'!G16) -> 1 | J55: =SUMIFS('Sales receipt((當天)'!K:K,'Sales receipt((當天)'!A:A,'Sales receipt((當天)'!A8,'Sales receipt((當天)'!B:B,'Sales receipt((當天)'!B4,'Sales receipt((當天)'!G:G,'Sales receipt((當天)'!G16) -> 0 | K55: =SUMIFS('Sales receipt((當天)'!J:J,'Sales receipt((當天)'!A:A,'Sales receipt((當天)'!A8,'Sales receipt((當天)'!B:B,'Sales receipt((當天)'!B4,'Sales receipt((當天)'!G:G,'Sales receipt((當天)'!G16) -> 0 | L55: =SUMIFS('Sales receipt((當天)'!K:K,'Sales receipt((當天)'!A:A,'Sales receipt((當天)'!A4,'Sales receipt((當天)'!B:B,'Sales receipt((當天)'!B4,'Sales receipt((當天)'!G:G,'Sales receipt((當天)'!G16) -> 0 | M55: =SUMIFS('Sales receipt((當天)'!J:J,'Sales receipt((當天)'!A:A,'Sales receipt((當天)'!A4,'Sales receipt((當天)'!B:B,'Sales receipt((當天)'!B4,'Sales receipt((當天)'!G:G,'Sales receipt((當天)'!G16) -> 0 | N55: =SUMIFS('Sales receipt((當天)'!K:K,'Sales receipt((當天)'!A:A,'Sales receipt((當天)'!A5,'Sales receipt((當天)'!B:B,'Sales receipt((當天)'!B4,'Sales receipt((當天)'!G:G,'Sales receipt((當天)'!G16) -> 563 | O55: =SUMIFS('Sales receipt((當天)'!J:J,'Sales receipt((當天)'!A:A,'Sales receipt((當天)'!A5,'Sales receipt((當天)'!B:B,'Sales receipt((當天)'!B4,'Sales receipt((當天)'!G:G,'Sales receipt((當天)'!G16) -> 1
A56: FILA CNY
A57: FILA MILANO
A59: FOT | B59: =SUMIFS('Sales receipt((當天)'!K:K,'Sales receipt((當天)'!A:A,'Sales receipt((當天)'!A2,'Sales receipt((當天)'!B:B,'Sales receipt((當天)'!B6) -> 4815 | C59: =SUMIFS('Sales receipt((當天)'!J:J,'Sales receipt((當天)'!A:A,'Sales receipt((當天)'!A2,'Sales receipt((當天)'!B:B,'Sales receipt((當天)'!B6) -> 5 | D59: =SUMIFS('Sales receipt((當天)'!K:K,'Sales receipt((當天)'!A:A,'Sales receipt((當天)'!A3,'Sales receipt((當天)'!B:B,'Sales receipt((當天)'!B6) -> 0 | E59: =SUMIFS('Sales receipt((當天)'!J:J,'Sales receipt((當天)'!A:A,'Sales receipt((當天)'!A3,'Sales receipt((當天)'!B:B,'Sales receipt((當天)'!B6) -> 0 | F59: =SUMIFS('Sales receipt((當天)'!K:K,'Sales receipt((當天)'!A:A,'Sales receipt((當天)'!A7,'Sales receipt((當天)'!B:B,'Sales receipt((當天)'!B6) -> 0 | G59: =SUMIFS('Sales receipt((當天)'!J:J,'Sales receipt((當天)'!A:A,'Sales receipt((當天)'!A7,'Sales receipt((當天)'!B:B,'Sales receipt((當天)'!B6) -> 0 | H59: =SUMIFS('Sales receipt((當天)'!K:K,'Sales receipt((當天)'!A:A,'Sales receipt((當天)'!A6,'Sales receipt((當天)'!B:B,'Sales receipt((當天)'!B6) -> 890 | I59: =SUMIFS('Sales receipt((當天)'!J:J,'Sales receipt((當天)'!A:A,'Sales receipt((當天)'!A6,'Sales receipt((當天)'!B:B,'Sales receipt((當天)'!B6) -> 1 | J59: =SUMIFS('Sales receipt((當天)'!K:K,'Sales receipt((當天)'!A:A,'Sales receipt((當天)'!A8,'Sales receipt((當天)'!B:B,'Sales receipt((當天)'!B6) -> 1664 | K59: =SUMIFS('Sales receipt((當天)'!J:J,'Sales receipt((當天)'!A:A,'Sales receipt((當天)'!A8,'Sales receipt((當天)'!B:B,'Sales receipt((當天)'!B6) -> 2 | L59: =SUMIFS('Sales receipt((當天)'!K:K,'Sales receipt((當天)'!A:A,'Sales receipt((當天)'!A4,'Sales receipt((當天)'!B:B,'Sales receipt((當天)'!B6) -> 0 | M59: =SUMIFS('Sales receipt((當天)'!J:J,'Sales receipt((當天)'!A:A,'Sales receipt((當天)'!A4,'Sales receipt((當天)'!B:B,'Sales receipt((當天)'!B6) -> 0 | N59: =SUMIFS('Sales receipt((當天)'!K:K,'Sales receipt((當天)'!A:A,'Sales receipt((當天)'!A5,'Sales receipt((當天)'!B:B,'Sales receipt((當天)'!B6) -> 1048 | O59: =SUMIFS('Sales receipt((當天)'!J:J,'Sales receipt((當天)'!A:A,'Sales receipt((當天)'!A5,'Sales receipt((當天)'!B:B,'Sales receipt((當天)'!B6) -> 1
A60: M | B60: =SUM(SUMIFS('Sales receipt((當天)'!K:K,'Sales receipt((當天)'!A:A,'Sales receipt((當天)'!A2,'Sales receipt((當天)'!B:B,'Sales receipt((當天)'!B6,'Sales receipt((當天)'!H:H,{"MALE","男"})) -> 1971 | C60: =SUM(SUMIFS('Sales receipt((當天)'!J:J,'Sales receipt((當天)'!A:A,'Sales receipt((當天)'!A2,'Sales receipt((當天)'!B:B,'Sales receipt((當天)'!B6,'Sales receipt((當天)'!H:H,{"MALE","男"})) -> 2 | D60: =SUM(SUMIFS('Sales receipt((當天)'!K:K,'Sales receipt((當天)'!A:A,'Sales receipt((當天)'!A3,'Sales receipt((當天)'!B:B,'Sales receipt((當天)'!B6,'Sales receipt((當天)'!H:H,{"MALE","男"})) -> 0 | E60: =SUM(SUMIFS('Sales receipt((當天)'!J:J,'Sales receipt((當天)'!A:A,'Sales receipt((當天)'!A3,'Sales receipt((當天)'!B:B,'Sales receipt((當天)'!B6,'Sales receipt((當天)'!H:H,{"MALE","男"})) -> 0 | F60: =SUM(SUMIFS('Sales receipt((當天)'!K:K,'Sales receipt((當天)'!A:A,'Sales receipt((當天)'!A7,'Sales receipt((當天)'!B:B,'Sales receipt((當天)'!B6,'Sales receipt((當天)'!H:H,{"MALE","男"})) -> 0 | G60: =SUM(SUMIFS('Sales receipt((當天)'!J:J,'Sales receipt((當天)'!A:A,'Sales receipt((當天)'!A7,'Sales receipt((當天)'!B:B,'Sales receipt((當天)'!B6,'Sales receipt((當天)'!H:H,{"MALE","男"})) -> 0 | H60: =SUM(SUMIFS('Sales receipt((當天)'!K:K,'Sales receipt((當天)'!A:A,'Sales receipt((當天)'!A6,'Sales receipt((當天)'!B:B,'Sales receipt((當天)'!B6,'Sales receipt((當天)'!H:H,{"MALE","男"})) -> 890 | I60: =SUM(SUMIFS('Sales receipt((當天)'!J:J,'Sales receipt((當天)'!A:A,'Sales receipt((當天)'!A6,'Sales receipt((當天)'!B:B,'Sales receipt((當天)'!B6,'Sales receipt((當天)'!H:H,{"MALE","男"})) -> 1 | J60: =SUM(SUMIFS('Sales receipt((當天)'!K:K,'Sales receipt((當天)'!A:A,'Sales receipt((當天)'!A8,'Sales receipt((當天)'!B:B,'Sales receipt((當天)'!B6,'Sales receipt((當天)'!H:H,{"MALE","男"})) -> 0 | K60: =SUM(SUMIFS('Sales receipt((當天)'!J:J,'Sales receipt((當天)'!A:A,'Sales receipt((當天)'!A8,'Sales receipt((當天)'!B:B,'Sales receipt((當天)'!B6,'Sales receipt((當天)'!H:H,{"MALE","男"})) -> 0 | L60: =SUM(SUMIFS('Sales receipt((當天)'!K:K,'Sales receipt((當天)'!A:A,'Sales receipt((當天)'!A4,'Sales receipt((當天)'!B:B,'Sales receipt((當天)'!B6,'Sales receipt((當天)'!H:H,{"MALE","男"})) -> 0 | M60: =SUM(SUMIFS('Sales receipt((當天)'!J:J,'Sales receipt((當天)'!A:A,'Sales receipt((當天)'!A4,'Sales receipt((當天)'!B:B,'Sales receipt((當天)'!B6,'Sales receipt((當天)'!H:H,{"MALE","男"})) -> 0 | N60: =SUM(SUMIFS('Sales receipt((當天)'!K:K,'Sales receipt((當天)'!A:A,'Sales receipt((當天)'!A5,'Sales receipt((當天)'!B:B,'Sales receipt((當天)'!B6,'Sales receipt((當天)'!H:H,{"MALE","男"})) -> 1048 | O60: =SUM(SUMIFS('Sales receipt((當天)'!J:J,'Sales receipt((當天)'!A:A,'Sales receipt((當天)'!A5,'Sales receipt((當天)'!B:B,'Sales receipt((當天)'!B6,'Sales receipt((當天)'!H:H,{"MALE","男"})) -> 1
A61: F | B61: =SUM(SUMIFS('Sales receipt((當天)'!K:K,'Sales receipt((當天)'!A:A,'Sales receipt((當天)'!A2,'Sales receipt((當天)'!B:B,'Sales receipt((當天)'!B6,'Sales receipt((當天)'!H:H,{"FEMALE","女"})) -> 2844 | C61: =SUM(SUMIFS('Sales receipt((當天)'!J:J,'Sales receipt((當天)'!A:A,'Sales receipt((當天)'!A2,'Sales receipt((當天)'!B:B,'Sales receipt((當天)'!B6,'Sales receipt((當天)'!H:H,{"FEMALE","女"})) -> 3 | D61: =SUM(SUMIFS('Sales receipt((當天)'!K:K,'Sales receipt((當天)'!A:A,'Sales receipt((當天)'!A3,'Sales receipt((當天)'!B:B,'Sales receipt((當天)'!B6,'Sales receipt((當天)'!H:H,{"FEMALE","女"})) -> 0 | E61: =SUM(SUMIFS('Sales receipt((當天)'!J:J,'Sales receipt((當天)'!A:A,'Sales receipt((當天)'!A3,'Sales receipt((當天)'!B:B,'Sales receipt((當天)'!B6,'Sales receipt((當天)'!H:H,{"FEMALE","女"})) -> 0 | F61: =SUM(SUMIFS('Sales receipt((當天)'!K:K,'Sales receipt((當天)'!A:A,'Sales receipt((當天)'!A7,'Sales receipt((當天)'!B:B,'Sales receipt((當天)'!B6,'Sales receipt((當天)'!H:H,{"FEMALE","女"})) -> 0 | G61: =SUM(SUMIFS('Sales receipt((當天)'!J:J,'Sales receipt((當天)'!A:A,'Sales receipt((當天)'!A7,'Sales receipt((當天)'!B:B,'Sales receipt((當天)'!B6,'Sales receipt((當天)'!H:H,{"FEMALE","女"})) -> 0 | H61: =SUM(SUMIFS('Sales receipt((當天)'!K:K,'Sales receipt((當天)'!A:A,'Sales receipt((當天)'!A6,'Sales receipt((當天)'!B:B,'Sales receipt((當天)'!B6,'Sales receipt((當天)'!H:H,{"FEMALE","女"})) -> 0 | I61: =SUM(SUMIFS('Sales receipt((當天)'!J:J,'Sales receipt((當天)'!A:A,'Sales receipt((當天)'!A6,'Sales receipt((當天)'!B:B,'Sales receipt((當天)'!B6,'Sales receipt((當天)'!H:H,{"FEMALE","女"})) -> 0 | J61: =SUM(SUMIFS('Sales receipt((當天)'!K:K,'Sales receipt((當天)'!A:A,'Sales receipt((當天)'!A8,'Sales receipt((當天)'!B:B,'Sales receipt((當天)'!B6,'Sales receipt((當天)'!H:H,{"FEMALE","女"})) -> 1664 | K61: =SUM(SUMIFS('Sales receipt((當天)'!J:J,'Sales receipt((當天)'!A:A,'Sales receipt((當天)'!A8,'Sales receipt((當天)'!B:B,'Sales receipt((當天)'!B6,'Sales receipt((當天)'!H:H,{"FEMALE","女"})) -> 2 | L61: =SUM(SUMIFS('Sales receipt((當天)'!K:K,'Sales receipt((當天)'!A:A,'Sales receipt((當天)'!A4,'Sales receipt((當天)'!B:B,'Sales receipt((當天)'!B6,'Sales receipt((當天)'!H:H,{"FEMALE","女"})) -> 0 | M61: =SUM(SUMIFS('Sales receipt((當天)'!J:J,'Sales receipt((當天)'!A:A,'Sales receipt((當天)'!A4,'Sales receipt((當天)'!B:B,'Sales receipt((當天)'!B6,'Sales receipt((當天)'!H:H,{"FEMALE","女"})) -> 0 | N61: =SUM(SUMIFS('Sales receipt((當天)'!K:K,'Sales receipt((當天)'!A:A,'Sales receipt((當天)'!A5,'Sales receipt((當天)'!B:B,'Sales receipt((當天)'!B6,'Sales receipt((當天)'!H:H,{"FEMALE","女"})) -> 0 | O61: =SUM(SUMIFS('Sales receipt((當天)'!J:J,'Sales receipt((當天)'!A:A,'Sales receipt((當天)'!A5,'Sales receipt((當天)'!B:B,'Sales receipt((當天)'!B6,'Sales receipt((當天)'!H:H,{"FEMALE","女"})) -> 0
A62: ACC | B62: =SUMIFS('Sales receipt((當天)'!K:K,'Sales receipt((當天)'!A:A,'Sales receipt((當天)'!A2,'Sales receipt((當天)'!B:B,'Sales receipt((當天)'!B5) -> 3114 | C62: =SUMIFS('Sales receipt((當天)'!J:J,'Sales receipt((當天)'!A:A,'Sales receipt((當天)'!A2,'Sales receipt((當天)'!B:B,'Sales receipt((當天)'!B5) -> 4 | D62: =SUMIFS('Sales receipt((當天)'!K:K,'Sales receipt((當天)'!A:A,'Sales receipt((當天)'!A3,'Sales receipt((當天)'!B:B,'Sales receipt((當天)'!B5) -> 0 | E62: =SUMIFS('Sales receipt((當天)'!J:J,'Sales receipt((當天)'!A:A,'Sales receipt((當天)'!A3,'Sales receipt((當天)'!B:B,'Sales receipt((當天)'!B5) -> 0 | F62: =SUMIFS('Sales receipt((當天)'!K:K,'Sales receipt((當天)'!A:A,'Sales receipt((當天)'!A7,'Sales receipt((當天)'!B:B,'Sales receipt((當天)'!B5) -> 0 | G62: =SUMIFS('Sales receipt((當天)'!J:J,'Sales receipt((當天)'!A:A,'Sales receipt((當天)'!A7,'Sales receipt((當天)'!B:B,'Sales receipt((當天)'!B5) -> 0 | H62: =SUMIFS('Sales receipt((當天)'!K:K,'Sales receipt((當天)'!A:A,'Sales receipt((當天)'!A6,'Sales receipt((當天)'!B:B,'Sales receipt((當天)'!B5) -> 0 | I62: =SUMIFS('Sales receipt((當天)'!J:J,'Sales receipt((當天)'!A:A,'Sales receipt((當天)'!A6,'Sales receipt((當天)'!B:B,'Sales receipt((當天)'!B5) -> 0 | J62: =SUMIFS('Sales receipt((當天)'!K:K,'Sales receipt((當天)'!A:A,'Sales receipt((當天)'!A8,'Sales receipt((當天)'!B:B,'Sales receipt((當天)'!B5) -> 723 | K62: =SUMIFS('Sales receipt((當天)'!J:J,'Sales receipt((當天)'!A:A,'Sales receipt((當天)'!A8,'Sales receipt((當天)'!B:B,'Sales receipt((當天)'!B5) -> 3 | L62: =SUMIFS('Sales receipt((當天)'!K:K,'Sales receipt((當天)'!A:A,'Sales receipt((當天)'!A4,'Sales receipt((當天)'!B:B,'Sales receipt((當天)'!B5) -> 0 | M62: =SUMIFS('Sales receipt((當天)'!J:J,'Sales receipt((當天)'!A:A,'Sales receipt((當天)'!A4,'Sales receipt((當天)'!B:B,'Sales receipt((當天)'!B5) -> 0 | N62: =SUMIFS('Sales receipt((當天)'!K:K,'Sales receipt((當天)'!A:A,'Sales receipt((當天)'!A5,'Sales receipt((當天)'!B:B,'Sales receipt((當天)'!B5) -> 1549 | O62: =SUMIFS('Sales receipt((當天)'!J:J,'Sales receipt((當天)'!A:A,'Sales receipt((當天)'!A5,'Sales receipt((當天)'!B:B,'Sales receipt((當天)'!B5) -> 4
B64: M0989 Susanna | D64: M2172 Janet | F64: M2801 Fanny | H64: M2798 Ryan | J64: M2902 Carmen | L64: M3060 Anson | N64: M1436 Khaki
B65: Sales | C65: Qty | D65: Sales | E65: Qty | F65: Sales | G65: Qty | H65: Sales | I65: Qty | J65: Sales | K65: Qty | L65: Sales | M65: Qty | N65: Sales | O65: Qty
A66: 內衣類 | B66: =SUMIFS('Sales receipt((當天)'!K:K,'Sales receipt((當天)'!A:A,'Sales receipt((當天)'!A2,'Sales receipt((當天)'!B:B,'Sales receipt((當天)'!B4,'Sales receipt((當天)'!C:C,'Sales receipt((當天)'!C2) -> 0 | C66: =SUMIFS('Sales receipt((當天)'!J:J,'Sales receipt((當天)'!A:A,'Sales receipt((當天)'!A2,'Sales receipt((當天)'!B:B,'Sales receipt((當天)'!B4,'Sales receipt((當天)'!C:C,'Sales receipt((當天)'!C2) -> 0 | D66: =SUMIFS('Sales receipt((當天)'!K:K,'Sales receipt((當天)'!A:A,'Sales receipt((當天)'!A3,'Sales receipt((當天)'!B:B,'Sales receipt((當天)'!B4,'Sales receipt((當天)'!C:C,'Sales receipt((當天)'!C2) -> 0 | E66: =SUMIFS('Sales receipt((當天)'!J:J,'Sales receipt((當天)'!A:A,'Sales receipt((當天)'!A3,'Sales receipt((當天)'!B:B,'Sales receipt((當天)'!B4,'Sales receipt((當天)'!C:C,'Sales receipt((當天)'!C2) -> 0 | F66: =SUMIFS('Sales receipt((當天)'!K:K,'Sales receipt((當天)'!A:A,'Sales receipt((當天)'!A7,'Sales receipt((當天)'!B:B,'Sales receipt((當天)'!B4,'Sales receipt((當天)'!C:C,'Sales receipt((當天)'!C2) -> 0 | G66: =SUMIFS('Sales receipt((當天)'!J:J,'Sales receipt((當天)'!A:A,'Sales receipt((當天)'!A7,'Sales receipt((當天)'!B:B,'Sales receipt((當天)'!B4,'Sales receipt((當天)'!C:C,'Sales receipt((當天)'!C2) -> 0 | H66: =SUMIFS('Sales receipt((當天)'!K:K,'Sales receipt((當天)'!A:A,'Sales receipt((當天)'!A6,'Sales receipt((當天)'!B:B,'Sales receipt((當天)'!B4,'Sales receipt((當天)'!C:C,'Sales receipt((當天)'!C2) -> 0 | I66: =SUMIFS('Sales receipt((當天)'!J:J,'Sales receipt((當天)'!A:A,'Sales receipt((當天)'!A6,'Sales receipt((當天)'!B:B,'Sales receipt((當天)'!B4,'Sales receipt((當天)'!C:C,'Sales receipt((當天)'!C2) -> 0 | J66: =SUMIFS('Sales receipt((當天)'!K:K,'Sales receipt((當天)'!A:A,'Sales receipt((當天)'!A8,'Sales receipt((當天)'!B:B,'Sales receipt((當天)'!B4,'Sales receipt((當天)'!C:C,'Sales receipt((當天)'!C2) -> 0 | K66: =SUMIFS('Sales receipt((當天)'!J:J,'Sales receipt((當天)'!A:A,'Sales receipt((當天)'!A8,'Sales receipt((當天)'!B:B,'Sales receipt((當天)'!B4,'Sales receipt((當天)'!C:C,'Sales receipt((當天)'!C2) -> 0 | L66: =SUMIFS('Sales receipt((當天)'!K:K,'Sales receipt((當天)'!A:A,'Sales receipt((當天)'!A4,'Sales receipt((當天)'!B:B,'Sales receipt((當天)'!B4,'Sales receipt((當天)'!C:C,'Sales receipt((當天)'!C2) -> 0 | M66: =SUMIFS('Sales receipt((當天)'!J:J,'Sales receipt((當天)'!A:A,'Sales receipt((當天)'!A4,'Sales receipt((當天)'!B:B,'Sales receipt((當天)'!B4,'Sales receipt((當天)'!C:C,'Sales receipt((當天)'!C2) -> 0 | N66: =SUMIFS('Sales receipt((當天)'!K:K,'Sales receipt((當天)'!A:A,'Sales receipt((當天)'!A5,'Sales receipt((當天)'!B:B,'Sales receipt((當天)'!B4,'Sales receipt((當天)'!C:C,'Sales receipt((當天)'!C2) -> 0 | O66: =SUMIFS('Sales receipt((當天)'!J:J,'Sales receipt((當天)'!A:A,'Sales receipt((當天)'!A5,'Sales receipt((當天)'!B:B,'Sales receipt((當天)'!B4,'Sales receipt((當天)'!C:C,'Sales receipt((當天)'!C2) -> 0
A67: 內搭 | B67: =SUMIFS('Sales receipt((當天)'!K:K,'Sales receipt((當天)'!A:A,'Sales receipt((當天)'!A2,'Sales receipt((當天)'!B:B,'Sales receipt((當天)'!B4,'Sales receipt((當天)'!C:C,'Sales receipt((當天)'!C3) -> 0 | C67: =SUMIFS('Sales receipt((當天)'!J:J,'Sales receipt((當天)'!A:A,'Sales receipt((當天)'!A2,'Sales receipt((當天)'!B:B,'Sales receipt((當天)'!B4,'Sales receipt((當天)'!C:C,'Sales receipt((當天)'!C3) -> 0 | D67: =SUMIFS('Sales receipt((當天)'!K:K,'Sales receipt((當天)'!A:A,'Sales receipt((當天)'!A3,'Sales receipt((當天)'!B:B,'Sales receipt((當天)'!B4,'Sales receipt((當天)'!C:C,'Sales receipt((當天)'!C3) -> 0 | E67: =SUMIFS('Sales receipt((當天)'!J:J,'Sales receipt((當天)'!A:A,'Sales receipt((當天)'!A3,'Sales receipt((當天)'!B:B,'Sales receipt((當天)'!B4,'Sales receipt((當天)'!C:C,'Sales receipt((當天)'!C3) -> 0 | F67: =SUMIFS('Sales receipt((當天)'!K:K,'Sales receipt((當天)'!A:A,'Sales receipt((當天)'!A7,'Sales receipt((當天)'!B:B,'Sales receipt((當天)'!B4,'Sales receipt((當天)'!C:C,'Sales receipt((當天)'!C3) -> 0 | G67: =SUMIFS('Sales receipt((當天)'!J:J,'Sales receipt((當天)'!A:A,'Sales receipt((當天)'!A7,'Sales receipt((當天)'!B:B,'Sales receipt((當天)'!B4,'Sales receipt((當天)'!C:C,'Sales receipt((當天)'!C3) -> 0 | H67: =SUMIFS('Sales receipt((當天)'!K:K,'Sales receipt((當天)'!A:A,'Sales receipt((當天)'!A6,'Sales receipt((當天)'!B:B,'Sales receipt((當天)'!B4,'Sales receipt((當天)'!C:C,'Sales receipt((當天)'!C3) -> 774 | I67: =SUMIFS('Sales receipt((當天)'!J:J,'Sales receipt((當天)'!A:A,'Sales receipt((當天)'!A6,'Sales receipt((當天)'!B:B,'Sales receipt((當天)'!B4,'Sales receipt((當天)'!C:C,'Sales receipt((當天)'!C3) -> 1 | J67: =SUMIFS('Sales receipt((當天)'!K:K,'Sales receipt((當天)'!A:A,'Sales receipt((當天)'!A8,'Sales receipt((當天)'!B:B,'Sales receipt((當天)'!B4,'Sales receipt((當天)'!C:C,'Sales receipt((當天)'!C3) -> 0 | K67: =SUMIFS('Sales receipt((當天)'!J:J,'Sales receipt((當天)'!A:A,'Sales receipt((當天)'!A8,'Sales receipt((當天)'!B:B,'Sales receipt((當天)'!B4,'Sales receipt((當天)'!C:C,'Sales receipt((當天)'!C3) -> 0 | L67: =SUMIFS('Sales receipt((當天)'!K:K,'Sales receipt((當天)'!A:A,'Sales receipt((當天)'!A4,'Sales receipt((當天)'!B:B,'Sales receipt((當天)'!B4,'Sales receipt((當天)'!C:C,'Sales receipt((當天)'!C3) -> 0 | M67: =SUMIFS('Sales receipt((當天)'!J:J,'Sales receipt((當天)'!A:A,'Sales receipt((當天)'!A4,'Sales receipt((當天)'!B:B,'Sales receipt((當天)'!B4,'Sales receipt((當天)'!C:C,'Sales receipt((當天)'!C3) -> 0 | N67: =SUMIFS('Sales receipt((當天)'!K:K,'Sales receipt((當天)'!A:A,'Sales receipt((當天)'!A5,'Sales receipt((當天)'!B:B,'Sales receipt((當天)'!B4,'Sales receipt((當天)'!C:C,'Sales receipt((當天)'!C3) -> 0 | O67: =SUMIFS('Sales receipt((當天)'!J:J,'Sales receipt((當天)'!A:A,'Sales receipt((當天)'!A5,'Sales receipt((當天)'!B:B,'Sales receipt((當天)'!B4,'Sales receipt((當天)'!C:C,'Sales receipt((當天)'!C3) -> 0
A68: 編織衫 | B68: =SUMIFS('Sales receipt((當天)'!K:K,'Sales receipt((當天)'!A:A,'Sales receipt((當天)'!A2,'Sales receipt((當天)'!B:B,'Sales receipt((當天)'!B4,'Sales receipt((當天)'!C:C,'Sales receipt((當天)'!C13) -> 2006 | C68: =SUMIFS('Sales receipt((當天)'!J:J,'Sales receipt((當天)'!A:A,'Sales receipt((當天)'!A2,'Sales receipt((當天)'!B:B,'Sales receipt((當天)'!B4,'Sales receipt((當天)'!C:C,'Sales receipt((當天)'!C13) -> 2 | D68: =SUMIFS('Sales receipt((當天)'!K:K,'Sales receipt((當天)'!A:A,'Sales receipt((當天)'!A3,'Sales receipt((當天)'!B:B,'Sales receipt((當天)'!B4,'Sales receipt((當天)'!C:C,'Sales receipt((當天)'!C13) -> 0 | E68: =SUMIFS('Sales receipt((當天)'!J:J,'Sales receipt((當天)'!A:A,'Sales receipt((當天)'!A3,'Sales receipt((當天)'!B:B,'Sales receipt((當天)'!B4,'Sales receipt((當天)'!C:C,'Sales receipt((當天)'!C13) -> 0 | F68: =SUMIFS('Sales receipt((當天)'!K:K,'Sales receipt((當天)'!A:A,'Sales receipt((當天)'!A7,'Sales receipt((當天)'!B:B,'Sales receipt((當天)'!B4,'Sales receipt((當天)'!C:C,'Sales receipt((當天)'!C13) -> 0 | G68: =SUMIFS('Sales receipt((當天)'!J:J,'Sales receipt((當天)'!A:A,'Sales receipt((當天)'!A7,'Sales receipt((當天)'!B:B,'Sales receipt((當天)'!B4,'Sales receipt((當天)'!C:C,'Sales receipt((當天)'!C13) -> 0 | H68: =SUMIFS('Sales receipt((當天)'!K:K,'Sales receipt((當天)'!A:A,'Sales receipt((當天)'!A6,'Sales receipt((當天)'!B:B,'Sales receipt((當天)'!B4,'Sales receipt((當天)'!C:C,'Sales receipt((當天)'!C13) -> 0 | I68: =SUMIFS('Sales receipt((當天)'!J:J,'Sales receipt((當天)'!A:A,'Sales receipt((當天)'!A6,'Sales receipt((當天)'!B:B,'Sales receipt((當天)'!B4,'Sales receipt((當天)'!C:C,'Sales receipt((當天)'!C13) -> 0 | J68: =SUMIFS('Sales receipt((當天)'!K:K,'Sales receipt((當天)'!A:A,'Sales receipt((當天)'!A8,'Sales receipt((當天)'!B:B,'Sales receipt((當天)'!B4,'Sales receipt((當天)'!C:C,'Sales receipt((當天)'!C13) -> 862 | K68: =SUMIFS('Sales receipt((當天)'!J:J,'Sales receipt((當天)'!A:A,'Sales receipt((當天)'!A8,'Sales receipt((當天)'!B:B,'Sales receipt((當天)'!B4,'Sales receipt((當天)'!C:C,'Sales receipt((當天)'!C13) -> 1 | L68: =SUMIFS('Sales receipt((當天)'!K:K,'Sales receipt((當天)'!A:A,'Sales receipt((當天)'!A4,'Sales receipt((當天)'!B:B,'Sales receipt((當天)'!B4,'Sales receipt((當天)'!C:C,'Sales receipt((當天)'!C13) -> 0 | M68: =SUMIFS('Sales receipt((當天)'!J:J,'Sales receipt((當天)'!A:A,'Sales receipt((當天)'!A4,'Sales receipt((當天)'!B:B,'Sales receipt((當天)'!B4,'Sales receipt((當天)'!C:C,'Sales receipt((當天)'!C13) -> 0 | N68: =SUMIFS('Sales receipt((當天)'!K:K,'Sales receipt((當天)'!A:A,'Sales receipt((當天)'!A5,'Sales receipt((當天)'!B:B,'Sales receipt((當天)'!B4,'Sales receipt((當天)'!C:C,'Sales receipt((當天)'!C13) -> 0 | O68: =SUMIFS('Sales receipt((當天)'!J:J,'Sales receipt((當天)'!A:A,'Sales receipt((當天)'!A5,'Sales receipt((當天)'!B:B,'Sales receipt((當天)'!B4,'Sales receipt((當天)'!C:C,'Sales receipt((當天)'!C13) -> 0
A69: 襯衫 | B69: =SUMIFS('Sales receipt((當天)'!K:K,'Sales receipt((當天)'!A:A,'Sales receipt((當天)'!A2,'Sales receipt((當天)'!B:B,'Sales receipt((當天)'!B4,'Sales receipt((當天)'!C:C,'Sales receipt((當天)'!C14) -> 0 | C69: =SUMIFS('Sales receipt((當天)'!J:J,'Sales receipt((當天)'!A:A,'Sales receipt((當天)'!A2,'Sales receipt((當天)'!B:B,'Sales receipt((當天)'!B4,'Sales receipt((當天)'!C:C,'Sales receipt((當天)'!C14) -> 0 | D69: =SUMIFS('Sales receipt((當天)'!K:K,'Sales receipt((當天)'!A:A,'Sales receipt((當天)'!A3,'Sales receipt((當天)'!B:B,'Sales receipt((當天)'!B4,'Sales receipt((當天)'!C:C,'Sales receipt((當天)'!C14) -> 0 | E69: =SUMIFS('Sales receipt((當天)'!J:J,'Sales receipt((當天)'!A:A,'Sales receipt((當天)'!A3,'Sales receipt((當天)'!B:B,'Sales receipt((當天)'!B4,'Sales receipt((當天)'!C:C,'Sales receipt((當天)'!C14) -> 0 | F69: =SUMIFS('Sales receipt((當天)'!K:K,'Sales receipt((當天)'!A:A,'Sales receipt((當天)'!A7,'Sales receipt((當天)'!B:B,'Sales receipt((當天)'!B4,'Sales receipt((當天)'!C:C,'Sales receipt((當天)'!C14) -> 0 | G69: =SUMIFS('Sales receipt((當天)'!J:J,'Sales receipt((當天)'!A:A,'Sales receipt((當天)'!A7,'Sales receipt((當天)'!B:B,'Sales receipt((當天)'!B4,'Sales receipt((當天)'!C:C,'Sales receipt((當天)'!C14) -> 0 | H69: =SUMIFS('Sales receipt((當天)'!K:K,'Sales receipt((當天)'!A:A,'Sales receipt((當天)'!A6,'Sales receipt((當天)'!B:B,'Sales receipt((當天)'!B4,'Sales receipt((當天)'!C:C,'Sales receipt((當天)'!C14) -> 0 | I69: =SUMIFS('Sales receipt((當天)'!J:J,'Sales receipt((當天)'!A:A,'Sales receipt((當天)'!A6,'Sales receipt((當天)'!B:B,'Sales receipt((當天)'!B4,'Sales receipt((當天)'!C:C,'Sales receipt((當天)'!C14) -> 0 | J69: =SUMIFS('Sales receipt((當天)'!K:K,'Sales receipt((當天)'!A:A,'Sales receipt((當天)'!A8,'Sales receipt((當天)'!B:B,'Sales receipt((當天)'!B4,'Sales receipt((當天)'!C:C,'Sales receipt((當天)'!C14) -> 0 | K69: =SUMIFS('Sales receipt((當天)'!J:J,'Sales receipt((當天)'!A:A,'Sales receipt((當天)'!A8,'Sales receipt((當天)'!B:B,'Sales receipt((當天)'!B4,'Sales receipt((當天)'!C:C,'Sales receipt((當天)'!C14) -> 0 | L69: =SUMIFS('Sales receipt((當天)'!K:K,'Sales receipt((當天)'!A:A,'Sales receipt((當天)'!A4,'Sales receipt((當天)'!B:B,'Sales receipt((當天)'!B4,'Sales receipt((當天)'!C:C,'Sales receipt((當天)'!C14) -> 0 | M69: =SUMIFS('Sales receipt((當天)'!J:J,'Sales receipt((當天)'!A:A,'Sales receipt((當天)'!A4,'Sales receipt((當天)'!B:B,'Sales receipt((當天)'!B4,'Sales receipt((當天)'!C:C,'Sales receipt((當天)'!C14) -> 0 | N69: =SUMIFS('Sales receipt((當天)'!K:K,'Sales receipt((當天)'!A:A,'Sales receipt((當天)'!A5,'Sales receipt((當天)'!B:B,'Sales receipt((當天)'!B4,'Sales receipt((當天)'!C:C,'Sales receipt((當天)'!C14) -> 0 | O69: =SUMIFS('Sales receipt((當天)'!J:J,'Sales receipt((當天)'!A:A,'Sales receipt((當天)'!A5,'Sales receipt((當天)'!B:B,'Sales receipt((當天)'!B4,'Sales receipt((當天)'!C:C,'Sales receipt((當天)'!C14) -> 0
A70: 短T類 | B70: =SUMIFS('Sales receipt((當天)'!K:K,'Sales receipt((當天)'!A:A,'Sales receipt((當天)'!A2,'Sales receipt((當天)'!B:B,'Sales receipt((當天)'!B4,'Sales receipt((當天)'!C:C,'Sales receipt((當天)'!C10) -> 3203 | C70: =SUMIFS('Sales receipt((當天)'!J:J,'Sales receipt((當天)'!A:A,'Sales receipt((當天)'!A2,'Sales receipt((當天)'!B:B,'Sales receipt((當天)'!B4,'Sales receipt((當天)'!C:C,'Sales receipt((當天)'!C10) -> 4 | D70: =SUMIFS('Sales receipt((當天)'!K:K,'Sales receipt((當天)'!A:A,'Sales receipt((當天)'!A3,'Sales receipt((當天)'!B:B,'Sales receipt((當天)'!B4,'Sales receipt((當天)'!C:C,'Sales receipt((當天)'!C10) -> 0 | E70: =SUMIFS('Sales receipt((當天)'!J:J,'Sales receipt((當天)'!A:A,'Sales receipt((當天)'!A3,'Sales receipt((當天)'!B:B,'Sales receipt((當天)'!B4,'Sales receipt((當天)'!C:C,'Sales receipt((當天)'!C10) -> 0 | F70: =SUMIFS('Sales receipt((當天)'!K:K,'Sales receipt((當天)'!A:A,'Sales receipt((當天)'!A7,'Sales receipt((當天)'!B:B,'Sales receipt((當天)'!B4,'Sales receipt((當天)'!C:C,'Sales receipt((當天)'!C10) -> 0 | G70: =SUMIFS('Sales receipt((當天)'!J:J,'Sales receipt((當天)'!A:A,'Sales receipt((當天)'!A7,'Sales receipt((當天)'!B:B,'Sales receipt((當天)'!B4,'Sales receipt((當天)'!C:C,'Sales receipt((當天)'!C10) -> 0 | H70: =SUMIFS('Sales receipt((當天)'!K:K,'Sales receipt((當天)'!A:A,'Sales receipt((當天)'!A6,'Sales receipt((當天)'!B:B,'Sales receipt((當天)'!B4,'Sales receipt((當天)'!C:C,'Sales receipt((當天)'!C10) -> 7836 | I70: =SUMIFS('Sales receipt((當天)'!J:J,'Sales receipt((當天)'!A:A,'Sales receipt((當天)'!A6,'Sales receipt((當天)'!B:B,'Sales receipt((當天)'!B4,'Sales receipt((當天)'!C:C,'Sales receipt((當天)'!C10) -> 12 | J70: =SUMIFS('Sales receipt((當天)'!K:K,'Sales receipt((當天)'!A:A,'Sales receipt((當天)'!A8,'Sales receipt((當天)'!B:B,'Sales receipt((當天)'!B4,'Sales receipt((當天)'!C:C,'Sales receipt((當天)'!C10) -> 3309 | K70: =SUMIFS('Sales receipt((當天)'!J:J,'Sales receipt((當天)'!A:A,'Sales receipt((當天)'!A8,'Sales receipt((當天)'!B:B,'Sales receipt((當天)'!B4,'Sales receipt((當天)'!C:C,'Sales receipt((當天)'!C10) -> 6 | L70: =SUMIFS('Sales receipt((當天)'!K:K,'Sales receipt((當天)'!A:A,'Sales receipt((當天)'!A4,'Sales receipt((當天)'!B:B,'Sales receipt((當天)'!B4,'Sales receipt((當天)'!C:C,'Sales receipt((當天)'!C10) -> 0 | M70: =SUMIFS('Sales receipt((當天)'!J:J,'Sales receipt((當天)'!A:A,'Sales receipt((當天)'!A4,'Sales receipt((當天)'!B:B,'Sales receipt((當天)'!B4,'Sales receipt((當天)'!C:C,'Sales receipt((當天)'!C10) -> 0 | N70: =SUMIFS('Sales receipt((當天)'!K:K,'Sales receipt((當天)'!A:A,'Sales receipt((當天)'!A5,'Sales receipt((當天)'!B:B,'Sales receipt((當天)'!B4,'Sales receipt((當天)'!C:C,'Sales receipt((當天)'!C10) -> 2112 | O70: =SUMIFS('Sales receipt((當天)'!J:J,'Sales receipt((當天)'!A:A,'Sales receipt((當天)'!A5,'Sales receipt((當天)'!B:B,'Sales receipt((當天)'!B4,'Sales receipt((當天)'!C:C,'Sales receipt((當天)'!C10) -> 3
A71: 外套 | B71: =SUM(SUMIFS('Sales receipt((當天)'!K:K,'Sales receipt((當天)'!A:A,'Sales receipt((當天)'!A2,'Sales receipt((當天)'!B:B,'Sales receipt((當天)'!B4,'Sales receipt((當天)'!C:C,{"針織上衣","梭織上衣"})) -> 7875 | C71: =SUM(SUMIFS('Sales receipt((當天)'!J:J,'Sales receipt((當天)'!A:A,'Sales receipt((當天)'!A2,'Sales receipt((當天)'!B:B,'Sales receipt((當天)'!B4,'Sales receipt((當天)'!C:C,{"針織上衣","梭織上衣"})) -> 4 | D71: =SUM(SUMIFS('Sales receipt((當天)'!K:K,'Sales receipt((當天)'!A:A,'Sales receipt((當天)'!A3,'Sales receipt((當天)'!B:B,'Sales receipt((當天)'!B4,'Sales receipt((當天)'!C:C,{"針織上衣","梭織上衣"})) -> 0 | E71: =SUM(SUMIFS('Sales receipt((當天)'!J:J,'Sales receipt((當天)'!A:A,'Sales receipt((當天)'!A3,'Sales receipt((當天)'!B:B,'Sales receipt((當天)'!B4,'Sales receipt((當天)'!C:C,{"針織上衣","梭織上衣"})) -> 0 | F71: =SUM(SUMIFS('Sales receipt((當天)'!K:K,'Sales receipt((當天)'!A:A,'Sales receipt((當天)'!A7,'Sales receipt((當天)'!B:B,'Sales receipt((當天)'!B4,'Sales receipt((當天)'!C:C,{"針織上衣","梭織上衣"})) -> 0 | G71: =SUM(SUMIFS('Sales receipt((當天)'!J:J,'Sales receipt((當天)'!A:A,'Sales receipt((當天)'!A7,'Sales receipt((當天)'!B:B,'Sales receipt((當天)'!B4,'Sales receipt((當天)'!C:C,{"針織上衣","梭織上衣"})) -> 0 | H71: =SUM(SUMIFS('Sales receipt((當天)'!K:K,'Sales receipt((當天)'!A:A,'Sales receipt((當天)'!A6,'Sales receipt((當天)'!B:B,'Sales receipt((當天)'!B4,'Sales receipt((當天)'!C:C,{"針織上衣","梭織上衣"})) -> 8037 | I71: =SUM(SUMIFS('Sales receipt((當天)'!J:J,'Sales receipt((當天)'!A:A,'Sales receipt((當天)'!A6,'Sales receipt((當天)'!B:B,'Sales receipt((當天)'!B4,'Sales receipt((當天)'!C:C,{"針織上衣","梭織上衣"})) -> 4 | J71: =SUM(SUMIFS('Sales receipt((當天)'!K:K,'Sales receipt((當天)'!A:A,'Sales receipt((當天)'!A8,'Sales receipt((當天)'!B:B,'Sales receipt((當天)'!B4,'Sales receipt((當天)'!C:C,{"針織上衣","梭織上衣"})) -> 4504 | K71: =SUM(SUMIFS('Sales receipt((當天)'!J:J,'Sales receipt((當天)'!A:A,'Sales receipt((當天)'!A8,'Sales receipt((當天)'!B:B,'Sales receipt((當天)'!B4,'Sales receipt((當天)'!C:C,{"針織上衣","梭織上衣"})) -> 3 | L71: =SUM(SUMIFS('Sales receipt((當天)'!K:K,'Sales receipt((當天)'!A:A,'Sales receipt((當天)'!A4,'Sales receipt((當天)'!B:B,'Sales receipt((當天)'!B4,'Sales receipt((當天)'!C:C,{"針織上衣","梭織上衣"})) -> 0 | M71: =SUM(SUMIFS('Sales receipt((當天)'!J:J,'Sales receipt((當天)'!A:A,'Sales receipt((當天)'!A4,'Sales receipt((當天)'!B:B,'Sales receipt((當天)'!B4,'Sales receipt((當天)'!C:C,{"針織上衣","梭織上衣"})) -> 0 | N71: =SUM(SUMIFS('Sales receipt((當天)'!K:K,'Sales receipt((當天)'!A:A,'Sales receipt((當天)'!A5,'Sales receipt((當天)'!B:B,'Sales receipt((當天)'!B4,'Sales receipt((當天)'!C:C,{"針織上衣","梭織上衣"})) -> 1258 | O71: =SUM(SUMIFS('Sales receipt((當天)'!J:J,'Sales receipt((當天)'!A:A,'Sales receipt((當天)'!A5,'Sales receipt((當天)'!B:B,'Sales receipt((當天)'!B4,'Sales receipt((當天)'!C:C,{"針織上衣","梭織上衣"})) -> 1
A72: 羽絨服 | B72: =SUM(SUMIFS('Sales receipt((當天)'!K:K,'Sales receipt((當天)'!A:A,'Sales receipt((當天)'!A2,'Sales receipt((當天)'!B:B,'Sales receipt((當天)'!B4,'Sales receipt((當天)'!C:C,{"滑雪服","羽絨服","棉服","棉羽類"})) -> 0 | C72: =SUM(SUMIFS('Sales receipt((當天)'!J:J,'Sales receipt((當天)'!A:A,'Sales receipt((當天)'!A2,'Sales receipt((當天)'!B:B,'Sales receipt((當天)'!B4,'Sales receipt((當天)'!C:C,{"滑雪服","羽絨服","棉服","棉羽類"})) -> 0 | D72: =SUM(SUMIFS('Sales receipt((當天)'!K:K,'Sales receipt((當天)'!A:A,'Sales receipt((當天)'!A3,'Sales receipt((當天)'!B:B,'Sales receipt((當天)'!B4,'Sales receipt((當天)'!C:C,{"滑雪服","羽絨服","棉服","棉羽類"})) -> 0 | E72: =SUM(SUMIFS('Sales receipt((當天)'!J:J,'Sales receipt((當天)'!A:A,'Sales receipt((當天)'!A3,'Sales receipt((當天)'!B:B,'Sales receipt((當天)'!B4,'Sales receipt((當天)'!C:C,{"滑雪服","羽絨服","棉服","棉羽類"})) -> 0 | F72: =SUM(SUMIFS('Sales receipt((當天)'!K:K,'Sales receipt((當天)'!A:A,'Sales receipt((當天)'!A7,'Sales receipt((當天)'!B:B,'Sales receipt((當天)'!B4,'Sales receipt((當天)'!C:C,{"滑雪服","羽絨服","棉服","棉羽類"})) -> 0 | G72: =SUM(SUMIFS('Sales receipt((當天)'!J:J,'Sales receipt((當天)'!A:A,'Sales receipt((當天)'!A7,'Sales receipt((當天)'!B:B,'Sales receipt((當天)'!B4,'Sales receipt((當天)'!C:C,{"滑雪服","羽絨服","棉服","棉羽類"})) -> 0 | H72: =SUM(SUMIFS('Sales receipt((當天)'!K:K,'Sales receipt((當天)'!A:A,'Sales receipt((當天)'!A6,'Sales receipt((當天)'!B:B,'Sales receipt((當天)'!B4,'Sales receipt((當天)'!C:C,{"滑雪服","羽絨服","棉服","棉羽類"})) -> 0 | I72: =SUM(SUMIFS('Sales receipt((當天)'!J:J,'Sales receipt((當天)'!A:A,'Sales receipt((當天)'!A6,'Sales receipt((當天)'!B:B,'Sales receipt((當天)'!B4,'Sales receipt((當天)'!C:C,{"滑雪服","羽絨服","棉服","棉羽類"})) -> 0 | J72: =SUM(SUMIFS('Sales receipt((當天)'!K:K,'Sales receipt((當天)'!A:A,'Sales receipt((當天)'!A8,'Sales receipt((當天)'!B:B,'Sales receipt((當天)'!B4,'Sales receipt((當天)'!C:C,{"滑雪服","羽絨服","棉服","棉羽類"})) -> 0 | K72: =SUM(SUMIFS('Sales receipt((當天)'!J:J,'Sales receipt((當天)'!A:A,'Sales receipt((當天)'!A8,'Sales receipt((當天)'!B:B,'Sales receipt((當天)'!B4,'Sales receipt((當天)'!C:C,{"滑雪服","羽絨服","棉服","棉羽類"})) -> 0 | L72: =SUM(SUMIFS('Sales receipt((當天)'!K:K,'Sales receipt((當天)'!A:A,'Sales receipt((當天)'!A4,'Sales receipt((當天)'!B:B,'Sales receipt((當天)'!B4,'Sales receipt((當天)'!C:C,{"滑雪服","羽絨服","棉服","棉羽類"})) -> 0 | M72: =SUM(SUMIFS('Sales receipt((當天)'!J:J,'Sales receipt((當天)'!A:A,'Sales receipt((當天)'!A4,'Sales receipt((當天)'!B:B,'Sales receipt((當天)'!B4,'Sales receipt((當天)'!C:C,{"滑雪服","羽絨服","棉服","棉羽類"})) -> 0 | N72: =SUM(SUMIFS('Sales receipt((當天)'!K:K,'Sales receipt((當天)'!A:A,'Sales receipt((當天)'!A5,'Sales receipt((當天)'!B:B,'Sales receipt((當天)'!B4,'Sales receipt((當天)'!C:C,{"滑雪服","羽絨服","棉服","棉羽類"})) -> 0 | O72: =SUM(SUMIFS('Sales receipt((當天)'!J:J,'Sales receipt((當天)'!A:A,'Sales receipt((當天)'!A5,'Sales receipt((當天)'!B:B,'Sales receipt((當天)'!B4,'Sales receipt((當天)'!C:C,{"滑雪服","羽絨服","棉服","棉羽類"})) -> 0
A73: 上身 | B73: =SUM(B66:B72) -> 13084 | C73: 10 | D73: 0 | E73: 0 | F73: 0 | G73: 0 | H73: 16647 | I73: 17 | J73: 8675 | K73: 10 | L73: 0 | M73: 0 | N73: 3370 | O73: 4
A74: 褲類 | B74: =SUM(SUMIFS('Sales receipt((當天)'!K:K,'Sales receipt((當天)'!A:A,'Sales receipt((當天)'!A2,'Sales receipt((當天)'!B:B,'Sales receipt((當天)'!B4,'Sales receipt((當天)'!C:C,{"針織褲","梭織褲"})) -> 3836 | C74: =SUM(SUMIFS('Sales receipt((當天)'!J:J,'Sales receipt((當天)'!A:A,'Sales receipt((當天)'!A2,'Sales receipt((當天)'!B:B,'Sales receipt((當天)'!B4,'Sales receipt((當天)'!C:C,{"針織褲","梭織褲"})) -> 5 | D74: =SUM(SUMIFS('Sales receipt((當天)'!K:K,'Sales receipt((當天)'!A:A,'Sales receipt((當天)'!A3,'Sales receipt((當天)'!B:B,'Sales receipt((當天)'!B4,'Sales receipt((當天)'!C:C,{"針織褲","梭織褲"})) -> 0 | E74: =SUM(SUMIFS('Sales receipt((當天)'!J:J,'Sales receipt((當天)'!A:A,'Sales receipt((當天)'!A3,'Sales receipt((當天)'!B:B,'Sales receipt((當天)'!B4,'Sales receipt((當天)'!C:C,{"針織褲","梭織褲"})) -> 0 | F74: =SUM(SUMIFS('Sales receipt((當天)'!K:K,'Sales receipt((當天)'!A:A,'Sales receipt((當天)'!A7,'Sales receipt((當天)'!B:B,'Sales receipt((當天)'!B4,'Sales receipt((當天)'!C:C,{"針織褲","梭織褲"})) -> 0 | G74: =SUM(SUMIFS('Sales receipt((當天)'!J:J,'Sales receipt((當天)'!A:A,'Sales receipt((當天)'!A7,'Sales receipt((當天)'!B:B,'Sales receipt((當天)'!B4,'Sales receipt((當天)'!C:C,{"針織褲","梭織褲"})) -> 0 | H74: =SUM(SUMIFS('Sales receipt((當天)'!K:K,'Sales receipt((當天)'!A:A,'Sales receipt((當天)'!A6,'Sales receipt((當天)'!B:B,'Sales receipt((當天)'!B4,'Sales receipt((當天)'!C:C,{"針織褲","梭織褲"})) -> 796 | I74: =SUM(SUMIFS('Sales receipt((當天)'!J:J,'Sales receipt((當天)'!A:A,'Sales receipt((當天)'!A6,'Sales receipt((當天)'!B:B,'Sales receipt((當天)'!B4,'Sales receipt((當天)'!C:C,{"針織褲","梭織褲"})) -> 1 | J74: =SUM(SUMIFS('Sales receipt((當天)'!K:K,'Sales receipt((當天)'!A:A,'Sales receipt((當天)'!A8,'Sales receipt((當天)'!B:B,'Sales receipt((當天)'!B4,'Sales receipt((當天)'!C:C,{"針織褲","梭織褲"})) -> 1549 | K74: =SUM(SUMIFS('Sales receipt((當天)'!J:J,'Sales receipt((當天)'!A:A,'Sales receipt((當天)'!A8,'Sales receipt((當天)'!B:B,'Sales receipt((當天)'!B4,'Sales receipt((當天)'!C:C,{"針織褲","梭織褲"})) -> 2 | L74: =SUM(SUMIFS('Sales receipt((當天)'!K:K,'Sales receipt((當天)'!A:A,'Sales receipt((當天)'!A4,'Sales receipt((當天)'!B:B,'Sales receipt((當天)'!B4,'Sales receipt((當天)'!C:C,{"針織褲","梭織褲"})) -> 0 | M74: =SUM(SUMIFS('Sales receipt((當天)'!J:J,'Sales receipt((當天)'!A:A,'Sales receipt((當天)'!A4,'Sales receipt((當天)'!B:B,'Sales receipt((當天)'!B4,'Sales receipt((當天)'!C:C,{"針織褲","梭織褲"})) -> 0 | N74: =SUM(SUMIFS('Sales receipt((當天)'!K:K,'Sales receipt((當天)'!A:A,'Sales receipt((當天)'!A5,'Sales receipt((當天)'!B:B,'Sales receipt((當天)'!B4,'Sales receipt((當天)'!C:C,{"針織褲","梭織褲"})) -> 3635 | O74: =SUM(SUMIFS('Sales receipt((當天)'!J:J,'Sales receipt((當天)'!A:A,'Sales receipt((當天)'!A5,'Sales receipt((當天)'!B:B,'Sales receipt((當天)'!B4,'Sales receipt((當天)'!C:C,{"針織褲","梭織褲"})) -> 4
A75: 裙類 | B75: =SUMIFS('Sales receipt((當天)'!K:K,'Sales receipt((當天)'!A:A,'Sales receipt((當天)'!A2,'Sales receipt((當天)'!B:B,'Sales receipt((當天)'!B4,'Sales receipt((當天)'!C:C,'Sales receipt((當天)'!C12) -> 780 | C75: =SUMIFS('Sales receipt((當天)'!J:J,'Sales receipt((當天)'!A:A,'Sales receipt((當天)'!A2,'Sales receipt((當天)'!B:B,'Sales receipt((當天)'!B4,'Sales receipt((當天)'!C:C,'Sales receipt((當天)'!C12) -> 1 | D75: =SUMIFS('Sales receipt((當天)'!K:K,'Sales receipt((當天)'!A:A,'Sales receipt((當天)'!A3,'Sales receipt((當天)'!B:B,'Sales receipt((當天)'!B4,'Sales receipt((當天)'!C:C,'Sales receipt((當天)'!C12) -> 0 | E75: =SUMIFS('Sales receipt((當天)'!J:J,'Sales receipt((當天)'!A:A,'Sales receipt((當天)'!A3,'Sales receipt((當天)'!B:B,'Sales receipt((當天)'!B4,'Sales receipt((當天)'!C:C,'Sales receipt((當天)'!C12) -> 0 | F75: =SUMIFS('Sales receipt((當天)'!K:K,'Sales receipt((當天)'!A:A,'Sales receipt((當天)'!A7,'Sales receipt((當天)'!B:B,'Sales receipt((當天)'!B4,'Sales receipt((當天)'!C:C,'Sales receipt((當天)'!C12) -> 0 | G75: =SUMIFS('Sales receipt((當天)'!J:J,'Sales receipt((當天)'!A:A,'Sales receipt((當天)'!A7,'Sales receipt((當天)'!B:B,'Sales receipt((當天)'!B4,'Sales receipt((當天)'!C:C,'Sales receipt((當天)'!C12) -> 0 | H75: =SUMIFS('Sales receipt((當天)'!K:K,'Sales receipt((當天)'!A:A,'Sales receipt((當天)'!A6,'Sales receipt((當天)'!B:B,'Sales receipt((當天)'!B4,'Sales receipt((當天)'!C:C,'Sales receipt((當天)'!C12) -> 0 | I75: =SUMIFS('Sales receipt((當天)'!J:J,'Sales receipt((當天)'!A:A,'Sales receipt((當天)'!A6,'Sales receipt((當天)'!B:B,'Sales receipt((當天)'!B4,'Sales receipt((當天)'!C:C,'Sales receipt((當天)'!C12) -> 0 | J75: =SUMIFS('Sales receipt((當天)'!K:K,'Sales receipt((當天)'!A:A,'Sales receipt((當天)'!A8,'Sales receipt((當天)'!B:B,'Sales receipt((當天)'!B4,'Sales receipt((當天)'!C:C,'Sales receipt((當天)'!C12) -> 0 | K75: =SUMIFS('Sales receipt((當天)'!J:J,'Sales receipt((當天)'!A:A,'Sales receipt((當天)'!A8,'Sales receipt((當天)'!B:B,'Sales receipt((當天)'!B4,'Sales receipt((當天)'!C:C,'Sales receipt((當天)'!C12) -> 0 | L75: =SUMIFS('Sales receipt((當天)'!K:K,'Sales receipt((當天)'!A:A,'Sales receipt((當天)'!A4,'Sales receipt((當天)'!B:B,'Sales receipt((當天)'!B4,'Sales receipt((當天)'!C:C,'Sales receipt((當天)'!C12) -> 0 | M75: =SUMIFS('Sales receipt((當天)'!J:J,'Sales receipt((當天)'!A:A,'Sales receipt((當天)'!A4,'Sales receipt((當天)'!B:B,'Sales receipt((當天)'!B4,'Sales receipt((當天)'!C:C,'Sales receipt((當天)'!C12) -> 0 | N75: =SUMIFS('Sales receipt((當天)'!K:K,'Sales receipt((當天)'!A:A,'Sales receipt((當天)'!A5,'Sales receipt((當天)'!B:B,'Sales receipt((當天)'!B4,'Sales receipt((當天)'!C:C,'Sales receipt((當天)'!C12) -> 0 | O75: =SUMIFS('Sales receipt((當天)'!J:J,'Sales receipt((當天)'!A:A,'Sales receipt((當天)'!A5,'Sales receipt((當天)'!B:B,'Sales receipt((當天)'!B4,'Sales receipt((當天)'!C:C,'Sales receipt((當天)'!C12) -> 0
A76: 下身 | B76: =SUM(B74:B75) -> 4616 | C76: 6 | D76: 0 | E76: 0 | F76: 0 | G76: 0 | H76: 796 | I76: 1 | J76: 1549 | K76: 2 | L76: 0 | M76: 0 | N76: 3635 | O76: 4
A77: 鞋 | B77: =SUMIFS('Sales receipt((當天)'!K:K,'Sales receipt((當天)'!A:A,'Sales receipt((當天)'!A2,'Sales receipt((當天)'!B:B,'Sales receipt((當天)'!B6) -> 4815 | C77: =SUMIFS('Sales receipt((當天)'!J:J,'Sales receipt((當天)'!A:A,'Sales receipt((當天)'!A2,'Sales receipt((當天)'!B:B,'Sales receipt((當天)'!B6) -> 5 | D77: =SUMIFS('Sales receipt((當天)'!K:K,'Sales receipt((當天)'!A:A,'Sales receipt((當天)'!A3,'Sales receipt((當天)'!B:B,'Sales receipt((當天)'!B6) -> 0 | E77: =SUMIFS('Sales receipt((當天)'!J:J,'Sales receipt((當天)'!A:A,'Sales receipt((當天)'!A3,'Sales receipt((當天)'!B:B,'Sales receipt((當天)'!B6) -> 0 | F77: =SUMIFS('Sales receipt((當天)'!K:K,'Sales receipt((當天)'!A:A,'Sales receipt((當天)'!A7,'Sales receipt((當天)'!B:B,'Sales receipt((當天)'!B6) -> 0 | G77: =SUMIFS('Sales receipt((當天)'!J:J,'Sales receipt((當天)'!A:A,'Sales receipt((當天)'!A7,'Sales receipt((當天)'!B:B,'Sales receipt((當天)'!B6) -> 0 | H77: =SUMIFS('Sales receipt((當天)'!K:K,'Sales receipt((當天)'!A:A,'Sales receipt((當天)'!A6,'Sales receipt((當天)'!B:B,'Sales receipt((當天)'!B6) -> 890 | I77: =SUMIFS('Sales receipt((當天)'!J:J,'Sales receipt((當天)'!A:A,'Sales receipt((當天)'!A6,'Sales receipt((當天)'!B:B,'Sales receipt((當天)'!B6) -> 1 | J77: =SUMIFS('Sales receipt((當天)'!K:K,'Sales receipt((當天)'!A:A,'Sales receipt((當天)'!A8,'Sales receipt((當天)'!B:B,'Sales receipt((當天)'!B6) -> 1664 | K77: =SUMIFS('Sales receipt((當天)'!J:J,'Sales receipt((當天)'!A:A,'Sales receipt((當天)'!A8,'Sales receipt((當天)'!B:B,'Sales receipt((當天)'!B6) -> 2 | L77: =SUMIFS('Sales receipt((當天)'!K:K,'Sales receipt((當天)'!A:A,'Sales receipt((當天)'!A4,'Sales receipt((當天)'!B:B,'Sales receipt((當天)'!B6) -> 0 | M77: =SUMIFS('Sales receipt((當天)'!J:J,'Sales receipt((當天)'!A:A,'Sales receipt((當天)'!A4,'Sales receipt((當天)'!B:B,'Sales receipt((當天)'!B6) -> 0 | N77: =SUMIFS('Sales receipt((當天)'!K:K,'Sales receipt((當天)'!A:A,'Sales receipt((當天)'!A5,'Sales receipt((當天)'!B:B,'Sales receipt((當天)'!B6) -> 1048 | O77: =SUMIFS('Sales receipt((當天)'!J:J,'Sales receipt((當天)'!A:A,'Sales receipt((當天)'!A5,'Sales receipt((當天)'!B:B,'Sales receipt((當天)'!B6) -> 1
A78: 配件 | B78: =SUMIFS('Sales receipt((當天)'!K:K,'Sales receipt((當天)'!A:A,'Sales receipt((當天)'!A2,'Sales receipt((當天)'!B:B,'Sales receipt((當天)'!B5) -> 3114 | C78: =SUMIFS('Sales receipt((當天)'!J:J,'Sales receipt((當天)'!A:A,'Sales receipt((當天)'!A2,'Sales receipt((當天)'!B:B,'Sales receipt((當天)'!B5) -> 4 | D78: =SUMIFS('Sales receipt((當天)'!K:K,'Sales receipt((當天)'!A:A,'Sales receipt((當天)'!A3,'Sales receipt((當天)'!B:B,'Sales receipt((當天)'!B5) -> 0 | E78: =SUMIFS('Sales receipt((當天)'!J:J,'Sales receipt((當天)'!A:A,'Sales receipt((當天)'!A3,'Sales receipt((當天)'!B:B,'Sales receipt((當天)'!B5) -> 0 | F78: =SUMIFS('Sales receipt((當天)'!K:K,'Sales receipt((當天)'!A:A,'Sales receipt((當天)'!A7,'Sales receipt((當天)'!B:B,'Sales receipt((當天)'!B5) -> 0 | G78: =SUMIFS('Sales receipt((當天)'!J:J,'Sales receipt((當天)'!A:A,'Sales receipt((當天)'!A7,'Sales receipt((當天)'!B:B,'Sales receipt((當天)'!B5) -> 0 | H78: =SUMIFS('Sales receipt((當天)'!K:K,'Sales receipt((當天)'!A:A,'Sales receipt((當天)'!A6,'Sales receipt((當天)'!B:B,'Sales receipt((當天)'!B5) -> 0 | I78: =SUMIFS('Sales receipt((當天)'!J:J,'Sales receipt((當天)'!A:A,'Sales receipt((當天)'!A6,'Sales receipt((當天)'!B:B,'Sales receipt((當天)'!B5) -> 0 | J78: =SUMIFS('Sales receipt((當天)'!K:K,'Sales receipt((當天)'!A:A,'Sales receipt((當天)'!A8,'Sales receipt((當天)'!B:B,'Sales receipt((當天)'!B5) -> 723 | K78: =SUMIFS('Sales receipt((當天)'!J:J,'Sales receipt((當天)'!A:A,'Sales receipt((當天)'!A8,'Sales receipt((當天)'!B:B,'Sales receipt((當天)'!B5) -> 3 | L78: =SUMIFS('Sales receipt((當天)'!K:K,'Sales receipt((當天)'!A:A,'Sales receipt((當天)'!A4,'Sales receipt((當天)'!B:B,'Sales receipt((當天)'!B5) -> 0 | M78: =SUMIFS('Sales receipt((當天)'!J:J,'Sales receipt((當天)'!A:A,'Sales receipt((當天)'!A4,'Sales receipt((當天)'!B:B,'Sales receipt((當天)'!B5) -> 0 | N78: =SUMIFS('Sales receipt((當天)'!K:K,'Sales receipt((當天)'!A:A,'Sales receipt((當天)'!A5,'Sales receipt((當天)'!B:B,'Sales receipt((當天)'!B5) -> 1549 | O78: =SUMIFS('Sales receipt((當天)'!J:J,'Sales receipt((當天)'!A:A,'Sales receipt((當天)'!A5,'Sales receipt((當天)'!B:B,'Sales receipt((當天)'!B5) -> 4
A79: 店鋪事項

Sheet 個人KPI
A1: 10月20-24號 個人品類銷售
A2: 個人數KPI | I2: 個人數KPI
A3: Susanna | B3: TW 4日 | C3: MTD | D3: ATV | E3: UPT | F3: NO | G3: QTY | I3: LW | J3: MTD | K3: ATV | L3: UPT | M3: NO | N3: QTY
C4: 49271 | D4: 2492 | E4: 3.4 | F4: 18 | G4: 62 | J4: 113747 | K4: 2917 | L4: 4.0 | M4: 39 | N4: 161
B5: VSLW | C5: =C4-J4 -> -64476 | D5: =D4-K4 -> -425 | E5: =E4-L4 -> -0.6 | F5: =F4-M4 -> -21 | G5: =G4-N4 -> -99
B7: 中類 | C7: 件數 | D7: 金額 | E7: VSLW尚欠 | I7: 中類 | J7: 件數 | K7: 金額
B8: 內搭 | C8: =SUMIFS('個人KPISales receipt(MTD）'!J:J,'個人KPISales receipt(MTD）'!A:A,'個人KPISales receipt(MTD）'!A2,'個人KPISales receipt(MTD）'!B:B,'個人KPISales receipt(MTD）'!B4,'個人KPISales receipt(MTD）'!C:C,'個人KPISales receipt(MTD）'!C2) -> 0 | D8: =SUMIFS('個人KPISales receipt(MTD）'!K:K,'個人KPISales receipt(MTD）'!A:A,'個人KPISales receipt(MTD）'!A2,'個人KPISales receipt(MTD）'!B:B,'個人KPISales receipt(MTD）'!B4,'個人KPISales receipt(MTD）'!C:C,'個人KPISales receipt(MTD）'!C2) -> 0 | E8: =C8-J8 -> -15 | I8: 內搭 | J8: 15 | K8: 12360 | L8: =J8-Q8 -> 15
B9: 針織上衣 | C9: =SUMIFS('個人KPISales receipt(MTD）'!J:J,'個人KPISales receipt(MTD）'!A:A,'個人KPISales receipt(MTD）'!A2,'個人KPISales receipt(MTD）'!B:B,'個人KPISales receipt(MTD）'!B4,'個人KPISales receipt(MTD）'!C:C,'個人KPISales receipt(MTD）'!C5) -> 1 | D9: =SUMIFS('個人KPISales receipt(MTD）'!K:K,'個人KPISales receipt(MTD）'!A:A,'個人KPISales receipt(MTD）'!A2,'個人KPISales receipt(MTD）'!B:B,'個人KPISales receipt(MTD）'!B4,'個人KPISales receipt(MTD）'!C:C,'個人KPISales receipt(MTD）'!C5) -> 1332 | E9: -3 | I9: 針織上衣 | J9: 4 | K9: 5301 | L9: 4
B10: 針織褲 | C10: =SUMIFS('個人KPISales receipt(MTD）'!J:J,'個人KPISales receipt(MTD）'!A:A,'個人KPISales receipt(MTD）'!A2,'個人KPISales receipt(MTD）'!B:B,'個人KPISales receipt(MTD）'!B4,'個人KPISales receipt(MTD）'!C:C,'個人KPISales receipt(MTD）'!C6) -> 2 | D10: =SUMIFS('個人KPISales receipt(MTD）'!K:K,'個人KPISales receipt(MTD）'!A:A,'個人KPISales receipt(MTD）'!A2,'個人KPISales receipt(MTD）'!B:B,'個人KPISales receipt(MTD）'!B4,'個人KPISales receipt(MTD）'!C:C,'個人KPISales receipt(MTD）'!C6) -> 1584 | E10: -17 | I10: 針織褲 | J10: 19 | K10: 16123 | L10: 19
B11: 梭織上衣 | C11: =SUMIFS('個人KPISales receipt(MTD）'!J:J,'個人KPISales receipt(MTD）'!A:A,'個人KPISales receipt(MTD）'!A2,'個人KPISales receipt(MTD）'!B:B,'個人KPISales receipt(MTD）'!B4,'個人KPISales receipt(MTD）'!C:C,'個人KPISales receipt(MTD）'!C7) -> 3 | D11: =SUMIFS('個人KPISales receipt(MTD）'!K:K,'個人KPISales receipt(MTD）'!A:A,'個人KPISales receipt(MTD）'!A2,'個人KPISales receipt(MTD）'!B:B,'個人KPISales receipt(MTD）'!B4,'個人KPISales receipt(MTD）'!C:C,'個人KPISales receipt(MTD）'!C7) -> 4440 | E11: -1 | I11: 梭織上衣 | J11: 4 | K11: 6389 | L11: 4
B12: 梭織褲 | C12: =SUMIFS('個人KPISales receipt(MTD）'!J:J,'個人KPISales receipt(MTD）'!A:A,'個人KPISales receipt(MTD）'!A2,'個人KPISales receipt(MTD）'!B:B,'個人KPISales receipt(MTD）'!B4,'個人KPISales receipt(MTD）'!C:C,'個人KPISales receipt(MTD）'!C8) -> 0 | D12: =SUMIFS('個人KPISales receipt(MTD）'!K:K,'個人KPISales receipt(MTD）'!A:A,'個人KPISales receipt(MTD）'!A2,'個人KPISales receipt(MTD）'!B:B,'個人KPISales receipt(MTD）'!B4,'個人KPISales receipt(MTD）'!C:C,'個人KPISales receipt(MTD）'!C8) -> 0 | E12: 0 | I12: 梭織褲 | J12: =SUMIFS('個人KPISales receipt(MTD）'!Q:Q,'個人KPISales receipt(MTD）'!H:H,'個人KPISales receipt(MTD）'!H2,'個人KPISales receipt(MTD）'!I:I,'個人KPISales receipt(MTD）'!I4,'個人KPISales receipt(MTD）'!J:J,'個人KPISales receipt(MTD）'!J8) -> 0 | K12: =SUMIFS('個人KPISales receipt(MTD）'!R:R,'個人KPISales receipt(MTD）'!H:H,'個人KPISales receipt(MTD）'!H2,'個人KPISales receipt(MTD）'!I:I,'個人KPISales receipt(MTD）'!I4,'個人KPISales receipt(MTD）'!J:J,'個人KPISales receipt(MTD）'!J8) -> 0 | L12: 0
B13: 短T類 | C13: =SUMIFS('個人KPISales receipt(MTD）'!J:J,'個人KPISales receipt(MTD）'!A:A,'個人KPISales receipt(MTD）'!A2,'個人KPISales receipt(MTD）'!B:B,'個人KPISales receipt(MTD）'!B4,'個人KPISales receipt(MTD）'!C:C,'個人KPISales receipt(MTD）'!C10) -> 10 | D13: =SUMIFS('個人KPISales receipt(MTD）'!K:K,'個人KPISales receipt(MTD）'!A:A,'個人KPISales receipt(MTD）'!A2,'個人KPISales receipt(MTD）'!B:B,'個人KPISales receipt(MTD）'!B4,'個人KPISales receipt(MTD）'!C:C,'個人KPISales receipt(MTD）'!C10) -> 8185 | E13: 7 | I13: 短T類 | J13: 3 | K13: 1594 | L13: 3
B14: 裙裝 | C14: =SUMIFS('個人KPISales receipt(MTD）'!J:J,'個人KPISales receipt(MTD）'!A:A,'個人KPISales receipt(MTD）'!A2,'個人KPISales receipt(MTD）'!B:B,'個人KPISales receipt(MTD）'!B4,'個人KPISales receipt(MTD）'!C:C,'個人KPISales receipt(MTD）'!C12) -> 0 | D14: =SUMIFS('個人KPISales receipt(MTD）'!K:K,'個人KPISales receipt(MTD）'!A:A,'個人KPISales receipt(MTD）'!A2,'個人KPISales receipt(MTD）'!B:B,'個人KPISales receipt(MTD）'!B4,'個人KPISales receipt(MTD）'!C:C,'個人KPISales receipt(MTD）'!C12) -> 0 | E14: 0 | I14: 裙裝 | J14: =SUMIFS('個人KPISales receipt(MTD）'!Q:Q,'個人KPISales receipt(MTD）'!H:H,'個人KPISales receipt(MTD）'!H2,'個人KPISales receipt(MTD）'!J:J,'個人KPISales receipt(MTD）'!J12) -> 0 | K14: =SUMIFS('個人KPISales receipt(MTD）'!R:R,'個人KPISales receipt(MTD）'!H:H,'個人KPISales receipt(MTD）'!H2,'個人KPISales receipt(MTD）'!I:I,'個人KPISales receipt(MTD）'!I4,'個人KPISales receipt(MTD）'!J:J,'個人KPISales receipt(MTD）'!J12) -> 0 | L14: 0
B15: 編織衫 | C15: =SUMIFS('個人KPISales receipt(MTD）'!J:J,'個人KPISales receipt(MTD）'!A:A,'個人KPISales receipt(MTD）'!A2,'個人KPISales receipt(MTD）'!B:B,'個人KPISales receipt(MTD）'!B4,'個人KPISales receipt(MTD）'!C:C,'個人KPISales receipt(MTD）'!C13) -> 1 | D15: =SUMIFS('個人KPISales receipt(MTD）'!K:K,'個人KPISales receipt(MTD）'!A:A,'個人KPISales receipt(MTD）'!A2,'個人KPISales receipt(MTD）'!B:B,'個人KPISales receipt(MTD）'!B4,'個人KPISales receipt(MTD）'!C:C,'個人KPISales receipt(MTD）'!C13) -> 882 | E15: -3 | I15: 編織衫 | J15: 4 | K15: 4537 | L15: 4
B16: 襯衫 | C16: =SUMIFS('個人KPISales receipt(MTD）'!J:J,'個人KPISales receipt(MTD）'!A:A,'個人KPISales receipt(MTD）'!A2,'個人KPISales receipt(MTD）'!B:B,'個人KPISales receipt(MTD）'!B4,'個人KPISales receipt(MTD）'!C:C,'個人KPISales receipt(MTD）'!C14) -> 0 | D16: =SUMIFS('個人KPISales receipt(MTD）'!K:K,'個人KPISales receipt(MTD）'!A:A,'個人KPISales receipt(MTD）'!A2,'個人KPISales receipt(MTD）'!B:B,'個人KPISales receipt(MTD）'!B4,'個人KPISales receipt(MTD）'!C:C,'個人KPISales receipt(MTD）'!C14) -> 0 | E16: 0 | I16: 襯衫 | J16: =SUMIFS('個人KPISales receipt(MTD）'!Q:Q,'個人KPISales receipt(MTD）'!H:H,'個人KPISales receipt(MTD）'!H2,'個人KPISales receipt(MTD）'!I:I,'個人KPISales receipt(MTD）'!I4,'個人KPISales receipt(MTD）'!J:J,'個人KPISales receipt(MTD）'!J14) -> 0 | K16: =SUMIFS('個人KPISales receipt(MTD）'!R:R,'個人KPISales receipt(MTD）'!H:H,'個人KPISales receipt(MTD）'!H2,'個人KPISales receipt(MTD）'!I:I,'個人KPISales receipt(MTD）'!I4,'個人KPISales receipt(MTD）'!J:J,'個人KPISales receipt(MTD）'!J14) -> 0 | L16: 0
B17: 棉服 | C17: =SUMIFS('個人KPISales receipt(MTD）'!J:J,'個人KPISales receipt(MTD）'!A:A,'個人KPISales receipt(MTD）'!A2,'個人KPISales receipt(MTD）'!B:B,'個人KPISales receipt(MTD）'!B4,'個人KPISales receipt(MTD）'!C:C,'個人KPISales receipt(MTD）'!C9) -> 0 | D17: =SUMIFS('個人KPISales receipt(MTD）'!K:K,'個人KPISales receipt(MTD）'!A:A,'個人KPISales receipt(MTD）'!A2,'個人KPISales receipt(MTD）'!B:B,'個人KPISales receipt(MTD）'!B4,'個人KPISales receipt(MTD）'!C:C,'個人KPISales receipt(MTD）'!C9) -> 0 | E17: -1 | I17: 棉服 | J17: 1 | K17: 2406 | L17: 1
B18: 羽絨服 | C18: =SUMIFS('個人KPISales receipt(MTD）'!J:J,'個人KPISales receipt(MTD）'!A:A,'個人KPISales receipt(MTD）'!A2,'個人KPISales receipt(MTD）'!B:B,'個人KPISales receipt(MTD）'!B4,'個人KPISales receipt(MTD）'!C:C,'個人KPISales receipt(MTD）'!C4) -> 0 | D18: =SUMIFS('個人KPISales receipt(MTD）'!K:K,'個人KPISales receipt(MTD）'!A:A,'個人KPISales receipt(MTD）'!A2,'個人KPISales receipt(MTD）'!B:B,'個人KPISales receipt(MTD）'!B4,'個人KPISales receipt(MTD）'!C:C,'個人KPISales receipt(MTD）'!C4) -> 0 | E18: -21 | I18: 羽絨服 | J18: 21 | K18: 45228 | L18: 21
B19: 鞋 | C19: =SUMIFS('個人KPISales receipt(MTD）'!J:J,'個人KPISales receipt(MTD）'!A:A,'個人KPISales receipt(MTD）'!A2,'個人KPISales receipt(MTD）'!B:B,'個人KPISales receipt(MTD）'!B6) -> 8 | D19: =SUMIFS('個人KPISales receipt(MTD）'!K:K,'個人KPISales receipt(MTD）'!A:A,'個人KPISales receipt(MTD）'!A2,'個人KPISales receipt(MTD）'!B:B,'個人KPISales receipt(MTD）'!B6) -> 8062 | E19: -13 | I19: 鞋 | J19: 21 | K19: 18209 | L19: 21
A21: JANET | B21: TW 5日 | C21: MTD | D21: ATV | E21: UPT | F21: NO | G21: QTY | I21: LW | J21: MTD | K21: ATV | L21: UPT | M21: NO | N21: QTY
C22: 121093 | D22: 2676 | E22: 4.2 | F22: 48 | G22: 202 | J22: 108127 | K22: 2301 | L22: 3.0 | M22: 47 | N22: 157
B23: VSLW | C23: =C22-J22 -> 12966 | D23: =D22-K22 -> 375 | E23: =E22-L22 -> 1.2 | F23: =F22-M22 -> 1 | G23: =G22-N22 -> 45
B25: 中類 | C25: 件數 | D25: 金額 | E25: VSLW尚欠 | I25: 中類 | J25: 件數 | K25: 金額
B26: 內搭 | C26: =SUMIFS('個人KPISales receipt(MTD）'!J:J,'個人KPISales receipt(MTD）'!A:A,'個人KPISales receipt(MTD）'!A3,'個人KPISales receipt(MTD）'!B:B,'個人KPISales receipt(MTD）'!B4,'個人KPISales receipt(MTD）'!C:C,'個人KPISales receipt(MTD）'!C2) -> 0 | D26: =SUMIFS('個人KPISales receipt(MTD）'!K:K,'個人KPISales receipt(MTD）'!A:A,'個人KPISales receipt(MTD）'!A3,'個人KPISales receipt(MTD）'!B:B,'個人KPISales receipt(MTD）'!B4,'個人KPISales receipt(MTD）'!C:C,'個人KPISales receipt(MTD）'!C2) -> 0 | E26: =C26-J26 -> -20 | I26: 內搭 | J26: 20 | K26: 17510
B27: 針織上衣 | C27: =SUMIFS('個人KPISales receipt(MTD）'!J:J,'個人KPISales receipt(MTD）'!A:A,'個人KPISales receipt(MTD）'!A3,'個人KPISales receipt(MTD）'!B:B,'個人KPISales receipt(MTD）'!B4,'個人KPISales receipt(MTD）'!C:C,'個人KPISales receipt(MTD）'!C5) -> 0 | D27: =SUMIFS('個人KPISales receipt(MTD）'!K:K,'個人KPISales receipt(MTD）'!A:A,'個人KPISales receipt(MTD）'!A3,'個人KPISales receipt(MTD）'!B:B,'個人KPISales receipt(MTD）'!B4,'個人KPISales receipt(MTD）'!C:C,'個人KPISales receipt(MTD）'!C5) -> 0 | E27: -5 | I27: 針織上衣 | J27: 5 | K27: 6882
B28: 針織褲 | C28: =SUMIFS('個人KPISales receipt(MTD）'!J:J,'個人KPISales receipt(MTD）'!A:A,'個人KPISales receipt(MTD）'!A3,'個人KPISales receipt(MTD）'!B:B,'個人KPISales receipt(MTD）'!B4,'個人KPISales receipt(MTD）'!C:C,'個人KPISales receipt(MTD）'!C6) -> 0 | D28: =SUMIFS('個人KPISales receipt(MTD）'!K:K,'個人KPISales receipt(MTD）'!A:A,'個人KPISales receipt(MTD）'!A3,'個人KPISales receipt(MTD）'!B:B,'個人KPISales receipt(MTD）'!B4,'個人KPISales receipt(MTD）'!C:C,'個人KPISales receipt(MTD）'!C6) -> 0 | E28: -16 | I28: 針織褲 | J28: 16 | K28: 12405
B29: 梭織上衣 | C29: =SUMIFS('個人KPISales receipt(MTD）'!J:J,'個人KPISales receipt(MTD）'!A:A,'個人KPISales receipt(MTD）'!A3,'個人KPISales receipt(MTD）'!B:B,'個人KPISales receipt(MTD）'!B4,'個人KPISales receipt(MTD）'!C:C,'個人KPISales receipt(MTD）'!C7) -> 0 | D29: =SUMIFS('個人KPISales receipt(MTD）'!K:K,'個人KPISales receipt(MTD）'!A:A,'個人KPISales receipt(MTD）'!A3,'個人KPISales receipt(MTD）'!B:B,'個人KPISales receipt(MTD）'!B4,'個人KPISales receipt(MTD）'!C:C,'個人KPISales receipt(MTD）'!C7) -> 0 | E29: -5 | I29: 梭織上衣 | J29: 5 | K29: 7981
B30: 梭織褲 | C30: =SUMIFS('個人KPISales receipt(MTD）'!J:J,'個人KPISales receipt(MTD）'!A:A,'個人KPISales receipt(MTD）'!A3,'個人KPISales receipt(MTD）'!B:B,'個人KPISales receipt(MTD）'!B4,'個人KPISales receipt(MTD）'!C:C,'個人KPISales receipt(MTD）'!C8) -> 0 | D30: =SUMIFS('個人KPISales receipt(MTD）'!K:K,'個人KPISales receipt(MTD）'!A:A,'個人KPISales receipt(MTD）'!A3,'個人KPISales receipt(MTD）'!B:B,'個人KPISales receipt(MTD）'!B4,'個人KPISales receipt(MTD）'!C:C,'個人KPISales receipt(MTD）'!C8) -> 0 | E30: -2 | I30: 梭織褲 | J30: 2 | K30: 2787
B31: 短T類 | C31: =SUMIFS('個人KPISales receipt(MTD）'!J:J,'個人KPISales receipt(MTD）'!A:A,'個人KPISales receipt(MTD）'!A3,'個人KPISales receipt(MTD）'!B:B,'個人KPISales receipt(MTD）'!B4,'個人KPISales receipt(MTD）'!C:C,'個人KPISales receipt(MTD）'!C10) -> 0 | D31: =SUMIFS('個人KPISales receipt(MTD）'!K:K,'個人KPISales receipt(MTD）'!A:A,'個人KPISales receipt(MTD）'!A3,'個人KPISales receipt(MTD）'!B:B,'個人KPISales receipt(MTD）'!B4,'個人KPISales receipt(MTD）'!C:C,'個人KPISales receipt(MTD）'!C10) -> 0 | E31: 0 | I31: 短T類 | J31: 0 | K31: 0
B32: 裙裝 | C32: =SUMIFS('個人KPISales receipt(MTD）'!J:J,'個人KPISales receipt(MTD）'!A:A,'個人KPISales receipt(MTD）'!A3,'個人KPISales receipt(MTD）'!B:B,'個人KPISales receipt(MTD）'!B4,'個人KPISales receipt(MTD）'!C:C,'個人KPISales receipt(MTD）'!C12) -> 0 | D32: =SUMIFS('個人KPISales receipt(MTD）'!K:K,'個人KPISales receipt(MTD）'!A:A,'個人KPISales receipt(MTD）'!A3,'個人KPISales receipt(MTD）'!B:B,'個人KPISales receipt(MTD）'!B4,'個人KPISales receipt(MTD）'!C:C,'個人KPISales receipt(MTD）'!C12) -> 0 | E32: 0 | I32: 裙裝 | J32: 0 | K32: 0
B33: 編織衫 | C33: =SUMIFS('個人KPISales receipt(MTD）'!J:J,'個人KPISales receipt(MTD）'!A:A,'個人KPISales receipt(MTD）'!A3,'個人KPISales receipt(MTD）'!B:B,'個人KPISales receipt(MTD）'!B4,'個人KPISales receipt(MTD）'!C:C,'個人KPISales receipt(MTD）'!C13) -> 0 | D33: =SUMIFS('個人KPISales receipt(MTD）'!K:K,'個人KPISales receipt(MTD）'!A:A,'個人KPISales receipt(MTD）'!A3,'個人KPISales receipt(MTD）'!B:B,'個人KPISales receipt(MTD）'!B4,'個人KPISales receipt(MTD）'!C:C,'個人KPISales receipt(MTD）'!C13) -> 0 | E33: -3 | I33: 編織衫 | J33: 3 | K33: 3250
B34: 襯衫 | C34: =SUMIFS('個人KPISales receipt(MTD）'!J:J,'個人KPISales receipt(MTD）'!A:A,'個人KPISales receipt(MTD）'!A3,'個人KPISales receipt(MTD）'!B:B,'個人KPISales receipt(MTD）'!B4,'個人KPISales receipt(MTD）'!C:C,'個人KPISales receipt(MTD）'!C14) -> 0 | D34: =SUMIFS('個人KPISales receipt(MTD）'!K:K,'個人KPISales receipt(MTD）'!A:A,'個人KPISales receipt(MTD）'!A3,'個人KPISales receipt(MTD）'!B:B,'個人KPISales receipt(MTD）'!B4,'個人KPISales receipt(MTD）'!C:C,'個人KPISales receipt(MTD）'!C14) -> 0 | E34: 0 | I34: 襯衫 | J34: 0 | K34: 0
B35: 棉服 | C35: =SUMIFS('個人KPISales receipt(MTD）'!J:J,'個人KPISales receipt(MTD）'!A:A,'個人KPISales receipt(MTD）'!A3,'個人KPISales receipt(MTD）'!B:B,'個人KPISales receipt(MTD）'!B4,'個人KPISales receipt(MTD）'!C:C,'個人KPISales receipt(MTD）'!C9) -> 0 | D35: =SUMIFS('個人KPISales receipt(MTD）'!K:K,'個人KPISales receipt(MTD）'!A:A,'個人KPISales receipt(MTD）'!A3,'個人KPISales receipt(MTD）'!B:B,'個人KPISales receipt(MTD）'!B4,'個人KPISales receipt(MTD）'!C:C,'個人KPISales receipt(MTD）'!C9) -> 0 | E35: -1 | I35: 棉服 | J35: 1 | K35: 2564
B36: 羽絨服 | C36: =SUMIFS('個人KPISales receipt(MTD）'!J:J,'個人KPISales receipt(MTD）'!A:A,'個人KPISales receipt(MTD）'!A3,'個人KPISales receipt(MTD）'!B:B,'個人KPISales receipt(MTD）'!B4,'個人KPISales receipt(MTD）'!C:C,'個人KPISales receipt(MTD）'!C4) -> 0 | D36: =SUMIFS('個人KPISales receipt(MTD）'!K:K,'個人KPISales receipt(MTD）'!A:A,'個人KPISales receipt(MTD）'!A3,'個人KPISales receipt(MTD）'!B:B,'個人KPISales receipt(MTD）'!B4,'個人KPISales receipt(MTD）'!C:C,'個人KPISales receipt(MTD）'!C4) -> 0 | E36: -17 | I36: 羽絨服 | J36: 17 | K36: 34701
B37: 鞋 | C37: =SUMIFS('個人KPISales receipt(MTD）'!J:J,'個人KPISales receipt(MTD）'!A:A,'個人KPISales receipt(MTD）'!A3,'個人KPISales receipt(MTD）'!B:B,'個人KPISales receipt(MTD）'!B6) -> 0 | D37: =SUMIFS('個人KPISales receipt(MTD）'!K:K,'個人KPISales receipt(MTD）'!A:A,'個人KPISales receipt(MTD）'!A3,'個人KPISales receipt(MTD）'!B:B,'個人KPISales receipt(MTD）'!B6) -> 0 | E37: -21 | I37: 鞋 | J37: 21 | K37: 17622
A40: khaki | B40: TW 5日 | C40: MTD | D40: ATV | E40: UPT | F40: NO | G40: QTY | I40: LW | J40: MTD | K40: ATV | L40: UPT | M40: NO | N40: QTY
C41: 61209 | D41: 1993 | E41: 3.1 | F41: 30 | G41: 94 | J41: 98678 | K41: 2361 | L41: 3.3 | M41: 41 | N41: 136
B42: VSLW | C42: =C41-J41 -> -37469 | D42: =D41-K41 -> -368 | E42: =E41-L41 -> -0.2 | F42: =F41-M41 -> -11 | G42: =G41-N41 -> -42
B44: 中類 | C44: 件數 | D44: 金額 | E44: VSLW尚欠 | I44: 中類 | J44: 件數 | K44: 金額
B45: 內搭 | C45: =SUMIFS('個人KPISales receipt(MTD）'!J:J,'個人KPISales receipt(MTD）'!A:A,'個人KPISales receipt(MTD）'!A5,'個人KPISales receipt(MTD）'!B:B,'個人KPISales receipt(MTD）'!B4,'個人KPISales receipt(MTD）'!C:C,'個人KPISales receipt(MTD）'!C2) -> 1 | D45: =SUMIFS('個人KPISales receipt(MTD）'!K:K,'個人KPISales receipt(MTD）'!A:A,'個人KPISales receipt(MTD）'!A5,'個人KPISales receipt(MTD）'!B:B,'個人KPISales receipt(MTD）'!B4,'個人KPISales receipt(MTD）'!C:C,'個人KPISales receipt(MTD）'!C2) -> 792 | E45: =C45-J45 -> -13 | I45: 內搭 | J45: 14 | K45: 13489
B46: 針織上衣 | C46: =SUMIFS('個人KPISales receipt(MTD）'!J:J,'個人KPISales receipt(MTD）'!A:A,'個人KPISales receipt(MTD）'!A5,'個人KPISales receipt(MTD）'!B:B,'個人KPISales receipt(MTD）'!B4,'個人KPISales receipt(MTD）'!C:C,'個人KPISales receipt(MTD）'!C5) -> 5 | D46: =SUMIFS('個人KPISales receipt(MTD）'!K:K,'個人KPISales receipt(MTD）'!A:A,'個人KPISales receipt(MTD）'!A5,'個人KPISales receipt(MTD）'!B:B,'個人KPISales receipt(MTD）'!B4,'個人KPISales receipt(MTD）'!C:C,'個人KPISales receipt(MTD）'!C5) -> 5777 | E46: 1 | I46: 針織上衣 | J46: 4 | K46: 5076
B47: 針織褲 | C47: =SUMIFS('個人KPISales receipt(MTD）'!J:J,'個人KPISales receipt(MTD）'!A:A,'個人KPISales receipt(MTD）'!A5,'個人KPISales receipt(MTD）'!B:B,'個人KPISales receipt(MTD）'!B4,'個人KPISales receipt(MTD）'!C:C,'個人KPISales receipt(MTD）'!C6) -> 3 | D47: =SUMIFS('個人KPISales receipt(MTD）'!K:K,'個人KPISales receipt(MTD）'!A:A,'個人KPISales receipt(MTD）'!A5,'個人KPISales receipt(MTD）'!B:B,'個人KPISales receipt(MTD）'!B4,'個人KPISales receipt(MTD）'!C:C,'個人KPISales receipt(MTD）'!C6) -> 2235 | E47: -6 | I47: 針織褲 | J47: 9 | K47: 7374
B48: 梭織上衣 | C48: =SUMIFS('個人KPISales receipt(MTD）'!J:J,'個人KPISales receipt(MTD）'!A:A,'個人KPISales receipt(MTD）'!A5,'個人KPISales receipt(MTD）'!B:B,'個人KPISales receipt(MTD）'!B4,'個人KPISales receipt(MTD）'!C:C,'個人KPISales receipt(MTD）'!C7) -> 5 | D48: =SUMIFS('個人KPISales receipt(MTD）'!K:K,'個人KPISales receipt(MTD）'!A:A,'個人KPISales receipt(MTD）'!A5,'個人KPISales receipt(MTD）'!B:B,'個人KPISales receipt(MTD）'!B4,'個人KPISales receipt(MTD）'!C:C,'個人KPISales receipt(MTD）'!C7) -> 8796 | E48: -1 | I48: 梭織上衣 | J48: 6 | K48: 10007
B49: 梭織褲 | C49: =SUMIFS('個人KPISales receipt(MTD）'!J:J,'個人KPISales receipt(MTD）'!A:A,'個人KPISales receipt(MTD）'!A5,'個人KPISales receipt(MTD）'!B:B,'個人KPISales receipt(MTD）'!B4,'個人KPISales receipt(MTD）'!C:C,'個人KPISales receipt(MTD）'!C8) -> 0 | D49: =SUMIFS('個人KPISales receipt(MTD）'!K:K,'個人KPISales receipt(MTD）'!A:A,'個人KPISales receipt(MTD）'!A5,'個人KPISales receipt(MTD）'!B:B,'個人KPISales receipt(MTD）'!B4,'個人KPISales receipt(MTD）'!C:C,'個人KPISales receipt(MTD）'!C8) -> 0 | E49: -1 | I49: 梭織褲 | J49: 1 | K49: 1172
B50: 短T類 | C50: =SUMIFS('個人KPISales receipt(MTD）'!J:J,'個人KPISales receipt(MTD）'!A:A,'個人KPISales receipt(MTD）'!A5,'個人KPISales receipt(MTD）'!B:B,'個人KPISales receipt(MTD）'!B4,'個人KPISales receipt(MTD）'!C:C,'個人KPISales receipt(MTD）'!C10) -> 7 | D50: =SUMIFS('個人KPISales receipt(MTD）'!K:K,'個人KPISales receipt(MTD）'!A:A,'個人KPISales receipt(MTD）'!A5,'個人KPISales receipt(MTD）'!B:B,'個人KPISales receipt(MTD）'!B4,'個人KPISales receipt(MTD）'!C:C,'個人KPISales receipt(MTD）'!C10) -> 4272 | E50: 7 | I50: 短T類 | J50: 0 | K50: 0
B51: 裙裝 | C51: =SUMIFS('個人KPISales receipt(MTD）'!J:J,'個人KPISales receipt(MTD）'!A:A,'個人KPISales receipt(MTD）'!A5,'個人KPISales receipt(MTD）'!B:B,'個人KPISales receipt(MTD）'!B4,'個人KPISales receipt(MTD）'!C:C,'個人KPISales receipt(MTD）'!C12) -> 1 | D51: =SUMIFS('個人KPISales receipt(MTD）'!K:K,'個人KPISales receipt(MTD）'!A:A,'個人KPISales receipt(MTD）'!A5,'個人KPISales receipt(MTD）'!B:B,'個人KPISales receipt(MTD）'!B4,'個人KPISales receipt(MTD）'!C:C,'個人KPISales receipt(MTD）'!C12) -> 702 | E51: -1 | I51: 裙裝 | J51: 2 | K51: 2855
B52: 編織衫 | C52: =SUMIFS('個人KPISales receipt(MTD）'!J:J,'個人KPISales receipt(MTD）'!A:A,'個人KPISales receipt(MTD）'!A5,'個人KPISales receipt(MTD）'!B:B,'個人KPISales receipt(MTD）'!B4,'個人KPISales receipt(MTD）'!C:C,'個人KPISales receipt(MTD）'!C13) -> 0 | D52: =SUMIFS('個人KPISales receipt(MTD）'!K:K,'個人KPISales receipt(MTD）'!A:A,'個人KPISales receipt(MTD）'!A5,'個人KPISales receipt(MTD）'!B:B,'個人KPISales receipt(MTD）'!B4,'個人KPISales receipt(MTD）'!C:C,'個人KPISales receipt(MTD）'!C13) -> 0 | E52: -1 | I52: 編織衫 | J52: 1 | K52: 1437
B53: 襯衫 | C53: =SUMIFS('個人KPISales receipt(MTD）'!J:J,'個人KPISales receipt(MTD）'!A:A,'個人KPISales receipt(MTD）'!A5,'個人KPISales receipt(MTD）'!B:B,'個人KPISales receipt(MTD）'!B4,'個人KPISales receipt(MTD）'!C:C,'個人KPISales receipt(MTD）'!C14) -> 1 | D53: =SUMIFS('個人KPISales receipt(MTD）'!K:K,'個人KPISales receipt(MTD）'!A:A,'個人KPISales receipt(MTD）'!A5,'個人KPISales receipt(MTD）'!B:B,'個人KPISales receipt(MTD）'!B4,'個人KPISales receipt(MTD）'!C:C,'個人KPISales receipt(MTD）'!C14) -> 1062 | E53: 1 | I53: 襯衫 | J53: 0 | K53: 0
B54: 棉服 | C54: =SUMIFS('個人KPISales receipt(MTD）'!J:J,'個人KPISales receipt(MTD）'!A:A,'個人KPISales receipt(MTD）'!A5,'個人KPISales receipt(MTD）'!B:B,'個人KPISales receipt(MTD）'!B4,'個人KPISales receipt(MTD）'!C:C,'個人KPISales receipt(MTD）'!C9) -> 0 | D54: =SUMIFS('個人KPISales receipt(MTD）'!K:K,'個人KPISales receipt(MTD）'!A:A,'個人KPISales receipt(MTD）'!A5,'個人KPISales receipt(MTD）'!B:B,'個人KPISales receipt(MTD）'!B4,'個人KPISales receipt(MTD）'!C:C,'個人KPISales receipt(MTD）'!C9) -> 0 | E54: 0 | I54: 棉服 | J54: 0 | K54: 0
B55: 羽絨服 | C55: =SUMIFS('個人KPISales receipt(MTD）'!J:J,'個人KPISales receipt(MTD）'!A:A,'個人KPISales receipt(MTD）'!A5,'個人KPISales receipt(MTD）'!B:B,'個人KPISales receipt(MTD）'!B4,'個人KPISales receipt(MTD）'!C:C,'個人KPISales receipt(MTD）'!C4) -> 0 | D55: =SUMIFS('個人KPISales receipt(MTD）'!K:K,'個人KPISales receipt(MTD）'!A:A,'個人KPISales receipt(MTD）'!A5,'個人KPISales receipt(MTD）'!B:B,'個人KPISales receipt(MTD）'!B4,'個人KPISales receipt(MTD）'!C:C,'個人KPISales receipt(MTD）'!C4) -> 0 | E55: -16 | I55: 羽絨服 | J55: 16 | K55: 33849
B56: 鞋 | C56: =SUMIFS('個人KPISales receipt(MTD）'!J:J,'個人KPISales receipt(MTD）'!A:A,'個人KPISales receipt(MTD）'!A5,'個人KPISales receipt(MTD）'!B:B,'個人KPISales receipt(MTD）'!B6) -> 4 | D56: =SUMIFS('個人KPISales receipt(MTD）'!K:K,'個人KPISales receipt(MTD）'!A:A,'個人KPISales receipt(MTD）'!A5,'個人KPISales receipt(MTD）'!B:B,'個人KPISales receipt(MTD）'!B6) -> 4133 | E56: -12 | I56: 鞋 | J56: 16 | K56: 16104
A59: RYAN | B59: TW 4日 | C59: MTD | D59: ATV | E59: UPT | F59: NO | G59: QTY | I59: LW | J59: MTD | K59: ATV | L59: UPT | M59: NO | N59: QTY
C60: 152152 | D60: 3381 | E60: 4.0 | F60: 45 | G60: 200 | J60: 117140 | K60: 3167 | L60: 4.5 | M60: 37 | N60: 170
B61: VSLW | C61: =C60-J60 -> 35012 | D61: =D60-K60 -> 214 | E61: =E60-L60 -> -0.5 | F61: =F60-M60 -> 8 | G61: =G60-N60 -> 30
B63: 中類 | C63: 件數 | D63: 金額 | E63: VSLW尚欠 | I63: 中類 | J63: 件數 | K63: 金額
B64: 內搭 | C64: =SUMIFS('個人KPISales receipt(MTD）'!J:J,'個人KPISales receipt(MTD）'!A:A,'個人KPISales receipt(MTD）'!A6,'個人KPISales receipt(MTD）'!B:B,'個人KPISales receipt(MTD）'!B4,'個人KPISales receipt(MTD）'!C:C,'個人KPISales receipt(MTD）'!C2) -> 1 | D64: =SUMIFS('個人KPISales receipt(MTD）'!K:K,'個人KPISales receipt(MTD）'!A:A,'個人KPISales receipt(MTD）'!A6,'個人KPISales receipt(MTD）'!B:B,'個人KPISales receipt(MTD）'!B4,'個人KPISales receipt(MTD）'!C:C,'個人KPISales receipt(MTD）'!C2) -> 704 | E64: =C64-J64 -> -21 | I64: 內搭 | J64: 22 | K64: 19396
B65: 針織上衣 | C65: =SUMIFS('個人KPISales receipt(MTD）'!J:J,'個人KPISales receipt(MTD）'!A:A,'個人KPISales receipt(MTD）'!A6,'個人KPISales receipt(MTD）'!B:B,'個人KPISales receipt(MTD）'!B4,'個人KPISales receipt(MTD）'!C:C,'個人KPISales receipt(MTD）'!C5) -> 2 | D65: =SUMIFS('個人KPISales receipt(MTD）'!K:K,'個人KPISales receipt(MTD）'!A:A,'個人KPISales receipt(MTD）'!A6,'個人KPISales receipt(MTD）'!B:B,'個人KPISales receipt(MTD）'!B4,'個人KPISales receipt(MTD）'!C:C,'個人KPISales receipt(MTD）'!C5) -> 2712 | E65: -1 | I65: 針織上衣 | J65: 3 | K65: 3708
B66: 針織褲 | C66: =SUMIFS('個人KPISales receipt(MTD）'!J:J,'個人KPISales receipt(MTD）'!A:A,'個人KPISales receipt(MTD）'!A6,'個人KPISales receipt(MTD）'!B:B,'個人KPISales receipt(MTD）'!B4,'個人KPISales receipt(MTD）'!C:C,'個人KPISales receipt(MTD）'!C6) -> 1 | D66: =SUMIFS('個人KPISales receipt(MTD）'!K:K,'個人KPISales receipt(MTD）'!A:A,'個人KPISales receipt(MTD）'!A6,'個人KPISales receipt(MTD）'!B:B,'個人KPISales receipt(MTD）'!B4,'個人KPISales receipt(MTD）'!C:C,'個人KPISales receipt(MTD）'!C6) -> 792 | E66: -13 | I66: 針織褲 | J66: 14 | K66: 13610
B67: 梭織上衣 | C67: =SUMIFS('個人KPISales receipt(MTD）'!J:J,'個人KPISales receipt(MTD）'!A:A,'個人KPISales receipt(MTD）'!A6,'個人KPISales receipt(MTD）'!B:B,'個人KPISales receipt(MTD）'!B4,'個人KPISales receipt(MTD）'!C:C,'個人KPISales receipt(MTD）'!C7) -> 4 | D67: =SUMIFS('個人KPISales receipt(MTD）'!K:K,'個人KPISales receipt(MTD）'!A:A,'個人KPISales receipt(MTD）'!A6,'個人KPISales receipt(MTD）'!B:B,'個人KPISales receipt(MTD）'!B4,'個人KPISales receipt(MTD）'!C:C,'個人KPISales receipt(MTD）'!C7) -> 6474 | E67: -1 | I67: 梭織上衣 | J67: 5 | K67: 7293
B68: 梭織褲 | C68: =SUMIFS('個人KPISales receipt(MTD）'!J:J,'個人KPISales receipt(MTD）'!A:A,'個人KPISales receipt(MTD）'!A6,'個人KPISales receipt(MTD）'!B:B,'個人KPISales receipt(MTD）'!B4,'個人KPISales receipt(MTD）'!C:C,'個人KPISales receipt(MTD）'!C8) -> 2 | D68: =SUMIFS('個人KPISales receipt(MTD）'!K:K,'個人KPISales receipt(MTD）'!A:A,'個人KPISales receipt(MTD）'!A6,'個人KPISales receipt(MTD）'!B:B,'個人KPISales receipt(MTD）'!B4,'個人KPISales receipt(MTD）'!C:C,'個人KPISales receipt(MTD）'!C8) -> 2394 | E68: 2 | I68: 梭織褲 | J68: 0 | K68: 0
B69: 短T類 | C69: =SUMIFS('個人KPISales receipt(MTD）'!J:J,'個人KPISales receipt(MTD）'!A:A,'個人KPISales receipt(MTD）'!A6,'個人KPISales receipt(MTD）'!B:B,'個人KPISales receipt(MTD）'!B4,'個人KPISales receipt(MTD）'!C:C,'個人KPISales receipt(MTD）'!C10) -> 7 | D69: =SUMIFS('個人KPISales receipt(MTD）'!K:K,'個人KPISales receipt(MTD）'!A:A,'個人KPISales receipt(MTD）'!A6,'個人KPISales receipt(MTD）'!B:B,'個人KPISales receipt(MTD）'!B4,'個人KPISales receipt(MTD）'!C:C,'個人KPISales receipt(MTD）'!C10) -> 5532 | E69: 2 | I69: 短T類 | J69: 5 | K69: 2553
B70: 裙裝 | C70: =SUMIFS('個人KPISales receipt(MTD）'!J:J,'個人KPISales receipt(MTD）'!A:A,'個人KPISales receipt(MTD）'!A6,'個人KPISales receipt(MTD）'!B:B,'個人KPISales receipt(MTD）'!B4,'個人KPISales receipt(MTD）'!C:C,'個人KPISales receipt(MTD）'!C12) -> 0 | D70: =SUMIFS('個人KPISales receipt(MTD）'!K:K,'個人KPISales receipt(MTD）'!A:A,'個人KPISales receipt(MTD）'!A6,'個人KPISales receipt(MTD）'!B:B,'個人KPISales receipt(MTD）'!B4,'個人KPISales receipt(MTD）'!C:C,'個人KPISales receipt(MTD）'!C12) -> 0 | E70: 0 | I70: 裙裝 | J70: 0 | K70: 0
B71: 編織衫 | C71: =SUMIFS('個人KPISales receipt(MTD）'!J:J,'個人KPISales receipt(MTD）'!A:A,'個人KPISales receipt(MTD）'!A6,'個人KPISales receipt(MTD）'!B:B,'個人KPISales receipt(MTD）'!B4,'個人KPISales receipt(MTD）'!C:C,'個人KPISales receipt(MTD）'!C13) -> 0 | D71: =SUMIFS('個人KPISales receipt(MTD）'!K:K,'個人KPISales receipt(MTD）'!A:A,'個人KPISales receipt(MTD）'!A6,'個人KPISales receipt(MTD）'!B:B,'個人KPISales receipt(MTD）'!B4,'個人KPISales receipt(MTD）'!C:C,'個人KPISales receipt(MTD）'!C13) -> 0 | E71: -6 | I71: 編織衫 | J71: 6 | K71: 7230
B72: 襯衫 | C72: =SUMIFS('個人KPISales receipt(MTD）'!J:J,'個人KPISales receipt(MTD）'!A:A,'個人KPISales receipt(MTD）'!A6,'個人KPISales receipt(MTD）'!B:B,'個人KPISales receipt(MTD）'!B4,'個人KPISales receipt(MTD）'!C:C,'個人KPISales receipt(MTD）'!C14) -> 0 | D72: =SUMIFS('個人KPISales receipt(MTD）'!K:K,'個人KPISales receipt(MTD）'!A:A,'個人KPISales receipt(MTD）'!A6,'個人KPISales receipt(MTD）'!B:B,'個人KPISales receipt(MTD）'!B4,'個人KPISales receipt(MTD）'!C:C,'個人KPISales receipt(MTD）'!C14) -> 0 | E72: 0 | I72: 襯衫 | J72: 0 | K72: 0
B73: 棉服 | C73: =SUMIFS('個人KPISales receipt(MTD）'!J:J,'個人KPISales receipt(MTD）'!A:A,'個人KPISales receipt(MTD）'!A6,'個人KPISales receipt(MTD）'!B:B,'個人KPISales receipt(MTD）'!B4,'個人KPISales receipt(MTD）'!C:C,'個人KPISales receipt(MTD）'!C9) -> 0 | D73: =SUMIFS('個人KPISales receipt(MTD）'!K:K,'個人KPISales receipt(MTD）'!A:A,'個人KPISales receipt(MTD）'!A6,'個人KPISales receipt(MTD）'!B:B,'個人KPISales receipt(MTD）'!B4,'個人KPISales receipt(MTD）'!C:C,'個人KPISales receipt(MTD）'!C9) -> 0 | E73: -1 | I73: 棉服 | J73: 1 | K73: 3074
B74: 羽絨服 | C74: =SUMIFS('個人KPISales receipt(MTD）'!J:J,'個人KPISales receipt(MTD）'!A:A,'個人KPISales receipt(MTD）'!A6,'個人KPISales receipt(MTD）'!B:B,'個人KPISales receipt(MTD）'!B4,'個人KPISales receipt(MTD）'!C:C,'個人KPISales receipt(MTD）'!C4) -> 0 | D74: =SUMIFS('個人KPISales receipt(MTD）'!K:K,'個人KPISales receipt(MTD）'!A:A,'個人KPISales receipt(MTD）'!A6,'個人KPISales receipt(MTD）'!B:B,'個人KPISales receipt(MTD）'!B4,'個人KPISales receipt(MTD）'!C:C,'個人KPISales receipt(MTD）'!C4) -> 0 | E74: -15 | I74: 羽絨服 | J74: 15 | K74: 39517
B75: 鞋 | C75: =SUMIFS('個人KPISales receipt(MTD）'!J:J,'個人KPISales receipt(MTD）'!A:A,'個人KPISales receipt(MTD）'!A6,'個人KPISales receipt(MTD）'!B:B,'個人KPISales receipt(MTD）'!B6) -> 5 | D75: =SUMIFS('個人KPISales receipt(MTD）'!K:K,'個人KPISales receipt(MTD）'!A:A,'個人KPISales receipt(MTD）'!A6,'個人KPISales receipt(MTD）'!B:B,'個人KPISales receipt(MTD）'!B6) -> 4638 | E75: -17 | I75: 鞋 | J75: 22 | K75: 18405
A78: FANNY | B78: TW 6日 | C78: MTD | D78: ATV | E78: UPT | F78: NO | G78: QTY | I78: LW | J78: MTD | K78: ATV | L78: UPT | M78: NO | N78: QTY
C79: 187748 | D79: 3237 | E79: 4.7 | F79: 49 | G79: 225 | J79: 112080 | K79: 3187 | L79: 4.1 | M79: 33 | N79: 143
B80: VSLW | C80: =C79-J79 -> 75668 | D80: =D79-K79 -> 50 | E80: =E79-L79 -> 0.6 | F80: =F79-M79 -> 16 | G80: =G79-N79 -> 82
B82: 中類 | C82: 件數 | D82: 金額 | E82: VSLW尚欠 | I82: 中類 | J82: 件數 | K82: 金額
B83: 內搭 | C83: =SUMIFS('個人KPISales receipt(MTD）'!J:J,'個人KPISales receipt(MTD）'!A:A,'個人KPISales receipt(MTD）'!A7,'個人KPISales receipt(MTD）'!B:B,'個人KPISales receipt(MTD）'!B4,'個人KPISales receipt(MTD）'!C:C,'個人KPISales receipt(MTD）'!C2) -> 2 | D83: =SUMIFS('個人KPISales receipt(MTD）'!K:K,'個人KPISales receipt(MTD）'!A:A,'個人KPISales receipt(MTD）'!A7,'個人KPISales receipt(MTD）'!B:B,'個人KPISales receipt(MTD）'!B4,'個人KPISales receipt(MTD）'!C:C,'個人KPISales receipt(MTD）'!C2) -> 2216 | E83: -14 | I83: 內搭 | J83: 18 | K83: 16029
B84: 針織上衣 | C84: =SUMIFS('個人KPISales receipt(MTD）'!J:J,'個人KPISales receipt(MTD）'!A:A,'個人KPISales receipt(MTD）'!A7,'個人KPISales receipt(MTD）'!B:B,'個人KPISales receipt(MTD）'!B4,'個人KPISales receipt(MTD）'!C:C,'個人KPISales receipt(MTD）'!C5) -> 1 | D84: =SUMIFS('個人KPISales receipt(MTD）'!K:K,'個人KPISales receipt(MTD）'!A:A,'個人KPISales receipt(MTD）'!A7,'個人KPISales receipt(MTD）'!B:B,'個人KPISales receipt(MTD）'!B4,'個人KPISales receipt(MTD）'!C:C,'個人KPISales receipt(MTD）'!C5) -> 1184 | E84: =C84-J84 -> -2 | I84: 針織上衣 | J84: 3 | K84: 3867
B85: 針織褲 | C85: =SUMIFS('個人KPISales receipt(MTD）'!J:J,'個人KPISales receipt(MTD）'!A:A,'個人KPISales receipt(MTD）'!A7,'個人KPISales receipt(MTD）'!B:B,'個人KPISales receipt(MTD）'!B4,'個人KPISales receipt(MTD）'!C:C,'個人KPISales receipt(MTD）'!C6) -> 1 | D85: =SUMIFS('個人KPISales receipt(MTD）'!K:K,'個人KPISales receipt(MTD）'!A:A,'個人KPISales receipt(MTD）'!A7,'個人KPISales receipt(MTD）'!B:B,'個人KPISales receipt(MTD）'!B4,'個人KPISales receipt(MTD）'!C:C,'個人KPISales receipt(MTD）'!C6) -> 862 | E85: -17 | I85: 針織褲 | J85: 18 | K85: 15002
B86: 梭織上衣 | C86: =SUMIFS('個人KPISales receipt(MTD）'!J:J,'個人KPISales receipt(MTD）'!A:A,'個人KPISales receipt(MTD）'!A7,'個人KPISales receipt(MTD）'!B:B,'個人KPISales receipt(MTD）'!B4,'個人KPISales receipt(MTD）'!C:C,'個人KPISales receipt(MTD）'!C7) -> 5 | D86: =SUMIFS('個人KPISales receipt(MTD）'!K:K,'個人KPISales receipt(MTD）'!A:A,'個人KPISales receipt(MTD）'!A7,'個人KPISales receipt(MTD）'!B:B,'個人KPISales receipt(MTD）'!B4,'個人KPISales receipt(MTD）'!C:C,'個人KPISales receipt(MTD）'!C7) -> 7275 | E86: 3 | I86: 梭織上衣 | J86: 2 | K86: 3298
B87: 梭織褲 | C87: =SUMIFS('個人KPISales receipt(MTD）'!J:J,'個人KPISales receipt(MTD）'!A:A,'個人KPISales receipt(MTD）'!A7,'個人KPISales receipt(MTD）'!B:B,'個人KPISales receipt(MTD）'!B4,'個人KPISales receipt(MTD）'!C:C,'個人KPISales receipt(MTD）'!C8) -> 0 | D87: =SUMIFS('個人KPISales receipt(MTD）'!K:K,'個人KPISales receipt(MTD）'!A:A,'個人KPISales receipt(MTD）'!A7,'個人KPISales receipt(MTD）'!B:B,'個人KPISales receipt(MTD）'!B4,'個人KPISales receipt(MTD）'!C:C,'個人KPISales receipt(MTD）'!C8) -> 0 | E87: -4 | I87: 梭織褲 | J87: 4 | K87: 5676
B88: 短T類 | C88: =SUMIFS('個人KPISales receipt(MTD）'!J:J,'個人KPISales receipt(MTD）'!A:A,'個人KPISales receipt(MTD）'!A7,'個人KPISales receipt(MTD）'!B:B,'個人KPISales receipt(MTD）'!B4,'個人KPISales receipt(MTD）'!C:C,'個人KPISales receipt(MTD）'!C10) -> 12 | D88: =SUMIFS('個人KPISales receipt(MTD）'!K:K,'個人KPISales receipt(MTD）'!A:A,'個人KPISales receipt(MTD）'!A7,'個人KPISales receipt(MTD）'!B:B,'個人KPISales receipt(MTD）'!B4,'個人KPISales receipt(MTD）'!C:C,'個人KPISales receipt(MTD）'!C10) -> 10598 | E88: 11 | I88: 短T類 | J88: 1 | K88: 510
B89: 裙裝 | C89: =SUMIFS('個人KPISales receipt(MTD）'!J:J,'個人KPISales receipt(MTD）'!A:A,'個人KPISales receipt(MTD）'!A7,'個人KPISales receipt(MTD）'!B:B,'個人KPISales receipt(MTD）'!B4,'個人KPISales receipt(MTD）'!C:C,'個人KPISales receipt(MTD）'!C12) -> 1 | D89: =SUMIFS('個人KPISales receipt(MTD）'!K:K,'個人KPISales receipt(MTD）'!A:A,'個人KPISales receipt(MTD）'!A7,'個人KPISales receipt(MTD）'!B:B,'個人KPISales receipt(MTD）'!B4,'個人KPISales receipt(MTD）'!C:C,'個人KPISales receipt(MTD）'!C12) -> 1344 | E89: 1 | I89: 裙裝 | J89: 0 | K89: 0
B90: 編織衫 | C90: =SUMIFS('個人KPISales receipt(MTD）'!J:J,'個人KPISales receipt(MTD）'!A:A,'個人KPISales receipt(MTD）'!A7,'個人KPISales receipt(MTD）'!B:B,'個人KPISales receipt(MTD）'!B4,'個人KPISales receipt(MTD）'!C:C,'個人KPISales receipt(MTD）'!C13) -> 1 | D90: =SUMIFS('個人KPISales receipt(MTD）'!K:K,'個人KPISales receipt(MTD）'!A:A,'個人KPISales receipt(MTD）'!A7,'個人KPISales receipt(MTD）'!B:B,'個人KPISales receipt(MTD）'!B4,'個人KPISales receipt(MTD）'!C:C,'個人KPISales receipt(MTD）'!C13) -> 1332 | E90: -6 | I90: 編織衫 | J90: 7 | K90: 8213
B91: 襯衫 | C91: =SUMIFS('個人KPISales receipt(MTD）'!J:J,'個人KPISales receipt(MTD）'!A:A,'個人KPISales receipt(MTD）'!A7,'個人KPISales receipt(MTD）'!B:B,'個人KPISales receipt(MTD）'!B4,'個人KPISales receipt(MTD）'!C:C,'個人KPISales receipt(MTD）'!C14) -> 0 | D91: =SUMIFS('個人KPISales receipt(MTD）'!K:K,'個人KPISales receipt(MTD）'!A:A,'個人KPISales receipt(MTD）'!A7,'個人KPISales receipt(MTD）'!B:B,'個人KPISales receipt(MTD）'!B4,'個人KPISales receipt(MTD）'!C:C,'個人KPISales receipt(MTD）'!C14) -> 0 | E91: -1 | I91: 襯衫 | J91: 1 | K91: 969
B92: 棉服 | C92: =SUMIFS('個人KPISales receipt(MTD）'!J:J,'個人KPISales receipt(MTD）'!A:A,'個人KPISales receipt(MTD）'!A7,'個人KPISales receipt(MTD）'!B:B,'個人KPISales receipt(MTD）'!B4,'個人KPISales receipt(MTD）'!C:C,'個人KPISales receipt(MTD）'!C9) -> 0 | D92: =SUMIFS('個人KPISales receipt(MTD）'!K:K,'個人KPISales receipt(MTD）'!A:A,'個人KPISales receipt(MTD）'!A7,'個人KPISales receipt(MTD）'!B:B,'個人KPISales receipt(MTD）'!B4,'個人KPISales receipt(MTD）'!C:C,'個人KPISales receipt(MTD）'!C9) -> 0 | E92: -1 | I92: 棉服 | J92: 1 | K92: 3213
B93: 羽絨服 | C93: =SUMIFS('個人KPISales receipt(MTD）'!J:J,'個人KPISales receipt(MTD）'!A:A,'個人KPISales receipt(MTD）'!A7,'個人KPISales receipt(MTD）'!B:B,'個人KPISales receipt(MTD）'!B4,'個人KPISales receipt(MTD）'!C:C,'個人KPISales receipt(MTD）'!C4) -> 0 | D93: =SUMIFS('個人KPISales receipt(MTD）'!K:K,'個人KPISales receipt(MTD）'!A:A,'個人KPISales receipt(MTD）'!A7,'個人KPISales receipt(MTD）'!B:B,'個人KPISales receipt(MTD）'!B4,'個人KPISales receipt(MTD）'!C:C,'個人KPISales receipt(MTD）'!C4) -> 0 | E93: -15 | I93: 羽絨服 | J93: 15 | K93: 34913
B94: 鞋 | C94: =SUMIFS('個人KPISales receipt(MTD）'!J:J,'個人KPISales receipt(MTD）'!A:A,'個人KPISales receipt(MTD）'!A7,'個人KPISales receipt(MTD）'!B:B,'個人KPISales receipt(MTD）'!B6) -> 6 | D94: =SUMIFS('個人KPISales receipt(MTD）'!K:K,'個人KPISales receipt(MTD）'!A:A,'個人KPISales receipt(MTD）'!A7,'個人KPISales receipt(MTD）'!B:B,'個人KPISales receipt(MTD）'!B6) -> 5298 | E94: -10 | I94: 鞋 | J94: 16 | K94: 17862
A97: CARMEN | B97: TW 4日 | C97: MTD | D97: ATV | E97: UPT | F97: NO | G97: QTY | I97: LW | J97: MTD | K97: ATV | L97: UPT | M97: NO | N97: QTY
C98: 100295 | D98: 2711 | E98: 5.0 | F98: 37 | G98: 170 | J98: 117588 | K98: 2739 | L98: 4.4 | M98: 43 | N98: 188
B99: VSLW | C99: =C98-J98 -> -17293 | D99: =D98-K98 -> -28 | E99: =E98-L98 -> 0.6 | F99: =F98-M98 -> -6 | G99: =G98-N98 -> -18
C100: 56244 | D100: 2017 | E100: 3.4 | F100: 28 | G100: 97
B101: 中類 | C101: 件數 | D101: 金額 | E101: VSLW尚欠 | I101: 中類 | J101: 件數 | K101: 金額
B102: 內搭 | C102: =SUMIFS('個人KPISales receipt(MTD）'!J:J,'個人KPISales receipt(MTD）'!A:A,'個人KPISales receipt(MTD）'!A8,'個人KPISales receipt(MTD）'!B:B,'個人KPISales receipt(MTD）'!B4,'個人KPISales receipt(MTD）'!C:C,'個人KPISales receipt(MTD）'!C2) -> 5 | D102: =SUMIFS('個人KPISales receipt(MTD）'!K:K,'個人KPISales receipt(MTD）'!A:A,'個人KPISales receipt(MTD）'!A8,'個人KPISales receipt(MTD）'!B:B,'個人KPISales receipt(MTD）'!B4,'個人KPISales receipt(MTD）'!C:C,'個人KPISales receipt(MTD）'!C2) -> 3960 | E102: =C102-J102 -> -20 | I102: 內搭 | J102: 25 | K102: 20838
B103: 針織上衣 | C103: =SUMIFS('個人KPISales receipt(MTD）'!J:J,'個人KPISales receipt(MTD）'!A:A,'個人KPISales receipt(MTD）'!A8,'個人KPISales receipt(MTD）'!B:B,'個人KPISales receipt(MTD）'!B4,'個人KPISales receipt(MTD）'!C:C,'個人KPISales receipt(MTD）'!C5) -> 3 | D103: =SUMIFS('個人KPISales receipt(MTD）'!K:K,'個人KPISales receipt(MTD）'!A:A,'個人KPISales receipt(MTD）'!A8,'個人KPISales receipt(MTD）'!B:B,'個人KPISales receipt(MTD）'!B4,'個人KPISales receipt(MTD）'!C:C,'個人KPISales receipt(MTD）'!C5) -> 3588 | E103: 0 | I103: 針織上衣 | J103: 3 | K103: 4459
B104: 針織褲 | C104: =SUMIFS('個人KPISales receipt(MTD）'!J:J,'個人KPISales receipt(MTD）'!A:A,'個人KPISales receipt(MTD）'!A8,'個人KPISales receipt(MTD）'!B:B,'個人KPISales receipt(MTD）'!B4,'個人KPISales receipt(MTD）'!C:C,'個人KPISales receipt(MTD）'!C6) -> 4 | D104: =SUMIFS('個人KPISales receipt(MTD）'!K:K,'個人KPISales receipt(MTD）'!A:A,'個人KPISales receipt(MTD）'!A8,'個人KPISales receipt(MTD）'!B:B,'個人KPISales receipt(MTD）'!B4,'個人KPISales receipt(MTD）'!C:C,'個人KPISales receipt(MTD）'!C6) -> 3065 | E104: -10 | I104: 針織褲 | J104: 14 | K104: 12555
B105: 梭織上衣 | C105: =SUMIFS('個人KPISales receipt(MTD）'!J:J,'個人KPISales receipt(MTD）'!A:A,'個人KPISales receipt(MTD）'!A8,'個人KPISales receipt(MTD）'!B:B,'個人KPISales receipt(MTD）'!B4,'個人KPISales receipt(MTD）'!C:C,'個人KPISales receipt(MTD）'!C7) -> 2 | D105: =SUMIFS('個人KPISales receipt(MTD）'!K:K,'個人KPISales receipt(MTD）'!A:A,'個人KPISales receipt(MTD）'!A8,'個人KPISales receipt(MTD）'!B:B,'個人KPISales receipt(MTD）'!B4,'個人KPISales receipt(MTD）'!C:C,'個人KPISales receipt(MTD）'!C7) -> 4266 | E105: -6 | I105: 梭織上衣 | J105: 8 | K105: 13560
B106: 梭織褲 | C106: =SUMIFS('個人KPISales receipt(MTD）'!J:J,'個人KPISales receipt(MTD）'!A:A,'個人KPISales receipt(MTD）'!A8,'個人KPISales receipt(MTD）'!B:B,'個人KPISales receipt(MTD）'!B4,'個人KPISales receipt(MTD）'!C:C,'個人KPISales receipt(MTD）'!C8) -> 2 | D106: =SUMIFS('個人KPISales receipt(MTD）'!K:K,'個人KPISales receipt(MTD）'!A:A,'個人KPISales receipt(MTD）'!A8,'個人KPISales receipt(MTD）'!B:B,'個人KPISales receipt(MTD）'!B4,'個人KPISales receipt(MTD）'!C:C,'個人KPISales receipt(MTD）'!C8) -> 2406 | E106: 0 | I106: 梭織褲 | J106: 2 | K106: 2307
B107: 短T類 | C107: =SUMIFS('個人KPISales receipt(MTD）'!J:J,'個人KPISales receipt(MTD）'!A:A,'個人KPISales receipt(MTD）'!A8,'個人KPISales receipt(MTD）'!B:B,'個人KPISales receipt(MTD）'!B4,'個人KPISales receipt(MTD）'!C:C,'個人KPISales receipt(MTD）'!C10) -> 6 | D107: =SUMIFS('個人KPISales receipt(MTD）'!K:K,'個人KPISales receipt(MTD）'!A:A,'個人KPISales receipt(MTD）'!A8,'個人KPISales receipt(MTD）'!B:B,'個人KPISales receipt(MTD）'!B4,'個人KPISales receipt(MTD）'!C:C,'個人KPISales receipt(MTD）'!C10) -> 3314 | E107: 2 | I107: 短T類 | J107: 4 | K107: 2119
B108: 裙裝 | C108: =SUMIFS('個人KPISales receipt(MTD）'!J:J,'個人KPISales receipt(MTD）'!A:A,'個人KPISales receipt(MTD）'!A8,'個人KPISales receipt(MTD）'!B:B,'個人KPISales receipt(MTD）'!B4,'個人KPISales receipt(MTD）'!C:C,'個人KPISales receipt(MTD）'!C12) -> 1 | D108: =SUMIFS('個人KPISales receipt(MTD）'!K:K,'個人KPISales receipt(MTD）'!A:A,'個人KPISales receipt(MTD）'!A8,'個人KPISales receipt(MTD）'!B:B,'個人KPISales receipt(MTD）'!B4,'個人KPISales receipt(MTD）'!C:C,'個人KPISales receipt(MTD）'!C12) -> 1512 | E108: 1 | I108: 裙裝 | J108: 0 | K108: 0
B109: 編織衫 | C109: =SUMIFS('個人KPISales receipt(MTD）'!J:J,'個人KPISales receipt(MTD）'!A:A,'個人KPISales receipt(MTD）'!A8,'個人KPISales receipt(MTD）'!B:B,'個人KPISales receipt(MTD）'!B4,'個人KPISales receipt(MTD）'!C:C,'個人KPISales receipt(MTD）'!C13) -> 0 | D109: =SUMIFS('個人KPISales receipt(MTD）'!K:K,'個人KPISales receipt(MTD）'!A:A,'個人KPISales receipt(MTD）'!A8,'個人KPISales receipt(MTD）'!B:B,'個人KPISales receipt(MTD）'!B4,'個人KPISales receipt(MTD）'!C:C,'個人KPISales receipt(MTD）'!C13) -> 0 | E109: -6 | I109: 編織衫 | J109: 6 | K109: 7580
B110: 襯衫 | C110: =SUMIFS('個人KPISales receipt(MTD）'!J:J,'個人KPISales receipt(MTD）'!A:A,'個人KPISales receipt(MTD）'!A8,'個人KPISales receipt(MTD）'!B:B,'個人KPISales receipt(MTD）'!B4,'個人KPISales receipt(MTD）'!C:C,'個人KPISales receipt(MTD）'!C14) -> 0 | D110: =SUMIFS('個人KPISales receipt(MTD）'!K:K,'個人KPISales receipt(MTD）'!A:A,'個人KPISales receipt(MTD）'!A8,'個人KPISales receipt(MTD）'!B:B,'個人KPISales receipt(MTD）'!B4,'個人KPISales receipt(MTD）'!C:C,'個人KPISales receipt(MTD）'!C14) -> 0 | E110: 0 | I110: 襯衫 | J110: 0 | K110: 0
B111: 棉服 | C111: =SUMIFS('個人KPISales receipt(MTD）'!J:J,'個人KPISales receipt(MTD）'!A:A,'個人KPISales receipt(MTD）'!A8,'個人KPISales receipt(MTD）'!B:B,'個人KPISales receipt(MTD）'!B4,'個人KPISales receipt(MTD）'!C:C,'個人KPISales receipt(MTD）'!C9) -> 1 | D111: =SUMIFS('個人KPISales receipt(MTD）'!K:K,'個人KPISales receipt(MTD）'!A:A,'個人KPISales receipt(MTD）'!A8,'個人KPISales receipt(MTD）'!B:B,'個人KPISales receipt(MTD）'!B4,'個人KPISales receipt(MTD）'!C:C,'個人KPISales receipt(MTD）'!C9) -> 2436 | E111: 0 | I111: 棉服 | J111: 1 | K111: 3298
B112: 羽絨服 | C112: =SUMIFS('個人KPISales receipt(MTD）'!J:J,'個人KPISales receipt(MTD）'!A:A,'個人KPISales receipt(MTD）'!A8,'個人KPISales receipt(MTD）'!B:B,'個人KPISales receipt(MTD）'!B4,'個人KPISales receipt(MTD）'!C:C,'個人KPISales receipt(MTD）'!C4) -> 1 | D112: =SUMIFS('個人KPISales receipt(MTD）'!K:K,'個人KPISales receipt(MTD）'!A:A,'個人KPISales receipt(MTD）'!A8,'個人KPISales receipt(MTD）'!B:B,'個人KPISales receipt(MTD）'!B4,'個人KPISales receipt(MTD）'!C:C,'個人KPISales receipt(MTD）'!C4) -> 1036 | E112: -11 | I112: 羽絨服 | J112: 12 | K112: 24010
B113: 鞋 | C113: =SUMIFS('個人KPISales receipt(MTD）'!J:J,'個人KPISales receipt(MTD）'!A:A,'個人KPISales receipt(MTD）'!A8,'個人KPISales receipt(MTD）'!B:B,'個人KPISales receipt(MTD）'!B6) -> 5 | D113: =SUMIFS('個人KPISales receipt(MTD）'!K:K,'個人KPISales receipt(MTD）'!A:A,'個人KPISales receipt(MTD）'!A8,'個人KPISales receipt(MTD）'!B:B,'個人KPISales receipt(MTD）'!B6) -> 4267 | E113: -23 | I113: 鞋 | J113: 28 | K113: 23774
A115: Anson | B115: TW 4日 | C115: MTD | D115: ATV | E115: UPT | F115: NO | G115: QTY | I115: LW | J115: MTD | K115: ATV | L115: UPT | M115: NO | N115: QTY
C116: 100295 | D116: 2711 | E116: 5.0 | F116: 37 | G116: 170 | J116: 117588 | K116: 2739 | L116: 4.4 | M116: 43 | N116: 188
B117: VSLW | C117: =C116-J116 -> -17293 | D117: =D116-K116 -> -28 | E117: =E116-L116 -> 0.6 | F117: =F116-M116 -> -6 | G117: =G116-N116 -> -18
C118: 56244 | D118: 2017 | E118: 3.4 | F118: 28 | G118: 97
B119: 中類 | C119: 件數 | D119: 金額 | E119: VSLW尚欠 | I119: 中類 | J119: 件數 | K119: 金額
B120: 內搭 | C120: =SUMIFS('個人KPISales receipt(MTD）'!J:J,'個人KPISales receipt(MTD）'!A:A,'個人KPISales receipt(MTD）'!A4,'個人KPISales receipt(MTD）'!B:B,'個人KPISales receipt(MTD）'!B4,'個人KPISales receipt(MTD）'!C:C,'個人KPISales receipt(MTD）'!C2) -> 0 | D120: =SUMIFS('個人KPISales receipt(MTD）'!K:K,'個人KPISales receipt(MTD）'!A:A,'個人KPISales receipt(MTD）'!A4,'個人KPISales receipt(MTD）'!B:B,'個人KPISales receipt(MTD）'!B4,'個人KPISales receipt(MTD）'!C:C,'個人KPISales receipt(MTD）'!C2) -> 0 | E120: =C120-J120 -> -25 | I120: 內搭 | J120: 25 | K120: 20838
B121: 針織上衣 | C121: =SUMIFS('個人KPISales receipt(MTD）'!J:J,'個人KPISales receipt(MTD）'!A:A,'個人KPISales receipt(MTD）'!A4,'個人KPISales receipt(MTD）'!B:B,'個人KPISales receipt(MTD）'!B4,'個人KPISales receipt(MTD）'!C:C,'個人KPISales receipt(MTD）'!C5) -> 1 | D121: =SUMIFS('個人KPISales receipt(MTD）'!K:K,'個人KPISales receipt(MTD）'!A:A,'個人KPISales receipt(MTD）'!A4,'個人KPISales receipt(MTD）'!B:B,'個人KPISales receipt(MTD）'!B4,'個人KPISales receipt(MTD）'!C:C,'個人KPISales receipt(MTD）'!C5) -> 1480 | E121: -2 | I121: 針織上衣 | J121: 3 | K121: 4459
B122: 針織褲 | C122: =SUMIFS('個人KPISales receipt(MTD）'!J:J,'個人KPISales receipt(MTD）'!A:A,'個人KPISales receipt(MTD）'!A4,'個人KPISales receipt(MTD）'!B:B,'個人KPISales receipt(MTD）'!B4,'個人KPISales receipt(MTD）'!C:C,'個人KPISales receipt(MTD）'!C6) -> 2 | D122: =SUMIFS('個人KPISales receipt(MTD）'!K:K,'個人KPISales receipt(MTD）'!A:A,'個人KPISales receipt(MTD）'!A4,'個人KPISales receipt(MTD）'!B:B,'個人KPISales receipt(MTD）'!B4,'個人KPISales receipt(MTD）'!C:C,'個人KPISales receipt(MTD）'!C6) -> 1762 | E122: -12 | I122: 針織褲 | J122: 14 | K122: 12555
B123: 梭織上衣 | C123: =SUMIFS('個人KPISales receipt(MTD）'!J:J,'個人KPISales receipt(MTD）'!A:A,'個人KPISales receipt(MTD）'!A4,'個人KPISales receipt(MTD）'!B:B,'個人KPISales receipt(MTD）'!B4,'個人KPISales receipt(MTD）'!C:C,'個人KPISales receipt(MTD）'!C7) -> 5 | D123: =SUMIFS('個人KPISales receipt(MTD）'!K:K,'個人KPISales receipt(MTD）'!A:A,'個人KPISales receipt(MTD）'!A4,'個人KPISales receipt(MTD）'!B:B,'個人KPISales receipt(MTD）'!B4,'個人KPISales receipt(MTD）'!C:C,'個人KPISales receipt(MTD）'!C7) -> 8647 | E123: -3 | I123: 梭織上衣 | J123: 8 | K123: 13560
B124: 梭織褲 | C124: =SUMIFS('個人KPISales receipt(MTD）'!J:J,'個人KPISales receipt(MTD）'!A:A,'個人KPISales receipt(MTD）'!A4,'個人KPISales receipt(MTD）'!B:B,'個人KPISales receipt(MTD）'!B4,'個人KPISales receipt(MTD）'!C:C,'個人KPISales receipt(MTD）'!C8) -> 0 | D124: =SUMIFS('個人KPISales receipt(MTD）'!K:K,'個人KPISales receipt(MTD）'!A:A,'個人KPISales receipt(MTD）'!A4,'個人KPISales receipt(MTD）'!B:B,'個人KPISales receipt(MTD）'!B4,'個人KPISales receipt(MTD）'!C:C,'個人KPISales receipt(MTD）'!C8) -> 0 | E124: -2 | I124: 梭織褲 | J124: 2 | K124: 2307
B125: 短T類 | C125: =SUMIFS('個人KPISales receipt(MTD）'!J:J,'個人KPISales receipt(MTD）'!A:A,'個人KPISales receipt(MTD）'!A4,'個人KPISales receipt(MTD）'!B:B,'個人KPISales receipt(MTD）'!B4,'個人KPISales receipt(MTD）'!C:C,'個人KPISales receipt(MTD）'!C10) -> 9 | D125: =SUMIFS('個人KPISales receipt(MTD）'!K:K,'個人KPISales receipt(MTD）'!A:A,'個人KPISales receipt(MTD）'!A4,'個人KPISales receipt(MTD）'!B:B,'個人KPISales receipt(MTD）'!B4,'個人KPISales receipt(MTD）'!C:C,'個人KPISales receipt(MTD）'!C10) -> 5408 | E125: 5 | I125: 短T類 | J125: 4 | K125: 2119
B126: 裙裝 | C126: =SUMIFS('個人KPISales receipt(MTD）'!J:J,'個人KPISales receipt(MTD）'!A:A,'個人KPISales receipt(MTD）'!A4,'個人KPISales receipt(MTD）'!B:B,'個人KPISales receipt(MTD）'!B4,'個人KPISales receipt(MTD）'!C:C,'個人KPISales receipt(MTD）'!C12) -> 0 | D126: =SUMIFS('個人KPISales receipt(MTD）'!K:K,'個人KPISales receipt(MTD）'!A:A,'個人KPISales receipt(MTD）'!A4,'個人KPISales receipt(MTD）'!B:B,'個人KPISales receipt(MTD）'!B4,'個人KPISales receipt(MTD）'!C:C,'個人KPISales receipt(MTD）'!C12) -> 0 | E126: 0 | I126: 裙裝 | J126: 0 | K126: 0
B127: 編織衫 | C127: =SUMIFS('個人KPISales receipt(MTD）'!J:J,'個人KPISales receipt(MTD）'!A:A,'個人KPISales receipt(MTD）'!A4,'個人KPISales receipt(MTD）'!B:B,'個人KPISales receipt(MTD）'!B4,'個人KPISales receipt(MTD）'!C:C,'個人KPISales receipt(MTD）'!C13) -> 1 | D127: =SUMIFS('個人KPISales receipt(MTD）'!K:K,'個人KPISales receipt(MTD）'!A:A,'個人KPISales receipt(MTD）'!A4,'個人KPISales receipt(MTD）'!B:B,'個人KPISales receipt(MTD）'!B4,'個人KPISales receipt(MTD）'!C:C,'個人KPISales receipt(MTD）'!C13) -> 1980 | E127: -5 | I127: 編織衫 | J127: 6 | K127: 7580
B128: 襯衫 | C128: =SUMIFS('個人KPISales receipt(MTD）'!J:J,'個人KPISales receipt(MTD）'!A:A,'個人KPISales receipt(MTD）'!A4,'個人KPISales receipt(MTD）'!B:B,'個人KPISales receipt(MTD）'!B4,'個人KPISales receipt(MTD）'!C:C,'個人KPISales receipt(MTD）'!C14) -> 1 | D128: =SUMIFS('個人KPISales receipt(MTD）'!K:K,'個人KPISales receipt(MTD）'!A:A,'個人KPISales receipt(MTD）'!A4,'個人KPISales receipt(MTD）'!B:B,'個人KPISales receipt(MTD）'!B4,'個人KPISales receipt(MTD）'!C:C,'個人KPISales receipt(MTD）'!C14) -> 1062 | E128: 1 | I128: 襯衫 | J128: 0 | K128: 0
B129: 棉服 | C129: =SUMIFS('個人KPISales receipt(MTD）'!J:J,'個人KPISales receipt(MTD）'!A:A,'個人KPISales receipt(MTD）'!A4,'個人KPISales receipt(MTD）'!B:B,'個人KPISales receipt(MTD）'!B4,'個人KPISales receipt(MTD）'!C:C,'個人KPISales receipt(MTD）'!C9) -> 0 | D129: =SUMIFS('個人KPISales receipt(MTD）'!K:K,'個人KPISales receipt(MTD）'!A:A,'個人KPISales receipt(MTD）'!A4,'個人KPISales receipt(MTD）'!B:B,'個人KPISales receipt(MTD）'!B4,'個人KPISales receipt(MTD）'!C:C,'個人KPISales receipt(MTD）'!C9) -> 0 | E129: -1 | I129: 棉服 | J129: 1 | K129: 3298
B130: 羽絨服 | C130: =SUMIFS('個人KPISales receipt(MTD）'!J:J,'個人KPISales receipt(MTD）'!A:A,'個人KPISales receipt(MTD）'!A4,'個人KPISales receipt(MTD）'!B:B,'個人KPISales receipt(MTD）'!B4,'個人KPISales receipt(MTD）'!C:C,'個人KPISales receipt(MTD）'!C4) -> 2 | D130: =SUMIFS('個人KPISales receipt(MTD）'!K:K,'個人KPISales receipt(MTD）'!A:A,'個人KPISales receipt(MTD）'!A4,'個人KPISales receipt(MTD）'!B:B,'個人KPISales receipt(MTD）'!B4,'個人KPISales receipt(MTD）'!C:C,'個人KPISales receipt(MTD）'!C4) -> 5152 | E130: -10 | I130: 羽絨服 | J130: 12 | K130: 24010
B131: 鞋 | C131: =SUMIFS('個人KPISales receipt(MTD）'!J:J,'個人KPISales receipt(MTD）'!A:A,'個人KPISales receipt(MTD）'!A4,'個人KPISales receipt(MTD）'!B:B,'個人KPISales receipt(MTD）'!B6) -> 9 | D131: =SUMIFS('個人KPISales receipt(MTD）'!K:K,'個人KPISales receipt(MTD）'!A:A,'個人KPISales receipt(MTD）'!A4,'個人KPISales receipt(MTD）'!B:B,'個人KPISales receipt(MTD）'!B6) -> 8375 | E131: -19 | I131: 鞋 | J131: 28 | K131: 23774

Sheet Sales receipt((當天)
A1: 營業員 | B1: 大類 | C1: 中類 | D1: 商品名稱 | E1: 季節 | F1: 系列 | G1: 子系列 | H1: 性別 | I1: 上市日期 | J1: 銷售數量 | K1: 結算金額 | L1: 銷售日期 | M1: 注冊時間 | N1: 回流判斷
A2: M0989 Susanna | B2: 广宣用品 | C2: 內衣類 | D2: DOWN JKT | E2: 冬季 | F2: ATHLETICS | G2: A.P. | H2: FEMALE | N2: 回流
A3: M2172 Janet | B3: 其它 | C3: 內搭 | D3: PAD JKT | E3: 春季 | F3: FASHION | G3: BLUE | H3: MALE | N3: 新注册
A4: M3060 Anson | B4: 服装 | C4: 羽絨服 | D4: PAD VEST | E4: 秋季 | F4: LIFESTYLE | G4: EXPLORE | H4: UNISEX | N4: (空白)
A5: M1436 Khaki | B5: 配件 | C5: 針織上衣 | D5: SKIRT | E5: 夏季 | F5: (空白) | G5: FILA MILANO | H5: (空白)
A6: M2798 Ryan | B6: 鞋类 | C6: 針織褲 | D6: SWEAT | E6: 常青 | G6: FILA ORIGINALE
A7: M2801 Fanny | B7: (空白) | C7: 梭織上衣 | D7: WOVEN JKT | E7: (空白) | G7: FITNESS
A8: M2902 Carmen | C8: 梭織褲 | D8: WOVEN PANTS | G8: GOLF
C9: 棉服 | D9: 上衣两件套 | G9: HERITAGE
C10: 短T類 | D10: 中长款羽绒服 | G10: ICONA
C11: 滑雪服 | D11: 长款羽绒服 | G11: MODERN HERITAGE
C12: 裙裝 | D12: 休闲西装 | G12: MODERNO
C13: 編織衫 | D13: 冲锋衣 | G13: ORIGINALE
C14: 襯衫 | D14: 冲锋衣两件套 | G14: SKI
D15: 羽绒马甲 | G15: SPORT PERFORMANCE
D16: 羽绒服 | G16: TENNIS
D17: 羽绒服两件套 | G17: WHITE
D18: 男装上衣 | G18: (空白)
D19: 针织马甲
D20: 针织打底裤
D21: 针织长袖POLO衫
D22: 针织长袖上衣
D23: 针织长袖外套
D24: 针织长袖衫
D25: 针织长裤
D26: 针织连帽上衣
D27: 针织连帽外套
D28: 针织背心
D29: 针织套头衫
D30: 针织短袖POLO衫
D31: 针织短袖连帽上衣
D32: 针织短袖衫
D33: 针织裙
D34: 呢子外套
D35: 连衣裙
D36: 轻薄羽绒服
D37: 梭织九分裤
D38: 梭织马甲
D39: 梭织五分裤
D40: 梭织外套
D41: 梭织长袖衬衫
D42: 梭织长裤
D43: 梭织裙
D44: 棉马甲
D45: 棉服
D46: 短裙（含短裤）
D47: 编织外套
D48: 编织连衣裙
D49: 编织衫
D50: 编织衫两件套
D51: 滑雪服
A96: 請把要分析的小票複製在以下
A97: M1436 Khaki | B97: 鞋类 | C97: 戶外鞋 | D97: EXPLORE户外鞋 | E97: 夏季 | F97: ATHLETICS | G97: EXPLORE | H97: 男 | I97: 2026-04-02 | J97: 1 | K97: 1048 | L97: 2026-04-02 | M97: 斐樂大貨 | N97: 回流
A98: M0989 Susanna | B98: 鞋类 | C98: 戶外鞋 | D98: EXPLORE户外鞋 | E98: 夏季 | F98: ATHLETICS | G98: EXPLORE | H98: 女 | I98: 2026-04-02 | J98: 1 | K98: 1012 | L98: 2026-04-02 | M98: 斐樂大貨 | N98: 回流
A99: M2902 Carmen | B99: 鞋类 | C99: 板鞋 | D99: MILANO板鞋 | E99: 春季 | F99: FASHION | H99: 女 | I99: 2025-12-04 | J99: 1 | K99: 872 | L99: 2026-04-02 | M99: 斐樂大貨
A100: M2902 Carmen | B100: 鞋类 | C100: 板鞋 | D100: MILANO板鞋 | E100: 春季 | F100: FASHION | H100: 女 | I100: 2026-01-06 | J100: 1 | K100: 792 | L100: 2026-04-02 | M100: 斐樂大貨
A101: M0989 Susanna | B101: 鞋类 | C101: 跑步鞋 | D101: FITNESS跑步鞋 | E101: 夏季 | F101: ATHLETICS | G101: FITNESS | H101: 男 | I101: 2026-03-05 | J101: 1 | K101: 990 | L101: 2026-04-02 | M101: 斐樂大貨
A102: M2798 Ryan | B102: 鞋类 | C102: 跑步鞋 | D102: FITNESS跑步鞋 | E102: 夏季 | F102: ATHLETICS | G102: FITNESS | H102: 男 | I102: 2026-04-02 | J102: 1 | K102: 890 | L102: 2026-04-02 | M102: 斐樂大貨
A103: M0989 Susanna | B103: 鞋类 | C103: 跑步鞋 | D103: FITNESS跑步鞋 | E103: 夏季 | F103: ATHLETICS | G103: FITNESS | H103: 女 | I103: 2026-03-05 | J103: 1 | K103: 842 | L103: 2026-04-02 | M103: 斐樂大貨 | N103: 回流
A104: M0989 Susanna | B104: 鞋类 | C104: 老爹鞋 | D104: ORIGINALE老爹鞋 | E104: 夏季 | F104: FASHION | G104: ORIGINALE | H104: 男 | I104: 2026-03-19 | J104: 1 | K104: 981 | L104: 2026-04-02 | M104: 斐樂大貨 | N104: 回流
A105: M0989 Susanna | B105: 鞋类 | C105: 老爹鞋 | D105: ORIGINALE老爹鞋 | E105: 夏季 | F105: FASHION | G105: ORIGINALE | H105: 女 | I105: 2026-03-05 | J105: 1 | K105: 990 | L105: 2026-04-02 | M105: 斐樂大貨
A106: M0989 Susanna | B106: 服装 | C106: 編織衫 | D106: 编织衫 | E106: 夏季 | F106: ATHLETICS | G106: GOLF | H106: 女 | I106: 2026-03-05 | J106: 1 | K106: 1258 | L106: 2026-04-02 | M106: 斐樂大貨 | N106: 回流
A107: M0989 Susanna | B107: 服装 | C107: 編織衫 | D107: 编织衫 | E107: 夏季 | F107: LIFESTYLE | G107: WHITE | H107: 女 | I107: 2026-03-19 | J107: 1 | K107: 748 | L107: 2026-04-02 | M107: 斐樂大貨 | N107: 回流
A108: M2902 Carmen | B108: 服装 | C108: 編織衫 | D108: 编织衫 | E108: 夏季 | F108: LIFESTYLE | G108: HERITAGE | H108: 女 | I108: 2026-03-05 | J108: 1 | K108: 862 | L108: 2026-04-02 | M108: 斐樂大貨 | N108: 回流
A109: M1436 Khaki | B109: 服装 | C109: 短T類 | D109: 针织短袖衫 | E109: 春季 | F109: ATHLETICS | G109: TENNIS | H109: 男 | I109: 2026-02-05 | J109: 1 | K109: 563 | L109: 2026-04-02 | M109: 斐樂大貨
A110: M2902 Carmen | B110: 服装 | C110: 短T類 | D110: 针织短袖衫 | E110: 夏季 | F110: ATHLETICS | G110: FITNESS | H110: 男 | I110: 2026-03-05 | J110: 1 | K110: 653 | L110: 2026-04-02 | M110: 斐樂大貨
A111: M2902 Carmen | B111: 服装 | C111: 短T類 | D111: 针织短袖衫 | E111: 夏季 | F111: ATHLETICS | G111: FITNESS | H111: 男 | I111: 2026-03-05 | J111: 2 | K111: 1020 | L111: 2026-04-02 | M111: 斐樂大貨
A112: M0989 Susanna | B112: 服装 | C112: 短T類 | D112: 针织短袖POLO衫 | E112: 夏季 | F112: ATHLETICS | G112: GOLF | H112: 男 | I112: 2026-03-05 | J112: 1 | K112: 1129 | L112: 2026-04-02 | M112: 斐樂大貨 | N112: 回流
A113: M2798 Ryan | B113: 服装 | C113: 短T類 | D113: 针织短袖衫 | E113: 夏季 | F113: ATHLETICS | H113: 女 | I113: 2026-04-02 | J113: 1 | K113: 887 | L113: 2026-04-02 | M113: 斐樂大貨 | N113: 回流
A114: M0989 Susanna | B114: 服装 | C114: 短T類 | D114: 针织短袖衫 | E114: 夏季 | F114: ATHLETICS | H114: 女 | I114: 2026-04-02 | J114: 1 | K114: 833 | L114: 2026-04-02 | M114: 斐樂大貨 | N114: 回流
A115: M2798 Ryan | B115: 服装 | C115: 短T類 | D115: 针织短袖POLO衫 | E115: 夏季 | H115: 男 | I115: 2026-04-02 | J115: 1 | K115: 680 | L115: 2026-04-02 | M115: 斐樂大貨
A116: M1436 Khaki | B116: 服装 | C116: 短T類 | D116: 针织短袖POLO衫 | E116: 夏季 | H116: 男 | I116: 2026-04-02 | J116: 1 | K116: 775 | L116: 2026-04-02 | M116: 斐樂大貨 | N116: 回流
A117: M1436 Khaki | B117: 服装 | C117: 短T類 | D117: 针织短袖POLO衫 | E117: 夏季 | H117: 男 | I117: 2026-04-02 | J117: 1 | K117: 774 | L117: 2026-04-02 | M117: 斐樂大貨
A118: M2902 Carmen | B118: 服装 | C118: 短T類 | D118: 针织短袖衫 | E118: 夏季 | F118: LIFESTYLE | G118: WHITE | H118: 男 | I118: 2026-03-19 | J118: 1 | K118: 651 | L118: 2026-04-02 | M118: 斐樂大貨
A119: M2798 Ryan | B119: 服装 | C119: 短T類 | D119: 针织短袖衫 | E119: 夏季 | F119: LIFESTYLE | G119: WHITE | H119: 男 | I119: 2026-03-19 | J119: 1 | K119: 739 | L119: 2026-04-02 | M119: 斐樂大貨
A120: M2798 Ryan | B120: 服装 | C120: 短T類 | D120: 针织短袖衫 | E120: 夏季 | F120: LIFESTYLE | G120: HERITAGE | H120: 男 | I120: 2026-03-05 | J120: 1 | K120: 686 | L120: 2026-04-02 | M120: 斐樂大貨 | N120: 回流
A121: M2798 Ryan | B121: 服装 | C121: 短T類 | D121: 针织短袖衫 | E121: 夏季 | F121: LIFESTYLE | G121: HERITAGE | H121: 男 | I121: 2026-03-05 | J121: 1 | K121: 686 | L121: 2026-04-02 | M121: 斐樂大貨
A122: M2798 Ryan | B122: 服装 | C122: 短T類 | D122: 针织短袖衫 | E122: 夏季 | F122: LIFESTYLE | G122: FILA ORIGINALE | H122: 男 | I122: 2026-04-02 | J122: 1 | K122: 576 | L122: 2026-04-02 | M122: 斐樂大貨
A123: M2798 Ryan | B123: 服装 | C123: 短T類 | D123: 针织短袖衫 | E123: 夏季 | F123: LIFESTYLE | G123: FILA ORIGINALE | H123: 男 | I123: 2026-04-02 | J123: 1 | K123: 563 | L123: 2026-04-02 | M123: 斐樂大貨 | N123: 回流
A124: M2798 Ryan | B124: 服装 | C124: 短T類 | D124: 针织短袖衫 | E124: 夏季 | F124: LIFESTYLE | G124: FILA ORIGINALE | H124: 男 | I124: 2026-04-02 | J124: 1 | K124: 576 | L124: 2026-04-02 | M124: 斐樂大貨
A125: M0989 Susanna | B125: 服装 | C125: 短T類 | D125: 针织短袖POLO衫 | E125: 夏季 | H125: 女 | I125: 2026-04-02 | J125: 1 | K125: 612 | L125: 2026-04-02 | M125: 斐樂大貨
A126: M0989 Susanna | B126: 服装 | C126: 短T類 | D126: 针织短袖衫 | E126: 夏季 | F126: LIFESTYLE | G126: WHITE | H126: 女 | I126: 2026-03-19 | J126: 1 | K126: 629 | L126: 2026-04-02 | M126: 斐樂大貨 | N126: 回流
A127: M2798 Ryan | B127: 服装 | C127: 短T類 | D127: 针织短袖衫 | E127: 夏季 | F127: LIFESTYLE | G127: WHITE | H127: 女 | I127: 2026-03-19 | J127: 1 | K127: 670 | L127: 2026-04-02 | M127: 斐樂大貨 | N127: 回流
A128: M2902 Carmen | B128: 服装 | C128: 短T類 | D128: 针织短袖衫 | E128: 夏季 | F128: LIFESTYLE | G128: HERITAGE | H128: 女 | I128: 2026-03-05 | J128: 1 | K128: 598 | L128: 2026-04-02 | M128: 斐樂大貨
A129: M2798 Ryan | B129: 服装 | C129: 短T類 | D129: 针织短袖衫 | E129: 夏季 | F129: LIFESTYLE | G129: HERITAGE | H129: 女 | I129: 2026-03-05 | J129: 1 | K129: 615 | L129: 2026-04-02 | M129: 斐樂大貨 | N129: 回流
A130: M2798 Ryan | B130: 服装 | C130: 短T類 | D130: 针织短袖衫 | E130: 夏季 | F130: LIFESTYLE | G130: FILA ORIGINALE | H130: 女 | I130: 2026-04-02 | J130: 1 | K130: 579 | L130: 2026-04-02 | M130: 斐樂大貨 | N130: 回流
A131: M2798 Ryan | B131: 服装 | C131: 短T類 | D131: 针织短袖衫 | E131: 夏季 | F131: LIFESTYLE | G131: FILA ORIGINALE | H131: 女 | I131: 2026-04-02 | J131: 1 | K131: 579 | L131: 2026-04-02 | M131: 斐樂大貨 | N131: 回流
A132: M2902 Carmen | B132: 服装 | C132: 短T類 | D132: 短袖T | E132: 夏季 | F132: LIFESTYLE | G132: FILA ORIGINALE | H132: 不分 | I132: 2026-03-20 | J132: 1 | K132: 387 | L132: 2026-04-02 | M132: 斐樂大貨
A133: M2798 Ryan | B133: 服装 | C133: 內搭 | D133: 针织长袖上衣 | E133: 春季 | F133: ATHLETICS | G133: FITNESS | H133: 女 | I133: 2025-12-04 | J133: 1 | K133: 774 | L133: 2026-04-02 | M133: 斐樂大貨 | N133: 回流
A134: M0989 Susanna | B134: 服装 | C134: 裙裝 | D134: 梭织裙 | E134: 夏季 | F134: LIFESTYLE | G134: FILA ORIGINALE | H134: 女 | I134: 2026-04-02 | J134: 1 | K134: 780 | L134: 2026-04-02 | M134: 斐樂大貨
A135: M1436 Khaki | B135: 服装 | C135: 梭織褲 | D135: 梭织长裤 | E135: 夏季 | G135: A.P. | H135: 男 | I135: 2026-03-19 | J135: 1 | K135: 1303 | L135: 2026-04-02 | M135: 斐樂大貨
A136: M0989 Susanna | B136: 服装 | C136: 梭織褲 | D136: 梭织长裤 | E136: 夏季 | F136: LIFESTYLE | G136: FILA ORIGINALE | H136: 女 | I136: 2026-03-19 | J136: 1 | K136: 792 | L136: 2026-04-02 | M136: 斐樂大貨
A137: M2798 Ryan | B137: 服装 | C137: 梭織褲 | D137: 梭织长裤 | E137: 夏季 | F137: LIFESTYLE | G137: FILA ORIGINALE | H137: 女 | I137: 2026-03-19 | J137: 1 | K137: 796 | L137: 2026-04-02 | M137: 斐樂大貨 | N137: 回流
A138: M2902 Carmen | B138: 服装 | C138: 梭織上衣 | D138: 梭织外套 | E138: 夏季 | F138: ATHLETICS | G138: GOLF | H138: 男 | I138: 2026-03-05 | J138: 1 | K138: 1920 | L138: 2026-04-02 | M138: 斐樂大貨 | N138: 回流
A139: M0989 Susanna | B139: 服装 | C139: 梭織上衣 | D139: 梭织外套 | E139: 春季 | F139: ATHLETICS | G139: EXPLORE | H139: 女 | I139: 2026-02-19 | J139: 1 | K139: 1683 | L139: 2026-04-02 | M139: 斐樂大貨 | N139: 回流
A140: M2798 Ryan | B140: 服装 | C140: 梭織上衣 | D140: 梭织上衣 | E140: 夏季 | F140: ATHLETICS | G140: TENNIS | H140: 女 | I140: 2026-03-19 | J140: 1 | K140: 1480 | L140: 2026-04-02 | M140: 斐樂大貨 | N140: 回流
A141: M0989 Susanna | B141: 服装 | C141: 梭織上衣 | D141: 梭织外套 | E141: 夏季 | F141: ATHLETICS | G141: GOLF | H141: 女 | I141: 2026-03-05 | J141: 1 | K141: 1853 | L141: 2026-04-02 | M141: 斐樂大貨 | N141: 回流
A142: M2798 Ryan | B142: 服装 | C142: 梭織上衣 | D142: 梭织外套 | E142: 夏季 | F142: ATHLETICS | G142: GOLF | H142: 女 | I142: 2026-03-05 | J142: 1 | K142: 1974 | L142: 2026-04-02 | M142: 斐樂大貨 | N142: 回流
A143: M0989 Susanna | B143: 服装 | C143: 梭織上衣 | D143: 梭织外套 | E143: 夏季 | F143: ATHLETICS | G143: GOLF | H143: 女 | I143: 2026-03-05 | J143: 1 | K143: 2232 | L143: 2026-04-02 | M143: 斐樂大貨 | N143: 回流
A144: M0989 Susanna | B144: 服装 | C144: 梭織上衣 | D144: 梭织外套 | E144: 夏季 | F144: ATHLETICS | G144: EXPLORE | H144: 女 | I144: 2026-03-19 | J144: 1 | K144: 2107 | L144: 2026-04-02 | M144: 斐樂大貨 | N144: 回流
A145: M2798 Ryan | B145: 服装 | C145: 梭織上衣 | D145: 梭织外套 | E145: 春季 | F145: LIFESTYLE | G145: BLUE | H145: 男 | I145: 2026-02-05 | J145: 1 | K145: 3063 | L145: 2026-04-02 | M145: 斐樂大貨 | N145: 回流
A146: M2798 Ryan | B146: 服装 | C146: 梭織上衣 | D146: 梭织外套 | E146: 夏季 | F146: LIFESTYLE | G146: WHITE | H146: 女 | I146: 2026-03-19 | J146: 1 | K146: 1520 | L146: 2026-04-02 | M146: 斐樂大貨 | N146: 回流
A147: M0989 Susanna | B147: 服装 | C147: 針織褲 | D147: 针织长裤 | E147: 夏季 | G147: A.P. | H147: 男 | I147: 2026-03-19 | J147: 1 | K147: 774 | L147: 2026-04-02 | M147: 斐樂大貨 | N147: 回流
A148: M0989 Susanna | B148: 服装 | C148: 針織褲 | D148: 针织长裤 | E148: 夏季 | G148: A.P. | H148: 男 | I148: 2026-03-19 | J148: 1 | K148: 774 | L148: 2026-04-02 | M148: 斐樂大貨 | N148: 回流
A149: M2902 Carmen | B149: 服装 | C149: 針織褲 | D149: 针织长裤 | E149: 夏季 | G149: A.P. | H149: 男 | I149: 2026-03-19 | J149: 1 | K149: 775 | L149: 2026-04-02 | M149: 斐樂大貨
A150: M0989 Susanna | B150: 服装 | C150: 針織褲 | D150: 针织长裤 | E150: 夏季 | F150: ATHLETICS | G150: FITNESS | H150: 女 | I150: 2026-03-05 | J150: 1 | K150: 748 | L150: 2026-04-02 | M150: 斐樂大貨 | N150: 回流
A151: M0989 Susanna | B151: 服装 | C151: 針織褲 | D151: 针织长裤 | E151: 夏季 | F151: ATHLETICS | G151: FITNESS | H151: 女 | I151: 2026-03-05 | J151: 1 | K151: 748 | L151: 2026-04-02 | M151: 斐樂大貨 | N151: 回流
A152: M1436 Khaki | B152: 服装 | C152: 針織褲 | D152: 针织长裤 | E152: 夏季 | F152: LIFESTYLE | G152: HERITAGE | H152: 男 | I152: 2026-03-05 | J152: 1 | K152: 792 | L152: 2026-04-02 | M152: 斐樂大貨
A153: M1436 Khaki | B153: 服装 | C153: 針織褲 | D153: 针织长裤 | E153: 夏季 | F153: LIFESTYLE | G153: HERITAGE | H153: 男 | I153: 2026-03-05 | J153: 1 | K153: 748 | L153: 2026-04-02 | M153: 斐樂大貨 | N153: 回流
A154: M1436 Khaki | B154: 服装 | C154: 針織褲 | D154: 针织长裤 | E154: 夏季 | F154: LIFESTYLE | G154: WHITE | H154: 女 | I154: 2026-03-19 | J154: 1 | K154: 792 | L154: 2026-04-02 | M154: 斐樂大貨
A155: M2902 Carmen | B155: 服装 | C155: 針織褲 | D155: 针织长裤 | E155: 夏季 | F155: LIFESTYLE | G155: HERITAGE | H155: 女 | I155: 2026-03-05 | J155: 1 | K155: 774 | L155: 2026-04-02 | M155: 斐樂大貨
A156: M1436 Khaki | B156: 服装 | C156: 針織上衣 | D156: 针织长袖外套 | E156: 春季 | F156: LIFESTYLE | G156: WHITE | H156: 男 | I156: 2026-02-05 | J156: 1 | K156: 1258 | L156: 2026-04-02 | M156: 斐樂大貨 | N156: 回流
A157: M2902 Carmen | B157: 服装 | C157: 針織上衣 | D157: 针织长袖外套 | E157: 夏季 | F157: LIFESTYLE | G157: WHITE | H157: 男 | I157: 2026-03-19 | J157: 1 | K157: 1280 | L157: 2026-04-02 | M157: 斐樂大貨
A158: M2902 Carmen | B158: 服装 | C158: 針織上衣 | D158: 针织长袖外套 | E158: 夏季 | F158: LIFESTYLE | G158: HERITAGE | H158: 女 | I158: 2026-03-05 | J158: 1 | K158: 1304 | L158: 2026-04-02 | M158: 斐樂大貨
A159: M0989 Susanna | B159: 配件 | C159: 包類 | D159: 背包 | E159: 冬季 | F159: LIFESTYLE | G159: WHITE | H159: 男 | I159: 2025-09-04 | J159: 1 | K159: 1091 | L159: 2026-04-02 | M159: 斐樂大貨 | N159: 回流
A160: M1436 Khaki | B160: 配件 | C160: 包類 | D160: 背包 | E160: 春季 | F160: LIFESTYLE | G160: HERITAGE | H160: 男 | I160: 2025-12-04 | J160: 1 | K160: 828 | L160: 2026-04-02 | M160: 斐樂大貨 | N160: 回流
A161: M0989 Susanna | B161: 配件 | C161: 包類 | D161: 背包 | E161: 春季 | F161: LIFESTYLE | G161: HERITAGE | H161: 男 | I161: 2025-12-04 | J161: 1 | K161: 827 | L161: 2026-04-02 | M161: 斐樂大貨 | N161: 回流
A162: M0989 Susanna | B162: 配件 | C162: 包類 | D162: 挎包 | E162: 夏季 | F162: LIFESTYLE | G162: HERITAGE | H162: 男 | I162: 2026-03-05 | J162: 2 | K162: 1196 | L162: 2026-04-02 | M162: 斐樂大貨 | N162: 回流
A163: M2902 Carmen | B163: 配件 | C163: 包類 | D163: 挎包 | E163: 夏季 | F163: LIFESTYLE | G163: HERITAGE | H163: 男 | I163: 2026-03-05 | J163: 1 | K163: 598 | L163: 2026-04-02 | M163: 斐樂大貨 | N163: 回流
A164: M1436 Khaki | B164: 配件 | C164: 包類 | D164: 挎包 | E164: 夏季 | F164: LIFESTYLE | G164: FILA ORIGINALE | H164: 女 | I164: 2026-02-05 | J164: 1 | K164: 480 | L164: 2026-04-02 | M164: 斐樂大貨
A165: M1436 Khaki | B165: 配件 | C165: 內衣類 | D165: 内裤 | E165: 春季 | F165: LIFESTYLE | G165: WHITE | H165: 男 | I165: 2025-12-04 | J165: 1 | K165: 176 | L165: 2026-04-02 | M165: 斐樂大貨 | N165: 回流
A166: M2902 Carmen | B166: 配件 | C166: 襪類 | D166: 低腰袜 | E166: 春季 | F166: ATHLETICS | G166: FITNESS | H166: 男 | I166: 2025-01-07 | J166: 1 | K166: 60 | L166: 2026-04-02 | M166: 斐樂大貨
A167: M2902 Carmen | B167: 配件 | C167: 襪類 | D167: 低腰袜 | E167: 夏季 | F167: ATHLETICS | G167: FITNESS | H167: 男 | I167: 2025-03-06 | J167: 1 | K167: 65 | L167: 2026-04-02 | M167: 斐樂大貨
A168: M1436 Khaki | B168: 配件 | C168: 襪類 | D168: 低腰袜 | E168: 夏季 | F168: LIFESTYLE | G168: WHITE | H168: 男 | I168: 2025-03-06 | J168: 1 | K168: 65 | L168: 2026-04-02 | M168: 斐樂大貨
A169: M0989 Susanna | B169: 广宣用品 | C169: 促销品 | D169: FILA咖啡随行杯（粉） | E169: 常青 | H169: 不分 | I169: 2026-01-01 | J169: 1 | K169: 0 | L169: 2026-04-02 | M169: 斐樂大貨 | N169: 回流
A170: M2798 Ryan | B170: 广宣用品 | C170: 促销品 | D170: FILA咖啡随行杯（粉） | E170: 常青 | H170: 不分 | I170: 2026-01-01 | J170: 1 | K170: 0 | L170: 2026-04-02 | M170: 斐樂大貨 | N170: 回流
A171: M2902 Carmen | B171: 广宣用品 | C171: 促销品 | D171: FILA咖啡随行杯（粉） | E171: 常青 | H171: 不分 | I171: 2026-01-01 | J171: 1 | K171: 0 | L171: 2026-04-02 | M171: 斐樂大貨 | N171: 回流
A172: M0989 Susanna | B172: 广宣用品 | C172: 促销品 | D172: FILA新款拉杆箱（绿色） | E172: 常青 | H172: 不分 | I172: 2026-01-01 | J172: 2 | K172: 0 | L172: 2026-04-02 | M172: 斐樂大貨 | N172: 回流
A173: M2798 Ryan | B173: 广宣用品 | C173: 促销品 | D173: FILA新款拉杆箱（绿色） | E173: 常青 | H173: 不分 | I173: 2026-01-01 | J173: 2 | K173: 0 | L173: 2026-04-02 | M173: 斐樂大貨 | N173: 回流
A174: M0989 Susanna | B174: 其它 | C174: 其它 | D174: PLASTIC BAG | E174: 春季 | H174: UNISEX | J174: 1 | K174: 1 | L174: 2026-04-02 | M174: 通用
A175: M0989 Susanna | B175: 其它 | C175: 其它 | D175: PLASTIC BAG | E175: 春季 | H175: UNISEX | J175: 2 | K175: 2 | L175: 2026-04-02 | M175: 通用 | N175: 回流
A176: M1436 Khaki | B176: 其它 | C176: 其它 | D176: PLASTIC BAG | E176: 春季 | H176: UNISEX | J176: 1 | K176: 1 | L176: 2026-04-02 | M176: 通用
A177: M2798 Ryan | B177: 其它 | C177: 其它 | D177: PLASTIC BAG | E177: 春季 | H177: UNISEX | J177: 1 | K177: 1 | L177: 2026-04-02 | M177: 通用
A178: M2798 Ryan | B178: 其它 | C178: 其它 | D178: PLASTIC BAG | E178: 春季 | H178: UNISEX | J178: 2 | K178: 2 | L178: 2026-04-02 | M178: 通用 | N178: 回流
A179: M2902 Carmen | B179: 其它 | C179: 其它 | D179: PLASTIC BAG | E179: 春季 | H179: UNISEX | J179: 4 | K179: 4 | L179: 2026-04-02 | M179: 通用
A180: M2902 Carmen | B180: 其它 | C180: 其它 | D180: PLASTIC BAG | E180: 春季 | H180: UNISEX | J180: 1 | K180: 1 | L180: 2026-04-02 | M180: 通用 | N180: 回流
A181: M0989 Susanna | B181: 其它 | C181: 其它 | D181: PLASTIC BAG | E181: 春季 | H181: UNISEX | J181: 2 | K181: 2 | L181: 2026-04-02 | M181: 通用
A182: M0989 Susanna | B182: 其它 | C182: 其它 | D182: PLASTIC BAG | E182: 春季 | H182: UNISEX | J182: 2 | K182: 2 | L182: 2026-04-02 | M182: 通用 | N182: 回流
A183: M1436 Khaki | B183: 其它 | C183: 其它 | D183: PLASTIC BAG | E183: 春季 | H183: UNISEX | J183: 1 | K183: 1 | L183: 2026-04-02 | M183: 通用
A184: M0989 Susanna | B184: 其它 | C184: 其它 | D184: PLASTIC BAG | E184: 春季 | H184: UNISEX | J184: 2 | K184: 2 | L184: 2026-04-02 | M184: 通用
A185: M0989 Susanna | B185: 其它 | C185: 其它 | D185: PLASTIC BAG | E185: 春季 | H185: UNISEX | J185: 2 | K185: 2 | L185: 2026-04-02 | M185: 通用 | N185: 回流
A186: M1436 Khaki | B186: 其它 | C186: 其它 | D186: PLASTIC BAG | E186: 春季 | H186: UNISEX | J186: 1 | K186: 1 | L186: 2026-04-02 | M186: 通用 | N186: 回流

Sheet 個人KPISales receipt(MTD）
A1: 營業員 | B1: 大類 | C1: 中類 | D1: 商品名稱 | E1: 季節 | F1: 系列 | G1: 子系列 | H1: 性別 | I1: 上市日期 | J1: 銷售數量 | K1: 結算金額 | L1: 銷售日期 | M1: 注冊時間 | N1: 回流判斷
A2: M0989 Susanna | B2: 广宣用品 | C2: 內搭 | D2: DOWN JKT | E2: 冬季 | F2: ATHLETICS | G2: A.P. | H2: FEMALE | N2: 回流
A3: M2172 Janet | B3: 其它 | C3: 內衣類 | D3: PAD JKT | E3: 春季 | F3: FASHION | G3: BLUE | H3: MALE | N3: 新注册
A4: M3060 Anson | B4: 服装 | C4: 羽絨服 | D4: PAD VEST | E4: 秋季 | F4: LIFESTYLE | G4: EXPLORE | H4: UNISEX | N4: (空白)
A5: M1436 Khaki | B5: 配件 | C5: 針織上衣 | D5: SKIRT | E5: 夏季 | F5: (空白) | G5: FILA MILANO | H5: (空白)
A6: M2798 Ryan | B6: 鞋类 | C6: 針織褲 | D6: SWEAT | E6: 常青 | G6: FILA ORIGINALE
A7: M2801 Fanny | B7: (空白) | C7: 梭織上衣 | D7: WOVEN JKT | E7: (空白) | G7: FITNESS
A8: M2902 Carmen | C8: 梭織褲 | D8: WOVEN PANTS | G8: GOLF
C9: 棉服 | D9: 上衣两件套 | G9: HERITAGE
C10: 短T類 | D10: 中长款羽绒服 | G10: ICONA
C11: 滑雪服 | D11: 长款羽绒服 | G11: MODERN HERITAGE
C12: 裙裝 | D12: 休闲西装 | G12: MODERNO
C13: 編織衫 | D13: 冲锋衣 | G13: ORIGINALE
C14: 襯衫 | D14: 冲锋衣两件套 | G14: SKI
D15: 羽绒马甲 | G15: SPORT PERFORMANCE
D16: 羽绒服 | G16: TENNIS
D17: 羽绒服两件套 | G17: WHITE
D18: 男装上衣 | G18: (空白)
D19: 针织马甲
D20: 针织打底裤
D21: 针织长袖POLO衫
D22: 针织长袖上衣
D23: 针织长袖外套
D24: 针织长袖衫
D25: 针织长裤
D26: 针织连帽上衣
D27: 针织连帽外套
D28: 针织背心
D29: 针织套头衫
D30: 针织短袖POLO衫
D31: 针织短袖连帽上衣
D32: 针织短袖衫
D33: 针织裙
D34: 呢子外套
D35: 连衣裙
D36: 轻薄羽绒服
D37: 梭织九分裤
D38: 梭织马甲
D39: 梭织五分裤
D40: 梭织外套
D41: 梭织长袖衬衫
D42: 梭织长裤
D43: 梭织裙
D44: 棉马甲
D45: 棉服
D46: 短裙（含短裤）
D47: 编织外套
D48: 编织连衣裙
D49: 编织衫
D50: 编织衫两件套
D51: 滑雪服
A96: 請把要分析的小票複製在以下
A97: M2798 Ryan | B97: 鞋类 | C97: 戶外鞋 | D97: EXPLORE户外鞋 | E97: 春季 | F97: ATHLETICS | G97: EXPLORE | H97: 男 | I97: 2026-01-06 | J97: 1 | K97: 1047 | L97: 2026-02-20 | M97: 斐樂大貨
A98: M1436 Khaki | B98: 鞋类 | C98: 戶外鞋 | D98: EXPLORE户外鞋 | E98: 春季 | F98: ATHLETICS | G98: EXPLORE | H98: 男 | I98: 2025-12-04 | J98: 1 | K98: 1400 | L98: 2026-02-20 | M98: 斐樂大貨
A99: M2902 Carmen | B99: 鞋类 | C99: 戶外鞋 | D99: 湖系户外 | E99: 春季 | F99: FUSION | G99: URBAN TECH | H99: 男 | I99: 2025-12-04 | J99: 1 | K99: 1048 | L99: 2026-02-20 | M99: 斐樂潮牌
A100: M0989 Susanna | B100: 鞋类 | C100: 戶外鞋 | D100: 湖系户外 | E100: 春季 | F100: FUSION | G100: URBAN TECH | H100: 男 | I100: 2025-12-04 | J100: 1 | K100: 1048 | L100: 2026-02-20 | M100: 斐樂潮牌
A101: M2801 Fanny | B101: 鞋类 | C101: 戶外鞋 | D101: 湖系户外 | E101: 春季 | F101: FUSION | G101: URBAN TECH | H101: 女 | I101: 2026-01-06 | J101: 1 | K101: 872 | L101: 2026-02-20 | M101: 斐樂潮牌
A102: M2798 Ryan | B102: 鞋类 | C102: 板鞋 | D102: 复古板鞋 | E102: 冬季 | F102: FASHION | G102: HERITAGE | H102: 男 | I102: 2025-10-09 | J102: 1 | K102: 704 | L102: 2026-02-20 | M102: 斐樂大貨
A103: M2902 Carmen | B103: 鞋类 | C103: 板鞋 | D103: HERITAGE板鞋 | E103: 春季 | F103: FASHION | G103: HERITAGE | H103: 男 | I103: 2025-12-04 | J103: 1 | K103: 872 | L103: 2026-02-20 | M103: 斐樂大貨 | N103: 回流
A104: M2801 Fanny | B104: 鞋类 | C104: 板鞋 | D104: HERITAGE板鞋 | E104: 春季 | F104: FASHION | G104: HERITAGE | H104: 男 | I104: 2025-12-04 | J104: 1 | K104: 981 | L104: 2026-02-20 | M104: 斐樂大貨 | N104: 回流
A105: M2801 Fanny | B105: 鞋类 | C105: 板鞋 | D105: HERITAGE板鞋 | E105: 春季 | F105: FASHION | G105: HERITAGE | H105: 男 | I105: 2026-01-06 | J105: 1 | K105: 872 | L105: 2026-02-20 | M105: 斐樂大貨
A106: M3060 Anson | B106: 鞋类 | C106: 板鞋 | D106: MILANO板鞋 | E106: 夏季 | F106: FASHION | H106: 男 | I106: 2026-03-05 | J106: 1 | K106: 990 | L106: 2026-02-20 | M106: 斐樂大貨
A107: M1436 Khaki | B107: 鞋类 | C107: 板鞋 | D107: MILANO板鞋 | E107: 春季 | F107: FASHION | H107: 女 | I107: 2026-02-05 | J107: 1 | K107: 871 | L107: 2026-02-20 | M107: 斐樂大貨
A108: M0989 Susanna | B108: 鞋类 | C108: 板鞋 | D108: MILANO板鞋 | E108: 春季 | F108: FASHION | H108: 女 | I108: 2026-02-05 | J108: 1 | K108: 871 | L108: 2026-02-20 | M108: 斐樂大貨
A109: M2801 Fanny | B109: 鞋类 | C109: 板鞋 | D109: MILANO板鞋 | E109: 夏季 | F109: FASHION | H109: 女 | I109: 2026-03-05 | J109: 1 | K109: 990 | L109: 2026-02-20 | M109: 斐樂大貨
A110: M0989 Susanna | B110: 鞋类 | C110: 板鞋 | D110: 面包板鞋 | E110: 春季 | F110: FUSION | G110: WORKWEAR | H110: 女 | I110: 2026-01-06 | J110: 1 | K110: 792 | L110: 2026-02-20 | M110: 斐樂潮牌 | N110: 回流
A111: M2801 Fanny | B111: 鞋类 | C111: 板鞋 | D111: 面包板鞋 | E111: 春季 | F111: FUSION | G111: WORKWEAR | H111: 女 | I111: 2026-01-06 | J111: 1 | K111: 872 | L111: 2026-02-20 | M111: 斐樂潮牌
A112: M0989 Susanna | B112: 鞋类 | C112: 跑步鞋 | D112: 路跑鞋 | E112: 冬季 | F112: ATHLETICS | G112: FITNESS | H112: 男 | I112: 2025-09-04 | J112: 1 | K112: 1240 | L112: 2026-02-20 | M112: 斐樂大貨
A113: M0989 Susanna | B113: 鞋类 | C113: 跑步鞋 | D113: 路跑鞋 | E113: 冬季 | F113: ATHLETICS | G113: FITNESS | H113: 男 | I113: 2025-09-04 | J113: 1 | K113: 1240 | L113: 2026-02-20 | M113: 斐樂大貨
A114: M2798 Ryan | B114: 鞋类 | C114: 跑步鞋 | D114: FITNESS跑步鞋 | E114: 春季 | F114: ATHLETICS | G114: FITNESS | H114: 男 | I114: 2026-01-06 | J114: 1 | K114: 1224 | L114: 2026-02-20 | M114: 斐樂大貨
A115: M3060 Anson | B115: 鞋类 | C115: 跑步鞋 | D115: FITNESS跑步鞋 | E115: 春季 | F115: ATHLETICS | G115: FITNESS | H115: 女 | I115: 2025-12-04 | J115: 1 | K115: 990 | L115: 2026-02-20 | M115: 斐樂大貨
A116: M2902 Carmen | B116: 鞋类 | C116: 跑步鞋 | D116: FITNESS跑步鞋 | E116: 春季 | F116: ATHLETICS | G116: FITNESS | H116: 女 | I116: 2025-12-04 | J116: 1 | K116: 763 | L116: 2026-02-20 | M116: 斐樂大貨 | N116: 回流
A117: M3060 Anson | B117: 鞋类 | C117: 跑步鞋 | D117: FITNESS跑步鞋 | E117: 春季 | F117: ATHLETICS | G117: FITNESS | H117: 女 | I117: 2025-12-04 | J117: 1 | K117: 990 | L117: 2026-02-20 | M117: 斐樂大貨
A118: M3060 Anson | B118: 鞋类 | C118: 潮鞋 | D118: 山系户外 | E118: 春季 | F118: FUSION | G118: URBAN TECH | H118: 女 | I118: 2026-02-05 | J118: 1 | K118: 871 | L118: 2026-02-20 | M118: 斐樂潮牌
A119: M2798 Ryan | B119: 鞋类 | C119: 潮鞋 | D119: 山系户外 | E119: 春季 | F119: FUSION | G119: URBAN TECH | H119: 女 | I119: 2026-02-05 | J119: 1 | K119: 871 | L119: 2026-02-20 | M119: 斐樂潮牌
A120: M3060 Anson | B120: 鞋类 | C120: 潮鞋 | D120: 山系户外 | E120: 春季 | F120: FUSION | G120: URBAN TECH | H120: 女 | I120: 2026-02-05 | J120: 1 | K120: 872 | L120: 2026-02-20 | M120: 斐樂潮牌
A121: M0989 Susanna | B121: 鞋类 | C121: 老爹鞋 | D121: ORIGINALE老爹鞋 | E121: 春季 | F121: FASHION | G121: ORIGINALE | H121: 男 | I121: 2026-02-05 | J121: 1 | K121: 990 | L121: 2026-02-20 | M121: 斐樂大貨
A122: M1436 Khaki | B122: 鞋类 | C122: 老爹鞋 | D122: ORIGINALE老爹鞋 | E122: 春季 | F122: FASHION | G122: ORIGINALE | H122: 男 | I122: 2025-12-18 | J122: 1 | K122: 872 | L122: 2026-02-20 | M122: 斐樂大貨 | N122: 回流
A123: M0989 Susanna | B123: 鞋类 | C123: 老爹鞋 | D123: ORIGINALE老爹鞋 | E123: 夏季 | F123: FASHION | G123: ORIGINALE | H123: 男 | I123: 2026-03-05 | J123: 1 | K123: 891 | L123: 2026-02-20 | M123: 斐樂大貨 | N123: 回流
A124: M1436 Khaki | B124: 鞋类 | C124: 老爹鞋 | D124: ORIGINALE老爹鞋 | E124: 夏季 | F124: FASHION | G124: ORIGINALE | H124: 男 | I124: 2026-03-05 | J124: 1 | K124: 990 | L124: 2026-02-20 | M124: 斐樂大貨
A125: M2798 Ryan | B125: 鞋类 | C125: 老爹鞋 | D125: ORIGINALE老爹鞋 | E125: 春季 | F125: FASHION | G125: ORIGINALE | H125: 女 | I125: 2026-01-06 | J125: 1 | K125: 792 | L125: 2026-02-20 | M125: 斐樂大貨 | N125: 回流
A126: M2902 Carmen | B126: 鞋类 | C126: 老爹鞋 | D126: ORIGINALE老爹鞋 | E126: 春季 | F126: FASHION | G126: ORIGINALE | H126: 女 | I126: 2026-01-06 | J126: 1 | K126: 792 | L126: 2026-02-20 | M126: 斐樂大貨 | N126: 回流
A127: M3060 Anson | B127: 鞋类 | C127: 老爹鞋 | D127: ORIGINALE老爹鞋 | E127: 春季 | F127: FASHION | G127: ORIGINALE | H127: 女 | I127: 2026-01-06 | J127: 1 | K127: 990 | L127: 2026-02-20 | M127: 斐樂大貨
A128: M2902 Carmen | B128: 鞋类 | C128: 老爹鞋 | D128: ORIGINALE老爹鞋 | E128: 春季 | F128: FASHION | G128: ORIGINALE | H128: 女 | I128: 2026-01-06 | J128: 1 | K128: 792 | L128: 2026-02-20 | M128: 斐樂大貨 | N128: 回流
A129: M3060 Anson | B129: 鞋类 | C129: 老爹鞋 | D129: ORIGINALE老爹鞋 | E129: 春季 | F129: FASHION | G129: ORIGINALE | H129: 女 | I129: 2026-02-05 | J129: 1 | K129: 891 | L129: 2026-02-20 | M129: 斐樂大貨 | N129: 回流
A130: M3060 Anson | B130: 鞋类 | C130: 老爹鞋 | D130: ORIGINALE老爹鞋 | E130: 春季 | F130: FASHION | G130: ORIGINALE | H130: 女 | I130: 2026-01-06 | J130: 1 | K130: 891 | L130: 2026-02-20 | M130: 斐樂大貨 | N130: 回流
A131: M0989 Susanna | B131: 鞋类 | C131: 老爹鞋 | D131: ORIGINALE老爹鞋 | E131: 春季 | F131: FASHION | G131: ORIGINALE | H131: 女 | I131: 2026-01-06 | J131: 1 | K131: 990 | L131: 2026-02-20 | M131: 斐樂大貨
A132: M3060 Anson | B132: 鞋类 | C132: 老爹鞋 | D132: ORIGINALE老爹鞋 | E132: 夏季 | F132: FASHION | G132: ORIGINALE | H132: 女 | I132: 2026-03-05 | J132: 1 | K132: 890 | L132: 2026-02-20 | M132: 斐樂大貨 | N132: 回流
A133: M2801 Fanny | B133: 鞋类 | C133: 老爹鞋 | D133: 老爹鞋 | E133: 夏季 | F133: LIFESTYLE | G133: FILA ORIGINALE | H133: 女 | I133: 2026-03-06 | J133: 1 | K133: 711 | L133: 2026-02-20 | M133: 斐樂大貨 | N133: 回流
A134: M3060 Anson | B134: 服装 | C134: 棒球服 | D134: 男装外套 | E134: 春季 | F134: INLINE | H134: 男 | I134: 2026-01-06 | J134: 1 | K134: 1584 | L134: 2026-02-20 | M134: 斐樂潮牌
A135: M3060 Anson | B135: 服装 | C135: 編織衫 | D135: 编织外套 | E135: 夏季 | F135: ATHLETICS | G135: GOLF | H135: 女 | I135: 2026-03-05 | J135: 1 | K135: 1980 | L135: 2026-02-20 | M135: 斐樂大貨
A136: M2801 Fanny | B136: 服装 | C136: 編織衫 | D136: 编织外套 | E136: 夏季 | F136: LIFESTYLE | G136: HERITAGE | H136: 女 | I136: 2026-03-05 | J136: 1 | K136: 1332 | L136: 2026-02-20 | M136: 斐樂大貨 | N136: 回流
A137: M0989 Susanna | B137: 服装 | C137: 編織衫 | D137: 编织衫 | E137: 夏季 | F137: LIFESTYLE | G137: HERITAGE | H137: 女 | I137: 2026-03-05 | J137: 1 | K137: 882 | L137: 2026-02-20 | M137: 斐樂大貨 | N137: 回流
A138: M3060 Anson | B138: 服装 | C138: 襯衫 | D138: 梭织长袖衬衫 | E138: 夏季 | F138: LIFESTYLE | G138: HERITAGE | H138: 男 | I138: 2026-03-05 | J138: 1 | K138: 1062 | L138: 2026-02-20 | M138: 斐樂大貨 | N138: 回流
A139: M1436 Khaki | B139: 服装 | C139: 襯衫 | D139: 梭织长袖衬衫 | E139: 夏季 | F139: LIFESTYLE | G139: HERITAGE | H139: 女 | I139: 2026-03-05 | J139: 1 | K139: 1062 | L139: 2026-02-20 | M139: 斐樂大貨 | N139: 回流
A140: M3060 Anson | B140: 服装 | C140: 短T類 | D140: 针织短袖衫 | E140: 春季 | F140: ATHLETICS | G140: FITNESS | H140: 男 | I140: 2026-01-20 | J140: 1 | K140: 522 | L140: 2026-02-20 | M140: 斐樂大貨 | N140: 回流
A141: M0989 Susanna | B141: 服装 | C141: 短T類 | D141: 针织短袖POLO衫 | E141: 春季 | F141: ATHLETICS | G141: TENNIS | H141: 男 | I141: 2026-02-05 | J141: 2 | K141: 1373 | L141: 2026-02-20 | M141: 斐樂大貨
A142: M2801 Fanny | B142: 服装 | C142: 短T類 | D142: 针织短袖POLO衫 | E142: 春季 | F142: ATHLETICS | G142: TENNIS | H142: 男 | I142: 2026-02-05 | J142: 1 | K142: 702 | L142: 2026-02-20 | M142: 斐樂大貨 | N142: 回流
A143: M1436 Khaki | B143: 服装 | C143: 短T類 | D143: 针织短袖衫 | E143: 夏季 | F143: ATHLETICS | G143: FITNESS | H143: 男 | I143: 2026-03-05 | J143: 1 | K143: 680 | L143: 2026-02-20 | M143: 斐樂大貨
A144: M0989 Susanna | B144: 服装 | C144: 短T類 | D144: 针织短袖衫 | E144: 夏季 | F144: ATHLETICS | G144: FITNESS | H144: 男 | I144: 2026-03-05 | J144: 1 | K144: 680 | L144: 2026-02-20 | M144: 斐樂大貨
A145: M1436 Khaki | B145: 服装 | C145: 短T類 | D145: 针织短袖衫 | E145: 夏季 | F145: ATHLETICS | G145: FITNESS | H145: 男 | I145: 2026-03-05 | J145: 1 | K145: 680 | L145: 2026-02-20 | M145: 斐樂大貨
A146: M2902 Carmen | B146: 服装 | C146: 短T類 | D146: 针织短袖衫 | E146: 夏季 | F146: ATHLETICS | G146: FITNESS | H146: 男 | I146: 2026-03-05 | J146: 1 | K146: 580 | L146: 2026-02-20 | M146: 斐樂大貨
A147: M2798 Ryan | B147: 服装 | C147: 短T類 | D147: 针织短袖衫 | E147: 夏季 | F147: ATHLETICS | G147: FITNESS | H147: 男 | I147: 2026-03-05 | J147: 1 | K147: 522 | L147: 2026-02-20 | M147: 斐樂大貨 | N147: 回流
A148: M0989 Susanna | B148: 服装 | C148: 短T類 | D148: 针织短袖衫 | E148: 夏季 | F148: ATHLETICS | G148: FITNESS | H148: 男 | I148: 2026-03-05 | J148: 1 | K148: 580 | L148: 2026-02-20 | M148: 斐樂大貨
A149: M2801 Fanny | B149: 服装 | C149: 短T類 | D149: 针织短袖衫 | E149: 夏季 | F149: ATHLETICS | G149: FITNESS | H149: 男 | I149: 2026-03-05 | J149: 1 | K149: 522 | L149: 2026-02-20 | M149: 斐樂大貨 | N149: 回流
A150: M2902 Carmen | B150: 服装 | C150: 短T類 | D150: 针织短袖衫 | E150: 夏季 | F150: ATHLETICS | G150: FITNESS | H150: 男 | I150: 2026-03-05 | J150: 1 | K150: 580 | L150: 2026-02-20 | M150: 斐樂大貨 | N150: 回流
A151: M0989 Susanna | B151: 服装 | C151: 短T類 | D151: 梭织短袖衫 | E151: 夏季 | F151: ATHLETICS | G151: GOLF | H151: 男 | I151: 2026-03-05 | J151: 1 | K151: 1782 | L151: 2026-02-20 | M151: 斐樂大貨 | N151: 回流
A152: M2798 Ryan | B152: 服装 | C152: 短T類 | D152: 针织短袖POLO衫 | E152: 夏季 | F152: ATHLETICS | G152: GOLF | H152: 男 | I152: 2026-03-05 | J152: 1 | K152: 1332 | L152: 2026-02-20 | M152: 斐樂大貨 | N152: 回流
A153: M2801 Fanny | B153: 服装 | C153: 短T類 | D153: 针织短袖POLO衫 | E153: 夏季 | F153: ATHLETICS | G153: GOLF | H153: 男 | I153: 2026-03-05 | J153: 1 | K153: 1332 | L153: 2026-02-20 | M153: 斐樂大貨 | N153: 回流
A154: M2801 Fanny | B154: 服装 | C154: 短T類 | D154: 针织短袖POLO衫 | E154: 夏季 | F154: ATHLETICS | G154: GOLF | H154: 男 | I154: 2026-03-05 | J154: 1 | K154: 1512 | L154: 2026-02-20 | M154: 斐樂大貨 | N154: 回流
A155: M0989 Susanna | B155: 服装 | C155: 短T類 | D155: 针织短袖POLO衫 | E155: 夏季 | F155: ATHLETICS | G155: GOLF | H155: 男 | I155: 2026-03-05 | J155: 1 | K155: 1280 | L155: 2026-02-20 | M155: 斐樂大貨
A156: M2801 Fanny | B156: 服装 | C156: 短T類 | D156: 针织短袖POLO衫 | E156: 夏季 | F156: ATHLETICS | G156: GOLF | H156: 男 | I156: 2026-03-05 | J156: 1 | K156: 1152 | L156: 2026-02-20 | M156: 斐樂大貨 | N156: 回流
A157: M2801 Fanny | B157: 服装 | C157: 短T類 | D157: 针织短袖POLO衫 | E157: 夏季 | F157: ATHLETICS | G157: GOLF | H157: 男 | I157: 2026-03-05 | J157: 1 | K157: 1332 | L157: 2026-02-20 | M157: 斐樂大貨 | N157: 回流
A158: M2801 Fanny | B158: 服装 | C158: 短T類 | D158: 针织短袖衫 | E158: 夏季 | F158: ATHLETICS | G158: FITNESS | H158: 女 | I158: 2026-03-05 | J158: 1 | K158: 580 | L158: 2026-02-20 | M158: 斐樂大貨
A159: M2798 Ryan | B159: 服装 | C159: 短T類 | D159: 针织短袖衫 | E159: 夏季 | F159: ATHLETICS | G159: FITNESS | H159: 女 | I159: 2026-03-05 | J159: 1 | K159: 640 | L159: 2026-02-20 | M159: 斐樂大貨 | N159: 回流
A160: M3060 Anson | B160: 服装 | C160: 短T類 | D160: 针织短袖衫 | E160: 夏季 | F160: ATHLETICS | G160: FITNESS | H160: 女 | I160: 2026-03-05 | J160: 1 | K160: 640 | L160: 2026-02-20 | M160: 斐樂大貨
A161: M2902 Carmen | B161: 服装 | C161: 短T類 | D161: 针织短袖衫 | E161: 夏季 | F161: ATHLETICS | G161: FITNESS | H161: 女 | I161: 2026-03-05 | J161: 1 | K161: 576 | L161: 2026-02-20 | M161: 斐樂大貨 | N161: 回流
A162: M2798 Ryan | B162: 服装 | C162: 短T類 | D162: 针织短袖POLO衫 | E162: 夏季 | F162: ATHLETICS | G162: GOLF | H162: 女 | I162: 2026-03-05 | J162: 1 | K162: 1280 | L162: 2026-02-20 | M162: 斐樂大貨
A163: M2801 Fanny | B163: 服装 | C163: 短T類 | D163: 针织短袖POLO衫 | E163: 夏季 | F163: ATHLETICS | G163: GOLF | H163: 女 | I163: 2026-03-05 | J163: 1 | K163: 1152 | L163: 2026-02-20 | M163: 斐樂大貨 | N163: 回流
A164: M3060 Anson | B164: 服装 | C164: 短T類 | D164: 针织短袖衫 | E164: 春季 | F164: LIFESTYLE | G164: WHITE | H164: 男 | I164: 2026-02-05 | J164: 1 | K164: 598 | L164: 2026-02-20 | M164: 斐樂大貨
A165: M2902 Carmen | B165: 服装 | C165: 短T類 | D165: 针织短袖POLO衫 | E165: 春季 | F165: LIFESTYLE | G165: WHITE | H165: 男 | I165: 2026-02-05 | J165: 1 | K165: 592 | L165: 2026-02-20 | M165: 斐樂大貨 | N165: 回流
A166: M3060 Anson | B166: 服装 | C166: 短T類 | D166: 针织短袖POLO衫 | E166: 春季 | F166: LIFESTYLE | G166: WHITE | H166: 男 | I166: 2026-02-05 | J166: 1 | K166: 666 | L166: 2026-02-20 | M166: 斐樂大貨 | N166: 回流
A167: M3060 Anson | B167: 服装 | C167: 短T類 | D167: 针织短袖POLO衫 | E167: 春季 | F167: LIFESTYLE | G167: WHITE | H167: 男 | I167: 2026-02-05 | J167: 1 | K167: 592 | L167: 2026-02-20 | M167: 斐樂大貨
A168: M2801 Fanny | B168: 服装 | C168: 短T類 | D168: 针织短袖衫 | E168: 春季 | F168: LIFESTYLE | G168: HERITAGE | H168: 男 | I168: 2026-01-20 | J168: 1 | K168: 580 | L168: 2026-02-20 | M168: 斐樂大貨
A169: M3060 Anson | B169: 服装 | C169: 短T類 | D169: 针织短袖衫 | E169: 春季 | F169: LIFESTYLE | G169: HERITAGE | H169: 男 | I169: 2026-01-20 | J169: 1 | K169: 522 | L169: 2026-02-20 | M169: 斐樂大貨 | N169: 回流
A170: M2798 Ryan | B170: 服装 | C170: 短T類 | D170: 针织短袖衫 | E170: 春季 | F170: LIFESTYLE | G170: HERITAGE | H170: 男 | I170: 2026-01-20 | J170: 1 | K170: 464 | L170: 2026-02-20 | M170: 斐樂大貨
A171: M2801 Fanny | B171: 服装 | C171: 短T類 | D171: 针织短袖衫 | E171: 春季 | F171: LIFESTYLE | G171: HERITAGE | H171: 男 | I171: 2026-01-20 | J171: 1 | K171: 522 | L171: 2026-02-20 | M171: 斐樂大貨 | N171: 回流
A172: M2902 Carmen | B172: 服装 | C172: 短T類 | D172: 针织短袖衫 | E172: 春季 | F172: LIFESTYLE | G172: HERITAGE | H172: 男 | I172: 2026-01-20 | J172: 1 | K172: 464 | L172: 2026-02-20 | M172: 斐樂大貨
A173: M2801 Fanny | B173: 服装 | C173: 短T類 | D173: 针织短袖衫 | E173: 春季 | F173: LIFESTYLE | G173: FILA ORIGINALE | H173: 男 | I173: 2026-02-05 | J173: 1 | K173: 510 | L173: 2026-02-20 | M173: 斐樂大貨
A174: M1436 Khaki | B174: 服装 | C174: 短T類 | D174: 针织短袖衫 | E174: 春季 | F174: LIFESTYLE | G174: FILA ORIGINALE | H174: 男 | I174: 2026-02-05 | J174: 2 | K174: 928 | L174: 2026-02-20 | M174: 斐樂大貨 | N174: 回流
A175: M2798 Ryan | B175: 服装 | C175: 短T類 | D175: 针织短袖衫 | E175: 春季 | F175: LIFESTYLE | G175: FILA ORIGINALE | H175: 男 | I175: 2026-02-05 | J175: 1 | K175: 592 | L175: 2026-02-20 | M175: 斐樂大貨
A176: M0989 Susanna | B176: 服装 | C176: 短T類 | D176: 针织短袖衫 | E176: 春季 | F176: LIFESTYLE | G176: FILA ORIGINALE | H176: 男 | I176: 2026-02-05 | J176: 1 | K176: 576 | L176: 2026-02-20 | M176: 斐樂大貨 | N176: 回流
A177: M2798 Ryan | B177: 服装 | C177: 短T類 | D177: 针织短袖衫 | E177: 夏季 | F177: LIFESTYLE | G177: HERITAGE | H177: 男 | I177: 2026-03-05 | J177: 1 | K177: 702 | L177: 2026-02-20 | M177: 斐樂大貨 | N177: 回流
A178: M3060 Anson | B178: 服装 | C178: 短T類 | D178: 针织短袖衫 | E178: 夏季 | F178: LIFESTYLE | G178: HERITAGE | H178: 男 | I178: 2026-03-05 | J178: 1 | K178: 702 | L178: 2026-02-20 | M178: 斐樂大貨 | N178: 回流
A179: M0989 Susanna | B179: 服装 | C179: 短T類 | D179: 针织短袖衫 | E179: 夏季 | F179: LIFESTYLE | G179: HERITAGE | H179: 男 | I179: 2026-03-05 | J179: 1 | K179: 702 | L179: 2026-02-20 | M179: 斐樂大貨 | N179: 回流
A180: M0989 Susanna | B180: 服装 | C180: 短T類 | D180: 针织短袖衫 | E180: 夏季 | F180: LIFESTYLE | G180: HERITAGE | H180: 男 | I180: 2026-03-05 | J180: 1 | K180: 780 | L180: 2026-02-20 | M180: 斐樂大貨
A181: M3060 Anson | B181: 服装 | C181: 短T類 | D181: 针织短袖衫 | E181: 夏季 | F181: LIFESTYLE | G181: HERITAGE | H181: 男 | I181: 2026-03-05 | J181: 1 | K181: 702 | L181: 2026-02-20 | M181: 斐樂大貨 | N181: 回流
A182: M2801 Fanny | B182: 服装 | C182: 短T類 | D182: 针织短袖衫 | E182: 夏季 | F182: LIFESTYLE | G182: HERITAGE | H182: 男 | I182: 2026-03-05 | J182: 1 | K182: 702 | L182: 2026-02-20 | M182: 斐樂大貨 | N182: 回流
A183: M1436 Khaki | B183: 服装 | C183: 短T類 | D183: 针织短袖衫 | E183: 春季 | F183: LIFESTYLE | H183: 男 | I183: 2026-01-06 | J183: 1 | K183: 580 | L183: 2026-02-20 | M183: 斐樂大貨
A184: M1436 Khaki | B184: 服装 | C184: 短T類 | D184: 针织短袖衫 | E184: 春季 | F184: LIFESTYLE | G184: WHITE | H184: 女 | I184: 2026-02-05 | J184: 1 | K184: 792 | L184: 2026-02-20 | M184: 斐樂大貨 | N184: 回流
A185: M2902 Carmen | B185: 服装 | C185: 短T類 | D185: 针织短袖衫 | E185: 春季 | F185: LIFESTYLE | G185: FILA ORIGINALE | H185: 女 | I185: 2026-02-05 | J185: 1 | K185: 522 | L185: 2026-02-20 | M185: 斐樂大貨 | N185: 回流
A186: M1436 Khaki | B186: 服装 | C186: 短T類 | D186: 针织短袖衫 | E186: 夏季 | F186: LIFESTYLE | G186: HERITAGE | H186: 女 | I186: 2026-03-05 | J186: 1 | K186: 612 | L186: 2026-02-20 | M186: 斐樂大貨 | N186: 回流
A187: M0989 Susanna | B187: 服装 | C187: 短T類 | D187: 编织背心 | E187: 夏季 | F187: LIFESTYLE | G187: HERITAGE | H187: 女 | I187: 2026-03-05 | J187: 1 | K187: 432 | L187: 2026-02-20 | M187: 斐樂大貨 | N187: 回流
A188: M3060 Anson | B188: 服装 | C188: 短T類 | D188: 针织短袖衫 | E188: 春季 | F188: INLINE | H188: 不分 | I188: 2026-01-06 | J188: 1 | K188: 464 | L188: 2026-02-20 | M188: 斐樂潮牌
A189: M2902 Carmen | B189: 服装 | C189: 棉服 | D189: 棉服 | E189: 春季 | F189: LIFESTYLE | G189: BLUE | H189: 男 | I189: 2025-12-18 | J189: 1 | K189: 2436 | L189: 2026-02-20 | M189: 斐樂大貨 | N189: 回流
A190: M2801 Fanny | B190: 服装 | C190: 內搭 | D190: 针织长袖上衣 | E190: 冬季 | F190: ATHLETICS | G190: GOLF | H190: 男 | I190: 2025-10-23 | J190: 1 | K190: 1512 | L190: 2026-02-20 | M190: 斐樂大貨 | N190: 回流
A191: M2902 Carmen | B191: 服装 | C191: 內搭 | D191: 针织长袖上衣 | E191: 春季 | F191: ATHLETICS | G191: FITNESS | H191: 女 | I191: 2026-01-20 | J191: 1 | K191: 704 | L191: 2026-02-20 | M191: 斐樂大貨
A192: M2902 Carmen | B192: 服装 | C192: 內搭 | D192: 针织长袖上衣 | E192: 春季 | F192: ATHLETICS | G192: FITNESS | H192: 女 | I192: 2025-12-04 | J192: 1 | K192: 880 | L192: 2026-02-20 | M192: 斐樂大貨
A193: M2801 Fanny | B193: 服装 | C193: 內搭 | D193: 针织套头衫 | E193: 春季 | F193: LIFESTYLE | G193: WHITE | H193: 男 | I193: 2025-12-18 | J193: 1 | K193: 704 | L193: 2026-02-20 | M193: 斐樂大貨 | N193: 回流
A194: M2902 Carmen | B194: 服装 | C194: 內搭 | D194: 针织套头衫 | E194: 春季 | F194: LIFESTYLE | G194: WHITE | H194: 男 | I194: 2025-12-18 | J194: 1 | K194: 792 | L194: 2026-02-20 | M194: 斐樂大貨 | N194: 回流
A195: M2798 Ryan | B195: 服装 | C195: 內搭 | D195: 针织套头衫 | E195: 春季 | F195: LIFESTYLE | G195: HERITAGE | H195: 男 | I195: 2026-01-20 | J195: 1 | K195: 704 | L195: 2026-02-20 | M195: 斐樂大貨
A196: M2902 Carmen | B196: 服装 | C196: 內搭 | D196: 针织连帽上衣 | E196: 春季 | F196: LIFESTYLE | H196: 男 | I196: 2026-01-06 | J196: 1 | K196: 704 | L196: 2026-02-20 | M196: 斐樂大貨
A197: M2902 Carmen | B197: 服装 | C197: 內搭 | D197: 针织套头衫 | E197: 冬季 | F197: LIFESTYLE | G197: WHITE | H197: 女 | I197: 2025-11-06 | J197: 1 | K197: 880 | L197: 2026-02-20 | M197: 斐樂大貨
A198: M1436 Khaki | B198: 服装 | C198: 內搭 | D198: 针织套头衫 | E198: 春季 | F198: LIFESTYLE | G198: HERITAGE | H198: 女 | I198: 2025-12-04 | J198: 1 | K198: 792 | L198: 2026-02-20 | M198: 斐樂大貨 | N198: 回流
A199: M2902 Carmen | B199: 服装 | C199: 裙裝 | D199: 梭织裙 | E199: 春季 | F199: ATHLETICS | G199: GOLF | H199: 女 | I199: 2025-12-04 | J199: 1 | K199: 1512 | L199: 2026-02-20 | M199: 斐樂大貨 | N199: 回流
A200: M2801 Fanny | B200: 服装 | C200: 裙裝 | D200: 梭织裙 | E200: 春季 | F200: ATHLETICS | G200: GOLF | H200: 女 | I200: 2025-12-04 | J200: 1 | K200: 1344 | L200: 2026-02-20 | M200: 斐樂大貨 | N200: 回流
A201: M1436 Khaki | B201: 服装 | C201: 裙裝 | D201: 针织裙 | E201: 夏季 | F201: LIFESTYLE | G201: HERITAGE | H201: 女 | I201: 2026-03-05 | J201: 1 | K201: 702 | L201: 2026-02-20 | M201: 斐樂大貨 | N201: 回流
A202: M2902 Carmen | B202: 服装 | C202: 梭織褲 | D202: 梭织长裤 | E202: 冬季 | F202: ATHLETICS | G202: GOLF | H202: 男 | I202: 2025-10-23 | J202: 1 | K202: 1344 | L202: 2026-02-20 | M202: 斐樂大貨 | N202: 回流
A203: M2798 Ryan | B203: 服装 | C203: 梭織褲 | D203: 梭织长裤 | E203: 春季 | F203: ATHLETICS | G203: GOLF | H203: 男 | I203: 2025-12-04 | J203: 1 | K203: 1332 | L203: 2026-02-20 | M203: 斐樂大貨 | N203: 回流
A204: M2902 Carmen | B204: 服装 | C204: 梭織褲 | D204: 梭织长裤 | E204: 春季 | F204: ATHLETICS | G204: EXPLORE | H204: 男 | I204: 2026-02-19 | J204: 1 | K204: 1062 | L204: 2026-02-20 | M204: 斐樂大貨 | N204: 回流
A205: M2798 Ryan | B205: 服装 | C205: 梭織褲 | D205: 梭织长裤 | E205: 春季 | F205: ATHLETICS | G205: EXPLORE | H205: 男 | I205: 2026-02-19 | J205: 1 | K205: 1062 | L205: 2026-02-20 | M205: 斐樂大貨 | N205: 回流
A206: M2902 Carmen | B206: 服装 | C206: 梭織上衣 | D206: 梭织外套 | E206: 冬季 | F206: ATHLETICS | G206: GOLF | H206: 男 | I206: 2025-10-09 | J206: 1 | K206: 2304 | L206: 2026-02-20 | M206: 斐樂大貨 | N206: 回流
A207: M2798 Ryan | B207: 服装 | C207: 梭織上衣 | D207: 梭织外套 | E207: 夏季 | F207: ATHLETICS | G207: GOLF | H207: 男 | I207: 2026-03-05 | J207: 1 | K207: 1962 | L207: 2026-02-20 | M207: 斐樂大貨 | N207: 回流
A208: M3060 Anson | B208: 服装 | C208: 梭織上衣 | D208: 梭织外套 | E208: 夏季 | F208: ATHLETICS | G208: GOLF | H208: 男 | I208: 2026-03-05 | J208: 1 | K208: 2180 | L208: 2026-02-20 | M208: 斐樂大貨
A209: M2902 Carmen | B209: 服装 | C209: 梭織上衣 | D209: 梭织外套 | E209: 夏季 | F209: ATHLETICS | G209: GOLF | H209: 男 | I209: 2026-03-05 | J209: 1 | K209: 1962 | L209: 2026-02-20 | M209: 斐樂大貨 | N209: 回流
A210: M0989 Susanna | B210: 服装 | C210: 梭織上衣 | D210: 梭织外套 | E210: 春季 | F210: ATHLETICS | G210: EXPLORE | H210: 女 | I210: 2026-02-19 | J210: 1 | K210: 1584 | L210: 2026-02-20 | M210: 斐樂大貨 | N210: 回流
A211: M2798 Ryan | B211: 服装 | C211: 梭織上衣 | D211: 梭织外套 | E211: 春季 | F211: ATHLETICS | G211: EXPLORE | H211: 女 | I211: 2026-02-19 | J211: 1 | K211: 1584 | L211: 2026-02-20 | M211: 斐樂大貨 | N211: 回流
A212: M1436 Khaki | B212: 服装 | C212: 梭織上衣 | D212: 梭织外套 | E212: 冬季 | F212: LIFESTYLE | G212: BLUE | H212: 男 | I212: 2025-09-04 | J212: 1 | K212: 2304 | L212: 2026-02-20 | M212: 斐樂大貨 | N212: 回流
A213: M2801 Fanny | B213: 服装 | C213: 梭織上衣 | D213: 梭织外套 | E213: 春季 | F213: LIFESTYLE | G213: WHITE | H213: 男 | I213: 2026-02-05 | J213: 1 | K213: 1422 | L213: 2026-02-20 | M213: 斐樂大貨 | N213: 回流
A214: M3060 Anson | B214: 服装 | C214: 梭織上衣 | D214: 梭织外套 | E214: 春季 | F214: LIFESTYLE | G214: WHITE | H214: 男 | I214: 2026-02-05 | J214: 1 | K214: 1391 | L214: 2026-02-20 | M214: 斐樂大貨
A215: M2801 Fanny | B215: 服装 | C215: 梭織上衣 | D215: 梭织外套 | E215: 春季 | F215: LIFESTYLE | G215: WHITE | H215: 男 | I215: 2026-02-05 | J215: 1 | K215: 1422 | L215: 2026-02-20 | M215: 斐樂大貨 | N215: 回流
A216: M1436 Khaki | B216: 服装 | C216: 梭織上衣 | D216: 梭织外套 | E216: 春季 | F216: LIFESTYLE | G216: WHITE | H216: 男 | I216: 2026-02-05 | J216: 1 | K216: 1344 | L216: 2026-02-20 | M216: 斐樂大貨 | N216: 回流
A217: M2801 Fanny | B217: 服装 | C217: 梭織上衣 | D217: 梭织外套 | E217: 春季 | F217: LIFESTYLE | G217: WHITE | H217: 男 | I217: 2026-02-05 | J217: 1 | K217: 1344 | L217: 2026-02-20 | M217: 斐樂大貨 | N217: 回流
A218: M2801 Fanny | B218: 服装 | C218: 梭織上衣 | D218: 梭织外套 | E218: 春季 | F218: LIFESTYLE | G218: HERITAGE | H218: 男 | I218: 2026-01-20 | J218: 1 | K218: 1743 | L218: 2026-02-20 | M218: 斐樂大貨 | N218: 回流
A219: M1436 Khaki | B219: 服装 | C219: 梭織上衣 | D219: 梭织外套 | E219: 春季 | F219: LIFESTYLE | G219: HERITAGE | H219: 男 | I219: 2026-01-20 | J219: 1 | K219: 1584 | L219: 2026-02-20 | M219: 斐樂大貨 | N219: 回流
A220: M2798 Ryan | B220: 服装 | C220: 梭織上衣 | D220: 梭织外套 | E220: 春季 | F220: LIFESTYLE | G220: HERITAGE | H220: 男 | I220: 2026-01-20 | J220: 1 | K220: 1584 | L220: 2026-02-20 | M220: 斐樂大貨 | N220: 回流
A221: M0989 Susanna | B221: 服装 | C221: 梭織上衣 | D221: 梭织外套 | E221: 春季 | F221: LIFESTYLE | G221: FILA ORIGINALE | H221: 男 | I221: 2026-02-05 | J221: 1 | K221: 1512 | L221: 2026-02-20 | M221: 斐樂大貨 | N221: 回流
A222: M3060 Anson | B222: 服装 | C222: 梭織上衣 | D222: 梭织外套 | E222: 夏季 | F222: LIFESTYLE | G222: HERITAGE | H222: 男 | I222: 2026-03-05 | J222: 1 | K222: 1512 | L222: 2026-02-20 | M222: 斐樂大貨 | N222: 回流
A223: M2798 Ryan | B223: 服装 | C223: 梭織上衣 | D223: 梭织外套 | E223: 春季 | F223: LIFESTYLE | G223: WHITE | H223: 女 | I223: 2026-02-05 | J223: 1 | K223: 1344 | L223: 2026-02-20 | M223: 斐樂大貨 | N223: 回流
A224: M0989 Susanna | B224: 服装 | C224: 梭織上衣 | D224: 梭织外套 | E224: 春季 | F224: LIFESTYLE | G224: WHITE | H224: 女 | I224: 2026-02-05 | J224: 1 | K224: 1344 | L224: 2026-02-20 | M224: 斐樂大貨 | N224: 回流
A225: M2801 Fanny | B225: 服装 | C225: 梭織上衣 | D225: 梭织外套 | E225: 春季 | F225: LIFESTYLE | G225: WHITE | H225: 女 | I225: 2026-02-05 | J225: 1 | K225: 1344 | L225: 2026-02-20 | M225: 斐樂大貨 | N225: 回流
A226: M1436 Khaki | B226: 服装 | C226: 梭織上衣 | D226: 梭织外套 | E226: 夏季 | F226: LIFESTYLE | G226: HERITAGE | H226: 女 | I226: 2026-03-05 | J226: 1 | K226: 1782 | L226: 2026-02-20 | M226: 斐樂大貨 | N226: 回流
A227: M1436 Khaki | B227: 服装 | C227: 梭織上衣 | D227: 梭织外套 | E227: 夏季 | F227: LIFESTYLE | G227: HERITAGE | H227: 女 | I227: 2026-03-05 | J227: 1 | K227: 1782 | L227: 2026-02-20 | M227: 斐樂大貨 | N227: 回流
A228: M3060 Anson | B228: 服装 | C228: 梭織上衣 | D228: 梭织外套 | E228: 夏季 | F228: LIFESTYLE | G228: HERITAGE | H228: 女 | I228: 2026-03-05 | J228: 1 | K228: 1782 | L228: 2026-02-20 | M228: 斐樂大貨 | N228: 回流
A229: M3060 Anson | B229: 服装 | C229: 梭織上衣 | D229: 梭织外套 | E229: 夏季 | F229: LIFESTYLE | G229: HERITAGE | H229: 女 | I229: 2026-03-05 | J229: 1 | K229: 1782 | L229: 2026-02-20 | M229: 斐樂大貨 | N229: 回流
A230: M3060 Anson | B230: 服装 | C230: 羽絨服 | D230: 羽绒马甲 | E230: 冬季 | F230: ATHLETICS | G230: GOLF | H230: 女 | I230: 2025-09-04 | J230: 1 | K230: 2016 | L230: 2026-02-20 | M230: 斐樂大貨
A231: M3060 Anson | B231: 服装 | C231: 羽絨服 | D231: 羽绒服 | E231: 冬季 | F231: LIFESTYLE | G231: BLUE | H231: 男 | I231: 2025-10-23 | J231: 1 | K231: 3136 | L231: 2026-02-20 | M231: 斐樂大貨
A232: M2902 Carmen | B232: 服装 | C232: 羽絨服 | D232: 羽绒马甲 | E232: 冬季 | F232: LIFESTYLE | G232: WHITE | H232: 男 | I232: 2025-09-23 | J232: 1 | K232: 1036 | L232: 2026-02-20 | M232: 斐樂大貨 | N232: 回流
A233: M2801 Fanny | B233: 服装 | C233: 針織褲 | D233: 针织长裤 | E233: 春季 | G233: A.P. | H233: 男 | I233: 2026-02-05 | J233: 1 | K233: 862 | L233: 2026-02-20 | M233: 斐樂大貨
A234: M2902 Carmen | B234: 服装 | C234: 針織褲 | D234: 针织长裤 | E234: 春季 | G234: A.P. | H234: 男 | I234: 2026-02-05 | J234: 1 | K234: 980 | L234: 2026-02-20 | M234: 斐樂大貨
A235: M3060 Anson | B235: 服装 | C235: 針織褲 | D235: 针织长裤 | E235: 春季 | G235: A.P. | H235: 男 | I235: 2026-02-05 | J235: 1 | K235: 882 | L235: 2026-02-20 | M235: 斐樂大貨 | N235: 回流
A236: M1436 Khaki | B236: 服装 | C236: 針織褲 | D236: 针织长裤 | E236: 春季 | F236: ATHLETICS | G236: FITNESS | H236: 男 | I236: 2026-01-20 | J236: 1 | K236: 704 | L236: 2026-02-20 | M236: 斐樂大貨 | N236: 回流
A237: M2902 Carmen | B237: 服装 | C237: 針織褲 | D237: 针织长裤 | E237: 春季 | F237: ATHLETICS | G237: FITNESS | H237: 女 | I237: 2026-01-20 | J237: 1 | K237: 704 | L237: 2026-02-20 | M237: 斐樂大貨
A238: M2902 Carmen | B238: 服装 | C238: 針織褲 | D238: 针织长裤 | E238: 夏季 | F238: ATHLETICS | G238: FITNESS | H238: 女 | I238: 2026-03-05 | J238: 1 | K238: 677 | L238: 2026-02-20 | M238: 斐樂大貨 | N238: 回流
A239: M1436 Khaki | B239: 服装 | C239: 針織褲 | D239: 针织长裤 | E239: 冬季 | F239: LIFESTYLE | G239: HERITAGE | H239: 男 | I239: 2025-09-04 | J239: 1 | K239: 739 | L239: 2026-02-20 | M239: 斐樂大貨
A240: M2902 Carmen | B240: 服装 | C240: 針織褲 | D240: 针织长裤 | E240: 春季 | F240: LIFESTYLE | G240: HERITAGE | H240: 男 | I240: 2026-01-20 | J240: 1 | K240: 704 | L240: 2026-02-20 | M240: 斐樂大貨
A241: M0989 Susanna | B241: 服装 | C241: 針織褲 | D241: 针织长裤 | E241: 春季 | F241: LIFESTYLE | G241: WHITE | H241: 女 | I241: 2025-12-18 | J241: 1 | K241: 792 | L241: 2026-02-20 | M241: 斐樂大貨 | N241: 回流
A242: M2798 Ryan | B242: 服装 | C242: 針織褲 | D242: 针织长裤 | E242: 春季 | F242: LIFESTYLE | G242: HERITAGE | H242: 女 | I242: 2026-01-20 | J242: 1 | K242: 792 | L242: 2026-02-20 | M242: 斐樂大貨 | N242: 回流
A243: M3060 Anson | B243: 服装 | C243: 針織褲 | D243: 针织长裤 | E243: 夏季 | F243: LIFESTYLE | G243: HERITAGE | H243: 女 | I243: 2026-03-05 | J243: 1 | K243: 880 | L243: 2026-02-20 | M243: 斐樂大貨
A244: M0989 Susanna | B244: 服装 | C244: 針織褲 | D244: 针织长裤 | E244: 夏季 | F244: LIFESTYLE | G244: HERITAGE | H244: 女 | I244: 2026-03-05 | J244: 1 | K244: 792 | L244: 2026-02-20 | M244: 斐樂大貨 | N244: 回流
... 70 more rows
